{"text_format":"1","workbook":"xlsx","n_sheets":1,"sheets":["Sheet1"],"not_rendered":{"charts":0,"images":0,"macros":1,"external_links":0,"defined_names":0,"comments":0,"pivot_tables":0},"unopened":[],"bounds":{"document_bytes":16777216,"sheet_cells":100000,"rows_first":2000,"rows_last":500,"rows_between":2000,"halvings":0,"cell_chars":16384,"cell_head_chars":4096},"cells_cut":0,"cells_raw":0,"read":"whole","date_system":"1900"}

{"sheet":"Sheet1","index":0,"n_rows":1339,"n_cols":43,"rows_kept":1339,"cut":false,"hidden":false,"merged":[[0,3,1,17]]}
[null,null,null,"Household disposable income by MSOA in Manchester and London (£/week, after housing costs)"]
[]
[null,null,null,null,1,null,2,null,3,null,null,null,null,4,null,null,null,5]
[null,null,null,"Mean income",{"$f":"V6","v":399.77661849710961},null,{"$f":"AQ6","v":539.23702950152551},null,{"$f":"AF6","v":502.92905191873541},null,null,null,"Mean income",{"$f":"AC6","v":539.76680580924881},null,null,null,{"$f":"AI6","v":539.3749547103082}]
[null,null,null,"Median",{"$f":"V7","v":392.10500000000002},null,{"$f":"AQ7","v":520.49},null,{"$f":"AF7","v":480.32},null,null,null,"Median",{"$f":"AC7","v":525.82747500000005},null,null,null,{"$f":"AI7","v":521.70000000000005},null,null,null,null,null,null,null,1.35,null,null,0.81699999999999995,null,null,null,null,null,null,null,null,1.35]
[null,null,null,"St. Dev",{"$f":"V8","v":83.613717517298738},null,{"$f":"AQ8","v":132.39081474028055},null,{"$f":"AF8","v":136.12331913339776},null,null,null,"St. Dev",151.92612472893111,null,null,null,137.74397050260626,null,null,"Mean",{"$f":"AVERAGE(U11:U2006)","v":399.77661849710961},null,null,"Mean",{"$f":"AVERAGE(Y11:Y2006)","v":539.69843497109844},null,"Mean",{"$f":"AVERAGE(AB11:AB2006)","v":539.76680580924881},null,"Mean",{"$f":"AVERAGE(AF11:AF2006)","v":502.92905191873541},null,"Mean",{"$f":"AVERAGE(AI11:AI2006)","v":539.3749547103082},null,"Mean",{"$f":"AVERAGE(AL11:AL2006)","v":539.35715462753865},null,null,null,"Mean",{"$f":"AVERAGE(AP11:AP2006)","v":539.23702950152551}]
[null,null,null,"Gini",0.11911243379833433,null,0.13872174343341503,null,0.15171590935096288,null,null,null,"Gini",0.16029620587933194,null,null,null,0.14444451544768983,null,null,"Median",{"$f":"MEDIAN(U11:U2006)","v":392.10500000000002},null,null,"Median",{"$f":"MEDIAN(Y11:Y2006)","v":529.34175000000005},null,"Median",{"$f":"MEDIAN(AB11:AB2006)","v":525.82747500000005},null,"Median",{"$f":"MEDIAN(AF11:AF2006)","v":480.32},null,"Median",{"$f":"MEDIAN(AI11:AI2006)","v":521.70000000000005},null,"Median",{"$f":"MEDIAN(AL11:AL2006)","v":522.774},null,null,null,"Median",{"$f":"MEDIAN(AP11:AP2006)","v":520.49}]
[null,null,null,null,null,null,null,null,null,null,null,null,null,null,null,null,null,null,null,null,"StDev",{"$f":"_xlfn.STDEV.P(U11:U5006)","v":83.613717517298738},null,null,"StDev",{"$f":"_xlfn.STDEV.P(Y11:Y5006)","v":112.87851864835199},null,"StDev",{"$f":"_xlfn.STDEV.P(AB11:AB5006)","v":151.92612472893111},null,"StDev",{"$f":"_xlfn.STDEV.P(AF11:AF5006)","v":136.12331913339776},null,"StDev",{"$f":"_xlfn.STDEV.P(AI11:AI5006)","v":137.74397050260626},null,"StDev",{"$f":"_xlfn.STDEV.P(AL11:AL5006)","v":127.59863913106848},null,null,null,"StDev",{"$f":"_xlfn.STDEV.P(AP11:AP5006)","v":132.39081474028055}]
[null,null,null,null,"Manchester",null,"London",null,"Manchester & London",null,"Imaginary Manchester 1",null,null,"Imaginary Manchester",null,"London & Manchester 1",null,"London & imaginary Manchester",null,null,"Gini",{"$f":"GINICOEFA(U11:U356)","v":0.11911243379833433},null,null,"Gini",{"$f":"GINICOEFA(Y11:Y356)","v":0.11911243379833412},null,"Gini",{"$f":"GINICOEFA(AB11:AB356)","v":0.16029620587933194},null,"Gini",{"$f":"GINICOEFA(AF11:AF1339)","v":0.15171590935096288},null,"Gini",{"$f":"GINICOEFA(AI11:AI1339)","v":0.14444451544768983},null,"Gini",{"$f":"GINICOEFA(AL11:AL1339)","v":0.13377087422342612},null,null,null,"Gini",{"$f":"GINICOEFA(AP11:AP993)","v":0.13872174343341503}]
[null,null,null,null,"Today",null,"Today",null,"Today",null,"35% richer. No more unequal",null,null,"35% richer but much more unequal",null,null,null,null,null,null,"Net income after housing costs","Local authority name",null,null,"35% richer Manchester",null,null,"35% richer and more unequal Manchester",null,null,null,"London & Manchester",null,null,"London & 35% richer Manchester",null,null,"London & 35% richer Manchester",null,null,null,"Net income after housing costs","Region name"]
[150,200,null,"£150-£200",{"$f":"COUNTIFS(U:U,\"<\"&B11,U:U, \">\"&A11)","v":0},null,{"$f":"COUNTIFS(AP:AP,\"<\"&B11,AP:AP, \">\"&A11)","v":0},null,{"$f":"G11+E11","v":0},null,{"$f":"COUNTIFS(Y:Y,\"<\"&B11,Y:Y, \">\"&A11)","v":0},null,"£150-£200",{"$f":"COUNTIFS(AB:AB,\"<\"&B11,AB:AB, \">\"&A11)","v":0},null,{"$f":"G11+K11","v":0},null,{"$f":"G11+N11","v":0},null,null,228.43,"Oldham",null,0,{"$f":"U11*Z$5","v":308.38050000000004},null,null,{"$f":"U11*(1+(U11-$U$11)/U11*$AC$5)","v":228.43},null,null,null,634.51,null,null,{"$f":"AF11","v":634.51},null,null,{"$f":"AF11","v":634.51},null,null,null,634.51,"London"]
[200,250,null,"£200-£250",{"$f":"COUNTIFS(U:U,\"<\"&B12,U:U, \">\"&A12)","v":4},null,{"$f":"COUNTIFS(AP:AP,\"<\"&B12,AP:AP, \">\"&A12)","v":0},null,{"$f":"G12+E12","v":4},null,{"$f":"COUNTIFS(Y:Y,\"<\"&B12,Y:Y, \">\"&A12)","v":0},null,"£200-£250",{"$f":"COUNTIFS(AB:AB,\"<\"&B12,AB:AB, \">\"&A12)","v":2},null,{"$f":"G12+K12","v":0},null,{"$f":"G12+N12","v":2},null,null,231.49,"Manchester",null,{"$f":"X11+1/(COUNT($Y$11:$Y$356)-1)","v":2.8985507246376812E-3},{"$f":"U12*Z$5","v":312.51150000000001},null,null,{"$f":"U12*(1+(U12-$U$11)/U12*$AC$5)","v":233.99002000000002},null,null,null,879.91,null,null,{"$f":"AF12","v":879.91},null,null,{"$f":"AF12","v":879.91},null,null,null,879.91,"London"]
[250,300,null,"£250-£300",{"$f":"COUNTIFS(U:U,\"<\"&B13,U:U, \">\"&A13)","v":36},null,{"$f":"COUNTIFS(AP:AP,\"<\"&B13,AP:AP, \">\"&A13)","v":0},null,36,null,{"$f":"COUNTIFS(Y:Y,\"<\"&B13,Y:Y, \">\"&A13)","v":0},null,"£250-£300",{"$f":"COUNTIFS(AB:AB,\"<\"&B13,AB:AB, \">\"&A13)","v":15},null,0,null,15,null,null,241.98,"Oldham",null,{"$f":"X12+1/(COUNT($Y$11:$Y$356)-1)","v":5.7971014492753624E-3},{"$f":"U13*Z$5","v":326.673},null,null,{"$f":"U13*(1+(U13-$U$11)/U13*$AC$5)","v":253.05034999999998},null,null,null,640.45000000000005,null,null,640.45000000000005,null,null,640.45000000000005,null,null,null,640.45000000000005,"London"]
[300,350,null,"£300-£350",{"$f":"COUNTIFS(U:U,\"<\"&B14,U:U, \">\"&A14)","v":61},null,{"$f":"COUNTIFS(AP:AP,\"<\"&B14,AP:AP, \">\"&A14)","v":35},null,96,null,{"$f":"COUNTIFS(Y:Y,\"<\"&B14,Y:Y, \">\"&A14)","v":9},null,"£300-£350",{"$f":"COUNTIFS(AB:AB,\"<\"&B14,AB:AB, \">\"&A14)","v":19},null,44,null,54,null,null,247.7,"Manchester",null,8.6956521739130436E-3,{"$f":"U14*Z$5","v":334.39499999999998},null,null,{"$f":"U14*(1+(U14-$U$11)/U14*$AC$5)","v":263.44358999999997},null,null,null,772.73,null,null,772.73,null,null,772.73,null,null,null,772.73,"London"]
[350,400,null,"£350-£400",{"$f":"COUNTIFS(U:U,\"<\"&B15,U:U, \">\"&A15)","v":81},null,{"$f":"COUNTIFS(AP:AP,\"<\"&B15,AP:AP, \">\"&A15)","v":119},null,200,null,{"$f":"COUNTIFS(Y:Y,\"<\"&B15,Y:Y, \">\"&A15)","v":28},null,"£350-£400",{"$f":"COUNTIFS(AB:AB,\"<\"&B15,AB:AB, \">\"&A15)","v":27},null,147,null,146,null,null,256.27999999999997,"Rochdale",null,1.1594202898550725E-2,{"$f":"U15*Z$5","v":345.97800000000001},null,null,{"$f":"U15*(1+(U15-$U$11)/U15*$AC$5)","v":279.0334499999999},null,null,null,703.52,null,null,703.52,null,null,703.52,null,null,null,703.52,"London"]
[400,450,null,"£400-£450",{"$f":"COUNTIFS(U:U,\"<\"&B16,U:U, \">\"&A16)","v":69},null,{"$f":"COUNTIFS(AP:AP,\"<\"&B16,AP:AP, \">\"&A16)","v":134},null,203,null,{"$f":"COUNTIFS(Y:Y,\"<\"&B16,Y:Y, \">\"&A16)","v":44},null,"£400-£450",{"$f":"COUNTIFS(AB:AB,\"<\"&B16,AB:AB, \">\"&A16)","v":39},null,178,null,173,null,null,256.47000000000003,"Manchester",null,1.4492753623188406E-2,{"$f":"U16*Z$5","v":346.23450000000008},null,null,{"$f":"U16*(1+(U16-$U$11)/U16*$AC$5)","v":279.37868000000003},null,null,null,675.47,null,null,675.47,null,null,675.47,null,null,null,675.47,"London"]
[450,500,null,"£450-£500",{"$f":"COUNTIFS(U:U,\"<\"&B17,U:U, \">\"&A17)","v":49},null,{"$f":"COUNTIFS(AP:AP,\"<\"&B17,AP:AP, \">\"&A17)","v":150},null,199,null,{"$f":"COUNTIFS(Y:Y,\"<\"&B17,Y:Y, \">\"&A17)","v":61},null,"£450-£500",{"$f":"COUNTIFS(AB:AB,\"<\"&B17,AB:AB, \">\"&A17)","v":47},null,211,null,197,null,null,256.92,"Oldham",null,1.7391304347826087E-2,{"$f":"U17*Z$5","v":346.84200000000004},null,null,{"$f":"U17*(1+(U17-$U$11)/U17*$AC$5)","v":280.19633000000005},null,null,null,412.22,null,null,412.22,null,null,412.22,null,null,null,412.22,"London"]
[500,550,null,"£500-£550",{"$f":"COUNTIFS(U:U,\"<\"&B18,U:U, \">\"&A18)","v":32},null,{"$f":"COUNTIFS(AP:AP,\"<\"&B18,AP:AP, \">\"&A18)","v":124},null,156,null,{"$f":"COUNTIFS(Y:Y,\"<\"&B18,Y:Y, \">\"&A18)","v":52},null,"£500-£550",{"$f":"COUNTIFS(AB:AB,\"<\"&B18,AB:AB, \">\"&A18)","v":43},null,176,null,167,null,null,258.04000000000002,"Bolton",null,2.0289855072463767E-2,{"$f":"U18*Z$5","v":348.35400000000004},null,null,{"$f":"U18*(1+(U18-$U$11)/U18*$AC$5)","v":282.23137000000003},null,null,null,794.99,null,null,794.99,null,null,794.99,null,null,null,794.99,"London"]
[550,600,null,"£550-£600",{"$f":"COUNTIFS(U:U,\"<\"&B19,U:U, \">\"&A19)","v":8},null,{"$f":"COUNTIFS(AP:AP,\"<\"&B19,AP:AP, \">\"&A19)","v":118},null,126,null,{"$f":"COUNTIFS(Y:Y,\"<\"&B19,Y:Y, \">\"&A19)","v":54},null,"£550-£600",{"$f":"COUNTIFS(AB:AB,\"<\"&B19,AB:AB, \">\"&A19)","v":38},null,172,null,156,null,null,258.11,"Manchester",null,2.318840579710145E-2,{"$f":"U19*Z$5","v":348.44850000000002},null,null,{"$f":"U19*(1+(U19-$U$11)/U19*$AC$5)","v":282.35856000000007},null,null,null,532.38,null,null,532.38,null,null,532.38,null,null,null,532.38,"London"]
[600,650,null,"£600-£650",{"$f":"COUNTIFS(U:U,\"<\"&B20,U:U, \">\"&A20)","v":5},null,{"$f":"COUNTIFS(AP:AP,\"<\"&B20,AP:AP, \">\"&A20)","v":99},null,104,null,{"$f":"COUNTIFS(Y:Y,\"<\"&B20,Y:Y, \">\"&A20)","v":38},null,"£600-£650",{"$f":"COUNTIFS(AB:AB,\"<\"&B20,AB:AB, \">\"&A20)","v":32},null,137,null,131,null,null,260.43,"Oldham",null,2.6086956521739132E-2,{"$f":"U20*Z$5","v":351.58050000000003},null,null,{"$f":"U20*(1+(U20-$U$11)/U20*$AC$5)","v":286.57400000000001},null,null,null,680.34,null,null,680.34,null,null,680.34,null,null,null,680.34,"London"]
[650,700,null,"£650-£700",{"$f":"COUNTIFS(U:U,\"<\"&B21,U:U, \">\"&A21)","v":0},null,{"$f":"COUNTIFS(AP:AP,\"<\"&B21,AP:AP, \">\"&A21)","v":80},null,80,null,{"$f":"COUNTIFS(Y:Y,\"<\"&B21,Y:Y, \">\"&A21)","v":23},null,"£650-£700",{"$f":"COUNTIFS(AB:AB,\"<\"&B21,AB:AB, \">\"&A21)","v":28},null,103,null,108,null,null,261.75,"Manchester",null,2.8985507246376815E-2,{"$f":"U21*Z$5","v":353.36250000000001},null,null,{"$f":"U21*(1+(U21-$U$11)/U21*$AC$5)","v":288.97244000000001},null,null,null,810.98,null,null,810.98,null,null,810.98,null,null,null,810.98,"London"]
[700,750,null,"£700-£750",{"$f":"COUNTIFS(U:U,\"<\"&B22,U:U, \">\"&A22)","v":0},null,{"$f":"COUNTIFS(AP:AP,\"<\"&B22,AP:AP, \">\"&A22)","v":51},null,51,null,{"$f":"COUNTIFS(Y:Y,\"<\"&B22,Y:Y, \">\"&A22)","v":27},null,"£700-£750",{"$f":"COUNTIFS(AB:AB,\"<\"&B22,AB:AB, \">\"&A22)","v":17},null,78,null,68,null,null,262.83,"Rochdale",null,3.1884057971014498E-2,{"$f":"U22*Z$5","v":354.82049999999998},null,null,{"$f":"U22*(1+(U22-$U$11)/U22*$AC$5)","v":290.9348},null,null,null,476.67,null,null,476.67,null,null,476.67,null,null,null,476.67,"London"]
[750,800,null,"£750-£800",{"$f":"COUNTIFS(U:U,\"<\"&B23,U:U, \">\"&A23)","v":0},null,{"$f":"COUNTIFS(AP:AP,\"<\"&B23,AP:AP, \">\"&A23)","v":30},null,30,null,{"$f":"COUNTIFS(Y:Y,\"<\"&B23,Y:Y, \">\"&A23)","v":4},null,"£750-£800",{"$f":"COUNTIFS(AB:AB,\"<\"&B23,AB:AB, \">\"&A23)","v":23},null,34,null,53,null,null,263.01,"Manchester",null,3.4782608695652181E-2,{"$f":"U23*Z$5","v":355.06350000000003},null,null,{"$f":"U23*(1+(U23-$U$11)/U23*$AC$5)","v":291.26185999999996},null,null,null,532.02,null,null,532.02,null,null,532.02,null,null,null,532.02,"London"]
[800,850,null,"£800-£850",{"$f":"COUNTIFS(U:U,\"<\"&B24,U:U, \">\"&A24)","v":0},null,{"$f":"COUNTIFS(AP:AP,\"<\"&B24,AP:AP, \">\"&A24)","v":28},null,28,null,{"$f":"COUNTIFS(Y:Y,\"<\"&B24,Y:Y, \">\"&A24)","v":5},null,"£800-£850",{"$f":"COUNTIFS(AB:AB,\"<\"&B24,AB:AB, \">\"&A24)","v":8},null,33,null,36,null,null,264.01,"Bolton",null,3.7681159420289864E-2,{"$f":"U24*Z$5","v":356.4135},null,null,{"$f":"U24*(1+(U24-$U$11)/U24*$AC$5)","v":293.07885999999996},null,null,null,610.98,null,null,610.98,null,null,610.98,null,null,null,610.98,"London"]
[850,900,null,"£850-£900",{"$f":"COUNTIFS(U:U,\"<\"&B25,U:U, \">\"&A25)","v":0},null,{"$f":"COUNTIFS(AP:AP,\"<\"&B25,AP:AP, \">\"&A25)","v":9},null,9,null,{"$f":"COUNTIFS(Y:Y,\"<\"&B25,Y:Y, \">\"&A25)","v":1},null,"£850-£900",{"$f":"COUNTIFS(AB:AB,\"<\"&B25,AB:AB, \">\"&A25)","v":2},null,10,null,11,null,null,264.32,"Manchester",null,4.0579710144927547E-2,{"$f":"U25*Z$5","v":356.83199999999999},null,null,{"$f":"U25*(1+(U25-$U$11)/U25*$AC$5)","v":293.64212999999995},null,null,null,497.53,null,null,497.53,null,null,497.53,null,null,null,497.53,"London"]
[900,950,null,"£900-£950",{"$f":"COUNTIFS(U:U,\"<\"&B26,U:U, \">\"&A26)","v":0},null,{"$f":"COUNTIFS(AP:AP,\"<\"&B26,AP:AP, \">\"&A26)","v":4},null,4,null,{"$f":"COUNTIFS(Y:Y,\"<\"&B26,Y:Y, \">\"&A26)","v":0},null,"£900-£950",{"$f":"COUNTIFS(AB:AB,\"<\"&B26,AB:AB, \">\"&A26)","v":5},null,4,null,9,null,null,264.68,"Rochdale",null,4.347826086956523E-2,{"$f":"U26*Z$5","v":357.31800000000004},null,null,{"$f":"U26*(1+(U26-$U$11)/U26*$AC$5)","v":294.29624999999999},null,null,null,794.8,null,null,794.8,null,null,794.8,null,null,null,794.8,"London"]
[950,1000,null,"£950-£1000",{"$f":"COUNTIFS(U:U,\"<\"&B27,U:U, \">\"&A27)","v":0},null,{"$f":"COUNTIFS(AP:AP,\"<\"&B27,AP:AP, \">\"&A27)","v":2},null,2,null,{"$f":"COUNTIFS(Y:Y,\"<\"&B27,Y:Y, \">\"&A27)","v":0},null,"£950-£1000",{"$f":"COUNTIFS(AB:AB,\"<\"&B27,AB:AB, \">\"&A27)","v":1},null,2,null,3,null,null,267.58999999999997,"Manchester",null,4.6376811594202913E-2,{"$f":"U27*Z$5","v":361.24649999999997},null,null,{"$f":"U27*(1+(U27-$U$11)/U27*$AC$5)","v":299.58371999999997},null,null,null,628.27,null,null,628.27,null,null,628.27,null,null,null,628.27,"London"]
[null,null,null,null,null,null,null,null,null,null,null,null,null,null,null,null,null,null,null,null,268.25,"Manchester",null,4.9275362318840596E-2,{"$f":"U28*Z$5","v":362.13750000000005},null,null,{"$f":"U28*(1+(U28-$U$11)/U28*$AC$5)","v":300.78294},null,null,null,628.48,null,null,628.48,null,null,628.48,null,null,null,628.48,"London"]
[null,null,null,null,null,null,null,null,null,null,null,null,null,null,null,null,null,null,null,null,271.31,"Salford",null,5.2173913043478279E-2,{"$f":"U29*Z$5","v":366.26850000000002},null,null,{"$f":"U29*(1+(U29-$U$11)/U29*$AC$5)","v":306.34296000000001},null,null,null,427.61,null,null,427.61,null,null,427.61,null,null,null,427.61,"London"]
[null,null,null,null,null,null,null,null,null,null,null,null,null,null,null,null,null,null,null,null,272.52999999999997,"Manchester",null,5.5072463768115962E-2,{"$f":"U30*Z$5","v":367.91550000000001},null,null,{"$f":"U30*(1+(U30-$U$11)/U30*$AC$5)","v":308.55969999999991},null,null,null,426.2,null,null,426.2,null,null,426.2,null,null,null,426.2,"London"]
[null,null,null,null,{"$f":"SUM(E11:E27)","v":345},null,{"$f":"SUM(G11:G27)","v":983},null,null,null,null,null,null,null,null,null,null,null,null,null,272.81,"Oldham",null,5.7971014492753645E-2,{"$f":"U31*Z$5","v":368.29350000000005},null,null,{"$f":"U31*(1+(U31-$U$11)/U31*$AC$5)","v":309.06846000000002},null,null,null,524.92999999999995,null,null,524.92999999999995,null,null,524.92999999999995,null,null,null,524.92999999999995,"London"]
[null,null,null,null,null,null,null,null,null,null,null,null,null,null,null,null,null,null,null,null,273.12,"Stockport",null,6.0869565217391328E-2,{"$f":"U32*Z$5","v":368.71200000000005},null,null,{"$f":"U32*(1+(U32-$U$11)/U32*$AC$5)","v":309.63173},null,null,null,348.82,null,null,348.82,null,null,348.82,null,null,null,348.82,"London"]
[null,null,null,null,null,null,null,null,null,null,null,null,null,null,null,null,null,null,null,null,275.48,"Manchester",null,6.3768115942029011E-2,{"$f":"U33*Z$5","v":371.89800000000002},null,null,{"$f":"U33*(1+(U33-$U$11)/U33*$AC$5)","v":313.91985000000005},null,null,null,358.95,null,null,358.95,null,null,358.95,null,null,null,358.95,"London"]
[null,null,null,null,null,null,null,null,null,null,null,null,null,null,null,null,null,null,null,null,276.44,"Bolton",null,6.6666666666666693E-2,{"$f":"U34*Z$5","v":373.19400000000002},null,null,{"$f":"U34*(1+(U34-$U$11)/U34*$AC$5)","v":315.66416999999996},null,null,null,368.04,null,null,368.04,null,null,368.04,null,null,null,368.04,"London"]
[null,null,null,null,null,null,null,null,null,null,null,null,null,null,null,null,null,null,null,null,278.39999999999998,"Manchester",null,6.9565217391304376E-2,{"$f":"U35*Z$5","v":375.84},null,null,{"$f":"U35*(1+(U35-$U$11)/U35*$AC$5)","v":319.22548999999998},null,null,null,421.24,null,null,421.24,null,null,421.24,null,null,null,421.24,"London"]
[null,null,null,null,null,null,null,null,null,null,null,null,null,null,null,null,null,null,null,null,280.33999999999997,"Tameside",null,7.2463768115942059E-2,{"$f":"U36*Z$5","v":378.459},null,null,{"$f":"U36*(1+(U36-$U$11)/U36*$AC$5)","v":322.75046999999995},null,null,null,494,null,null,494,null,null,494,null,null,null,494,"London"]
[null,null,null,null,null,null,null,null,null,null,null,null,null,null,null,null,null,null,null,null,280.57,"Salford",null,7.5362318840579742E-2,{"$f":"U37*Z$5","v":378.76949999999999},null,null,{"$f":"U37*(1+(U37-$U$11)/U37*$AC$5)","v":323.16837999999996},null,null,null,484.93,null,null,484.93,null,null,484.93,null,null,null,484.93,"London"]
[null,null,null,null,null,null,null,null,null,null,null,null,null,null,null,null,null,null,null,null,280.74,"Wigan",null,7.8260869565217425E-2,{"$f":"U38*Z$5","v":378.99900000000002},null,null,{"$f":"U38*(1+(U38-$U$11)/U38*$AC$5)","v":323.47726999999998},null,null,null,551.96,null,null,551.96,null,null,551.96,null,null,null,551.96,"London"]
[null,null,null,null,null,null,null,null,null,null,null,null,null,null,null,null,null,null,null,null,284.44,"Manchester",null,8.1159420289855108E-2,{"$f":"U39*Z$5","v":383.99400000000003},null,null,{"$f":"U39*(1+(U39-$U$11)/U39*$AC$5)","v":330.20016999999996},null,null,null,805.07,null,null,805.07,null,null,805.07,null,null,null,805.07,"London"]
[null,null,null,null,null,null,null,null,null,null,null,null,null,null,null,null,null,null,null,null,286.22000000000003,"Bolton",null,8.4057971014492791E-2,{"$f":"U40*Z$5","v":386.39700000000005},null,null,{"$f":"U40*(1+(U40-$U$11)/U40*$AC$5)","v":333.43443000000002},null,null,null,415.62,null,null,415.62,null,null,415.62,null,null,null,415.62,"London"]
[null,null,null,null,null,null,null,null,null,null,null,null,null,null,null,null,null,null,null,null,287.14999999999998,"Salford",null,8.6956521739130474E-2,{"$f":"U41*Z$5","v":387.65249999999997},null,null,{"$f":"U41*(1+(U41-$U$11)/U41*$AC$5)","v":335.12423999999993},null,null,null,352.73,null,null,352.73,null,null,352.73,null,null,null,352.73,"London"]
[null,null,null,null,null,null,null,null,null,null,null,null,null,null,null,null,null,null,null,null,288.18,"Manchester",null,8.9855072463768157E-2,{"$f":"U42*Z$5","v":389.04300000000006},null,null,{"$f":"U42*(1+(U42-$U$11)/U42*$AC$5)","v":336.99575000000004},null,null,null,429.34,null,null,429.34,null,null,429.34,null,null,null,429.34,"London"]
[null,null,null,null,null,null,null,null,null,null,null,null,null,null,null,null,null,null,null,null,291.89,"Bolton",null,9.275362318840584E-2,{"$f":"U43*Z$5","v":394.05150000000003},null,null,{"$f":"U43*(1+(U43-$U$11)/U43*$AC$5)","v":343.73681999999997},null,null,null,371.91,null,null,371.91,null,null,371.91,null,null,null,371.91,"London"]
[null,null,null,null,null,null,null,null,null,null,null,null,null,null,null,null,null,null,null,null,291.95999999999998,"Manchester",null,9.5652173913043523E-2,{"$f":"U44*Z$5","v":394.14600000000002},null,null,{"$f":"U44*(1+(U44-$U$11)/U44*$AC$5)","v":343.86400999999995},null,null,null,510.03,null,null,510.03,null,null,510.03,null,null,null,510.03,"London"]
[null,null,null,null,null,null,null,null,null,null,null,null,null,null,null,null,null,null,null,null,292.38,"Rochdale",null,9.8550724637681206E-2,{"$f":"U45*Z$5","v":394.71300000000002},null,null,{"$f":"U45*(1+(U45-$U$11)/U45*$AC$5)","v":344.62714999999997},null,null,null,596.99,null,null,596.99,null,null,596.99,null,null,null,596.99,"London"]
[null,null,null,null,null,null,null,null,null,null,null,null,null,null,null,null,null,null,null,null,293.7,"Manchester",null,0.10144927536231889,{"$f":"U46*Z$5","v":396.495},null,null,{"$f":"U46*(1+(U46-$U$11)/U46*$AC$5)","v":347.02558999999997},null,null,null,526.41999999999996,null,null,526.41999999999996,null,null,526.41999999999996,null,null,null,526.41999999999996,"London"]
[null,null,null,null,null,null,null,null,null,null,null,null,null,null,null,null,null,null,null,null,295.39999999999998,"Bolton",null,0.10434782608695657,{"$f":"U47*Z$5","v":398.79},null,null,{"$f":"U47*(1+(U47-$U$11)/U47*$AC$5)","v":350.11448999999993},null,null,null,601.76,null,null,601.76,null,null,601.76,null,null,null,601.76,"London"]
[null,null,null,null,null,null,null,null,null,null,null,null,null,null,null,null,null,null,null,null,296.8,"Bury",null,0.10724637681159425,{"$f":"U48*Z$5","v":400.68000000000006},null,null,{"$f":"U48*(1+(U48-$U$11)/U48*$AC$5)","v":352.65829000000002},null,null,null,415.21,null,null,415.21,null,null,415.21,null,null,null,415.21,"London"]
[null,null,null,null,null,null,null,null,null,null,null,null,null,null,null,null,null,null,null,null,297.61,"Manchester",null,0.11014492753623194,{"$f":"U49*Z$5","v":401.77350000000007},null,null,{"$f":"U49*(1+(U49-$U$11)/U49*$AC$5)","v":354.13006000000001},null,null,null,500.15,null,null,500.15,null,null,500.15,null,null,null,500.15,"London"]
[null,null,null,null,null,null,null,null,null,null,null,null,null,null,null,null,null,null,null,null,298.62,"Manchester",null,0.11304347826086962,{"$f":"U50*Z$5","v":403.13700000000006},null,null,{"$f":"U50*(1+(U50-$U$11)/U50*$AC$5)","v":355.96523000000002},null,null,null,604.29,null,null,604.29,null,null,604.29,null,null,null,604.29,"London"]
[null,null,null,null,null,null,null,null,null,null,null,null,null,null,null,null,null,null,null,null,301.41000000000003,"Manchester",null,0.1159420289855073,{"$f":"U51*Z$5","v":406.90350000000007},null,null,{"$f":"U51*(1+(U51-$U$11)/U51*$AC$5)","v":361.03466000000003},null,null,null,337.77,null,null,337.77,null,null,337.77,null,null,null,337.77,"London"]
[null,null,null,null,null,null,null,null,null,null,null,null,null,null,null,null,null,null,null,null,302.41000000000003,"Oldham",null,0.11884057971014499,{"$f":"U52*Z$5","v":408.25350000000009},null,null,{"$f":"U52*(1+(U52-$U$11)/U52*$AC$5)","v":362.85166000000004},null,null,null,480.32,null,null,480.32,null,null,480.32,null,null,null,480.32,"London"]
[null,null,null,null,null,null,null,null,null,null,null,null,null,null,null,null,null,null,null,null,302.57,"Manchester",null,0.12173913043478267,{"$f":"U53*Z$5","v":408.46950000000004},null,null,{"$f":"U53*(1+(U53-$U$11)/U53*$AC$5)","v":363.14238},null,null,null,469.61,null,null,469.61,null,null,469.61,null,null,null,469.61,"London"]
[null,null,null,null,null,null,null,null,null,null,null,null,null,null,null,null,null,null,null,null,305.48,"Oldham",null,0.12463768115942035,{"$f":"U54*Z$5","v":412.39800000000002},null,null,{"$f":"U54*(1+(U54-$U$11)/U54*$AC$5)","v":368.42984999999999},null,null,null,392.71,null,null,392.71,null,null,392.71,null,null,null,392.71,"London"]
[null,null,null,null,null,null,null,null,null,null,null,null,null,null,null,null,null,null,null,null,305.74,"Bolton",null,0.12753623188405802,{"$f":"U55*Z$5","v":412.74900000000002},null,null,{"$f":"U55*(1+(U55-$U$11)/U55*$AC$5)","v":368.90226999999999},null,null,null,459.45,null,null,459.45,null,null,459.45,null,null,null,459.45,"London"]
[null,null,null,null,null,null,null,null,null,null,null,null,null,null,null,null,null,null,null,null,306.27,"Trafford",null,0.1304347826086957,{"$f":"U56*Z$5","v":413.46449999999999},null,null,{"$f":"U56*(1+(U56-$U$11)/U56*$AC$5)","v":369.86527999999998},null,null,null,424.78,null,null,424.78,null,null,424.78,null,null,null,424.78,"London"]
[null,null,null,null,null,null,null,null,null,null,null,null,null,null,null,null,null,null,null,null,307.05,"Oldham",null,0.13333333333333339,{"$f":"U57*Z$5","v":414.51750000000004},null,null,{"$f":"U57*(1+(U57-$U$11)/U57*$AC$5)","v":371.28253999999998},null,null,null,350.36,null,null,350.36,null,null,350.36,null,null,null,350.36,"London"]
[null,null,null,null,null,null,null,null,null,null,null,null,null,null,null,null,null,null,null,null,307.83999999999997,"Manchester",null,0.13623188405797107,{"$f":"U58*Z$5","v":415.584},null,null,{"$f":"U58*(1+(U58-$U$11)/U58*$AC$5)","v":372.71796999999992},null,null,null,559,null,null,559,null,null,559,null,null,null,559,"London"]
[null,null,null,null,null,null,null,null,null,null,null,null,null,null,null,null,null,null,null,null,308.57,"Wigan",null,0.13913043478260875,{"$f":"U59*Z$5","v":416.56950000000001},null,null,{"$f":"U59*(1+(U59-$U$11)/U59*$AC$5)","v":374.04437999999993},null,null,null,524.54,null,null,524.54,null,null,524.54,null,null,null,524.54,"London"]
[null,null,null,null,null,null,null,null,null,null,null,null,null,null,null,null,null,null,null,null,309.05,"Bolton",null,0.14202898550724644,{"$f":"U60*Z$5","v":417.21750000000003},null,null,{"$f":"U60*(1+(U60-$U$11)/U60*$AC$5)","v":374.91654000000005},null,null,null,456.55,null,null,456.55,null,null,456.55,null,null,null,456.55,"London"]
[null,null,null,null,null,null,null,null,null,null,null,null,null,null,null,null,null,null,null,null,309.33999999999997,"Wigan",null,0.14492753623188412,{"$f":"U61*Z$5","v":417.60899999999998},null,null,{"$f":"U61*(1+(U61-$U$11)/U61*$AC$5)","v":375.44346999999999},null,null,null,525.1,null,null,525.1,null,null,525.1,null,null,null,525.1,"London"]
[null,null,null,null,null,null,null,null,null,null,null,null,null,null,null,null,null,null,null,null,309.52999999999997,"Rochdale",null,0.1478260869565218,{"$f":"U62*Z$5","v":417.8655},null,null,{"$f":"U62*(1+(U62-$U$11)/U62*$AC$5)","v":375.78869999999989},null,null,null,392.29,null,null,392.29,null,null,392.29,null,null,null,392.29,"London"]
[null,null,null,null,null,null,null,null,null,null,null,null,null,null,null,null,null,null,null,null,309.56,"Bolton",null,0.15072463768115948,{"$f":"U63*Z$5","v":417.90600000000001},null,null,{"$f":"U63*(1+(U63-$U$11)/U63*$AC$5)","v":375.84321},null,null,null,438.91,null,null,438.91,null,null,438.91,null,null,null,438.91,"London"]
[null,null,null,null,null,null,null,null,null,null,null,null,null,null,null,null,null,null,null,null,310.33999999999997,"Oldham",null,0.15362318840579717,{"$f":"U64*Z$5","v":418.959},null,null,{"$f":"U64*(1+(U64-$U$11)/U64*$AC$5)","v":377.26046999999994},null,null,null,427.98,null,null,427.98,null,null,427.98,null,null,null,427.98,"London"]
[null,null,null,null,null,null,null,null,null,null,null,null,null,null,null,null,null,null,null,null,312.57,"Tameside",null,0.15652173913043485,{"$f":"U65*Z$5","v":421.96950000000004},null,null,{"$f":"U65*(1+(U65-$U$11)/U65*$AC$5)","v":381.31237999999996},null,null,null,498.59,null,null,498.59,null,null,498.59,null,null,null,498.59,"London"]
[null,null,null,null,null,null,null,null,null,null,null,null,null,null,null,null,null,null,null,null,314.57,"Bolton",null,0.15942028985507253,{"$f":"U66*Z$5","v":424.66950000000003},null,null,{"$f":"U66*(1+(U66-$U$11)/U66*$AC$5)","v":384.94637999999998},null,null,null,372.58,null,null,372.58,null,null,372.58,null,null,null,372.58,"London"]
[null,null,null,null,null,null,null,null,null,null,null,null,null,null,null,null,null,null,null,null,315.54000000000002,"Tameside",null,0.16231884057971022,{"$f":"U67*Z$5","v":425.97900000000004},null,null,{"$f":"U67*(1+(U67-$U$11)/U67*$AC$5)","v":386.70887000000005},null,null,null,355.17,null,null,355.17,null,null,355.17,null,null,null,355.17,"London"]
[null,null,null,null,null,null,null,null,null,null,null,null,null,null,null,null,null,null,null,null,318.58,"Rochdale",null,0.1652173913043479,{"$f":"U68*Z$5","v":430.08300000000003},null,null,{"$f":"U68*(1+(U68-$U$11)/U68*$AC$5)","v":392.23254999999995},null,null,null,417.13,null,null,417.13,null,null,417.13,null,null,null,417.13,"London"]
[null,null,null,null,null,null,null,null,null,null,null,null,null,null,null,null,null,null,null,null,319.52999999999997,"Manchester",null,0.16811594202898558,{"$f":"U69*Z$5","v":431.3655},null,null,{"$f":"U69*(1+(U69-$U$11)/U69*$AC$5)","v":393.95869999999991},null,null,null,341.28,null,null,341.28,null,null,341.28,null,null,null,341.28,"London"]
[null,null,null,null,null,null,null,null,null,null,null,null,null,null,null,null,null,null,null,null,320.08,"Stockport",null,0.17101449275362327,{"$f":"U70*Z$5","v":432.108},null,null,{"$f":"U70*(1+(U70-$U$11)/U70*$AC$5)","v":394.95805000000001},null,null,null,540.85,null,null,540.85,null,null,540.85,null,null,null,540.85,"London"]
[null,null,null,null,null,null,null,null,null,null,null,null,null,null,null,null,null,null,null,null,321.39,"Manchester",null,0.17391304347826095,{"$f":"U71*Z$5","v":433.87650000000002},null,null,{"$f":"U71*(1+(U71-$U$11)/U71*$AC$5)","v":397.33831999999995},null,null,null,492.11,null,null,492.11,null,null,492.11,null,null,null,492.11,"London"]
[null,null,null,null,null,null,null,null,null,null,null,null,null,null,null,null,null,null,null,null,321.5,"Rochdale",null,0.17681159420289863,{"$f":"U72*Z$5","v":434.02500000000003},null,null,{"$f":"U72*(1+(U72-$U$11)/U72*$AC$5)","v":397.53818999999999},null,null,null,512.70000000000005,null,null,512.70000000000005,null,null,512.70000000000005,null,null,null,512.70000000000005,"London"]
[null,null,null,null,null,null,null,null,null,null,null,null,null,null,null,null,null,null,null,null,321.77,"Manchester",null,0.17971014492753631,{"$f":"U73*Z$5","v":434.3895},null,null,{"$f":"U73*(1+(U73-$U$11)/U73*$AC$5)","v":398.02877999999998},null,null,null,502.88,null,null,502.88,null,null,502.88,null,null,null,502.88,"London"]
[null,null,null,null,null,null,null,null,null,null,null,null,null,null,null,null,null,null,null,null,323.39,"Salford",null,0.182608695652174,{"$f":"U74*Z$5","v":436.57650000000001},null,null,{"$f":"U74*(1+(U74-$U$11)/U74*$AC$5)","v":400.97231999999997},null,null,null,608.41999999999996,null,null,608.41999999999996,null,null,608.41999999999996,null,null,null,608.41999999999996,"London"]
[null,null,null,null,null,null,null,null,null,null,null,null,null,null,null,null,null,null,null,null,323.48,"Manchester",null,0.18550724637681168,{"$f":"U75*Z$5","v":436.69800000000004},null,null,{"$f":"U75*(1+(U75-$U$11)/U75*$AC$5)","v":401.13585},null,null,null,594.79,null,null,594.79,null,null,594.79,null,null,null,594.79,"London"]
[null,null,null,null,null,null,null,null,null,null,null,null,null,null,null,null,null,null,null,null,323.88,"Stockport",null,0.18840579710144936,{"$f":"U76*Z$5","v":437.238},null,null,{"$f":"U76*(1+(U76-$U$11)/U76*$AC$5)","v":401.86264999999997},null,null,null,666.47,null,null,{"$f":"AF76","v":666.47},null,null,{"$f":"AF76","v":666.47},null,null,null,666.47,"London"]
[null,null,null,null,null,null,null,null,null,null,null,null,null,null,null,null,null,null,null,null,325.08,"Oldham",null,{"$f":"X76+1/(COUNT($Y$11:$Y$356)-1)","v":0.19130434782608705},{"$f":"U77*Z$5","v":438.858},null,null,{"$f":"U77*(1+(U77-$U$11)/U77*$AC$5)","v":404.04304999999994},null,null,null,656.26,null,null,656.26,null,null,656.26,null,null,null,656.26,"London"]
[null,null,null,null,null,null,null,null,null,null,null,null,null,null,null,null,null,null,null,null,325.77,"Salford",null,0.19420289855072473,{"$f":"U78*Z$5","v":439.78950000000003},null,null,{"$f":"U78*(1+(U78-$U$11)/U78*$AC$5)","v":405.29677999999996},null,null,null,626.29,null,null,626.29,null,null,626.29,null,null,null,626.29,"London"]
[null,null,null,null,null,null,null,null,null,null,null,null,null,null,null,null,null,null,null,null,326.12,"Manchester",null,0.19710144927536241,{"$f":"U79*Z$5","v":440.26200000000006},null,null,{"$f":"U79*(1+(U79-$U$11)/U79*$AC$5)","v":405.93272999999999},null,null,null,605.96,null,null,605.96,null,null,605.96,null,null,null,605.96,"London"]
[null,null,null,null,null,null,null,null,null,null,null,null,null,null,null,null,null,null,null,null,326.88,"Tameside",null,0.20000000000000009,{"$f":"U80*Z$5","v":441.28800000000001},null,null,{"$f":"U80*(1+(U80-$U$11)/U80*$AC$5)","v":407.31364999999994},null,null,null,498.39,null,null,498.39,null,null,498.39,null,null,null,498.39,"London"]
[null,null,null,null,null,null,null,null,null,null,null,null,null,null,null,null,null,null,null,null,328.26,"Manchester",null,0.20289855072463778,{"$f":"U81*Z$5","v":443.15100000000001},null,null,{"$f":"U81*(1+(U81-$U$11)/U81*$AC$5)","v":409.82110999999998},null,null,null,739.45,null,null,739.45,null,null,739.45,null,null,null,739.45,"London"]
[null,null,null,null,null,null,null,null,null,null,null,null,null,null,null,null,null,null,null,null,328.78,"Bury",null,0.20579710144927546,{"$f":"U82*Z$5","v":443.85300000000001},null,null,{"$f":"U82*(1+(U82-$U$11)/U82*$AC$5)","v":410.76594999999998},null,null,null,472.57,null,null,472.57,null,null,472.57,null,null,null,472.57,"London"]
[null,null,null,null,null,null,null,null,null,null,null,null,null,null,null,null,null,null,null,null,328.78,"Salford",null,0.20869565217391314,{"$f":"U83*Z$5","v":443.85300000000001},null,null,{"$f":"U83*(1+(U83-$U$11)/U83*$AC$5)","v":410.76594999999998},null,null,null,528.52,null,null,528.52,null,null,528.52,null,null,null,528.52,"London"]
[null,null,null,null,null,null,null,null,null,null,null,null,null,null,null,null,null,null,null,null,329.49,"Salford",null,0.21159420289855083,{"$f":"U84*Z$5","v":444.81150000000002},null,null,{"$f":"U84*(1+(U84-$U$11)/U84*$AC$5)","v":412.05601999999999},null,null,null,615.91999999999996,null,null,615.91999999999996,null,null,615.91999999999996,null,null,null,615.91999999999996,"London"]
[null,null,null,null,null,null,null,null,null,null,null,null,null,null,null,null,null,null,null,null,330.51,"Manchester",null,0.21449275362318851,{"$f":"U85*Z$5","v":446.18850000000003},null,null,{"$f":"U85*(1+(U85-$U$11)/U85*$AC$5)","v":413.90935999999999},null,null,null,708.49,null,null,708.49,null,null,708.49,null,null,null,708.49,"London"]
[null,null,null,null,null,null,null,null,null,null,null,null,null,null,null,null,null,null,null,null,331.46,"Bolton",null,0.21739130434782619,{"$f":"U86*Z$5","v":447.471},null,null,{"$f":"U86*(1+(U86-$U$11)/U86*$AC$5)","v":415.63550999999995},null,null,null,619.39,null,null,619.39,null,null,619.39,null,null,null,619.39,"London"]
[null,null,null,null,null,null,null,null,null,null,null,null,null,null,null,null,null,null,null,null,331.47,"Manchester",null,0.22028985507246387,{"$f":"U87*Z$5","v":447.48450000000008},null,null,{"$f":"U87*(1+(U87-$U$11)/U87*$AC$5)","v":415.65368000000007},null,null,null,677.07,null,null,677.07,null,null,677.07,null,null,null,677.07,"London"]
[null,null,null,null,null,null,null,null,null,null,null,null,null,null,null,null,null,null,null,null,331.51,"Manchester",null,0.22318840579710156,{"$f":"U88*Z$5","v":447.5385},null,null,{"$f":"U88*(1+(U88-$U$11)/U88*$AC$5)","v":415.72635999999994},null,null,null,680.52,null,null,680.52,null,null,680.52,null,null,null,680.52,"London"]
[null,null,null,null,null,null,null,null,null,null,null,null,null,null,null,null,null,null,null,null,332.01,"Wigan",null,0.22608695652173924,{"$f":"U89*Z$5","v":448.21350000000001},null,null,{"$f":"U89*(1+(U89-$U$11)/U89*$AC$5)","v":416.63486},null,null,null,819.17,null,null,819.17,null,null,819.17,null,null,null,819.17,"London"]
[null,null,null,null,null,null,null,null,null,null,null,null,null,null,null,null,null,null,null,null,332.13,"Manchester",null,0.22898550724637692,{"$f":"U90*Z$5","v":448.37550000000005},null,null,{"$f":"U90*(1+(U90-$U$11)/U90*$AC$5)","v":416.85289999999998},null,null,null,589.79,null,null,589.79,null,null,589.79,null,null,null,589.79,"London"]
[null,null,null,null,null,null,null,null,null,null,null,null,null,null,null,null,null,null,null,null,332.55,"Rochdale",null,0.23188405797101461,{"$f":"U91*Z$5","v":448.94250000000005},null,null,{"$f":"U91*(1+(U91-$U$11)/U91*$AC$5)","v":417.61604000000005},null,null,null,845,null,null,845,null,null,845,null,null,null,845,"London"]
[null,null,null,null,null,null,null,null,null,null,null,null,null,null,null,null,null,null,null,null,334.11,"Tameside",null,0.23478260869565229,{"$f":"U92*Z$5","v":451.04850000000005},null,null,{"$f":"U92*(1+(U92-$U$11)/U92*$AC$5)","v":420.45056},null,null,null,646.9,null,null,646.9,null,null,646.9,null,null,null,646.9,"London"]
[null,null,null,null,null,null,null,null,null,null,null,null,null,null,null,null,null,null,null,null,334.58,"Manchester",null,0.23768115942028997,{"$f":"U93*Z$5","v":451.68299999999999},null,null,{"$f":"U93*(1+(U93-$U$11)/U93*$AC$5)","v":421.30454999999995},null,null,null,447.34,null,null,447.34,null,null,447.34,null,null,null,447.34,"London"]
[null,null,null,null,null,null,null,null,null,null,null,null,null,null,null,null,null,null,null,null,335.09,"Oldham",null,0.24057971014492766,{"$f":"U94*Z$5","v":452.37149999999997},null,null,{"$f":"U94*(1+(U94-$U$11)/U94*$AC$5)","v":422.23121999999995},null,null,null,312.83,null,null,312.83,null,null,312.83,null,null,null,312.83,"London"]
[null,null,null,null,null,null,null,null,null,null,null,null,null,null,null,null,null,null,null,null,335.66,"Oldham",null,0.24347826086956534,{"$f":"U95*Z$5","v":453.14100000000008},null,null,{"$f":"U95*(1+(U95-$U$11)/U95*$AC$5)","v":423.26691},null,null,null,520.65,null,null,520.65,null,null,520.65,null,null,null,520.65,"London"]
[null,null,null,null,null,null,null,null,null,null,null,null,null,null,null,null,null,null,null,null,337.19,"Manchester",null,0.24637681159420302,{"$f":"U96*Z$5","v":455.20650000000001},null,null,{"$f":"U96*(1+(U96-$U$11)/U96*$AC$5)","v":426.04691999999994},null,null,null,354.2,null,null,354.2,null,null,354.2,null,null,null,354.2,"London"]
[null,null,null,null,null,null,null,null,null,null,null,null,null,null,null,null,null,null,null,null,338.27,"Salford",null,0.2492753623188407,{"$f":"U97*Z$5","v":456.66450000000003},null,null,{"$f":"U97*(1+(U97-$U$11)/U97*$AC$5)","v":428.00927999999993},null,null,null,335.66,null,null,335.66,null,null,335.66,null,null,null,335.66,"London"]
[null,null,null,null,null,null,null,null,null,null,null,null,null,null,null,null,null,null,null,null,338.28,"Manchester",null,0.25217391304347836,{"$f":"U98*Z$5","v":456.678},null,null,{"$f":"U98*(1+(U98-$U$11)/U98*$AC$5)","v":428.02744999999993},null,null,null,440.45,null,null,440.45,null,null,440.45,null,null,null,440.45,"London"]
[null,null,null,null,null,null,null,null,null,null,null,null,null,null,null,null,null,null,null,null,339.07,"Bolton",null,0.25507246376811604,{"$f":"U99*Z$5","v":457.74450000000002},null,null,{"$f":"U99*(1+(U99-$U$11)/U99*$AC$5)","v":429.46288000000004},null,null,null,396.56,null,null,396.56,null,null,396.56,null,null,null,396.56,"London"]
[null,null,null,null,null,null,null,null,null,null,null,null,null,null,null,null,null,null,null,null,339.19,"Oldham",null,0.25797101449275373,{"$f":"U100*Z$5","v":457.90650000000005},null,null,{"$f":"U100*(1+(U100-$U$11)/U100*$AC$5)","v":429.68091999999996},null,null,null,796.14,null,null,796.14,null,null,796.14,null,null,null,796.14,"London"]
[null,null,null,null,null,null,null,null,null,null,null,null,null,null,null,null,null,null,null,null,340.69,"Tameside",null,0.26086956521739141,{"$f":"U101*Z$5","v":459.93150000000003},null,null,{"$f":"U101*(1+(U101-$U$11)/U101*$AC$5)","v":432.40641999999997},null,null,null,410.74,null,null,410.74,null,null,410.74,null,null,null,410.74,"London"]
[null,null,null,null,null,null,null,null,null,null,null,null,null,null,null,null,null,null,null,null,342.43,"Tameside",null,0.26376811594202909,{"$f":"U102*Z$5","v":462.28050000000002},null,null,{"$f":"U102*(1+(U102-$U$11)/U102*$AC$5)","v":435.56800000000004},null,null,null,348.6,null,null,348.6,null,null,348.6,null,null,null,348.6,"London"]
[null,null,null,null,null,null,null,null,null,null,null,null,null,null,null,null,null,null,null,null,343.05,"Manchester",null,0.26666666666666677,{"$f":"U103*Z$5","v":463.11750000000006},null,null,{"$f":"U103*(1+(U103-$U$11)/U103*$AC$5)","v":436.69454000000002},null,null,null,337.26,null,null,337.26,null,null,337.26,null,null,null,337.26,"London"]
[null,null,null,null,null,null,null,null,null,null,null,null,null,null,null,null,null,null,null,null,344.29,"Bury",null,0.26956521739130446,{"$f":"U104*Z$5","v":464.79150000000004},null,null,{"$f":"U104*(1+(U104-$U$11)/U104*$AC$5)","v":438.94762000000003},null,null,null,359.02,null,null,359.02,null,null,359.02,null,null,null,359.02,"London"]
[null,null,null,null,null,null,null,null,null,null,null,null,null,null,null,null,null,null,null,null,344.92,"Bury",null,0.27246376811594214,{"$f":"U105*Z$5","v":465.64200000000005},null,null,{"$f":"U105*(1+(U105-$U$11)/U105*$AC$5)","v":440.09233},null,null,null,745.2,null,null,745.2,null,null,745.2,null,null,null,745.2,"London"]
[null,null,null,null,null,null,null,null,null,null,null,null,null,null,null,null,null,null,null,null,345.11,"Wigan",null,0.27536231884057982,{"$f":"U106*Z$5","v":465.89850000000007},null,null,{"$f":"U106*(1+(U106-$U$11)/U106*$AC$5)","v":440.43756000000002},null,null,null,375.51,null,null,375.51,null,null,375.51,null,null,null,375.51,"London"]
[null,null,null,null,null,null,null,null,null,null,null,null,null,null,null,null,null,null,null,null,345.82,"Rochdale",null,0.27826086956521751,{"$f":"U107*Z$5","v":466.85700000000003},null,null,{"$f":"U107*(1+(U107-$U$11)/U107*$AC$5)","v":441.72762999999998},null,null,null,398.54,null,null,398.54,null,null,398.54,null,null,null,398.54,"London"]
[null,null,null,null,null,null,null,null,null,null,null,null,null,null,null,null,null,null,null,null,346.13,"Rochdale",null,0.28115942028985519,{"$f":"U108*Z$5","v":467.27550000000002},null,null,{"$f":"U108*(1+(U108-$U$11)/U108*$AC$5)","v":442.29089999999997},null,null,null,701.92,null,null,701.92,null,null,701.92,null,null,null,701.92,"London"]
[null,null,null,null,null,null,null,null,null,null,null,null,null,null,null,null,null,null,null,null,346.65,"Wigan",null,0.28405797101449287,{"$f":"U109*Z$5","v":467.97750000000002},null,null,{"$f":"U109*(1+(U109-$U$11)/U109*$AC$5)","v":443.23573999999991},null,null,null,424.36,null,null,424.36,null,null,424.36,null,null,null,424.36,"London"]
[null,null,null,null,null,null,null,null,null,null,null,null,null,null,null,null,null,null,null,null,347.45,"Manchester",null,0.28695652173913055,{"$f":"U110*Z$5","v":469.0575},null,null,{"$f":"U110*(1+(U110-$U$11)/U110*$AC$5)","v":444.68933999999996},null,null,null,435.76,null,null,435.76,null,null,435.76,null,null,null,435.76,"London"]
[null,null,null,null,null,null,null,null,null,null,null,null,null,null,null,null,null,null,null,null,347.73,"Manchester",null,0.28985507246376824,{"$f":"U111*Z$5","v":469.43550000000005},null,null,{"$f":"U111*(1+(U111-$U$11)/U111*$AC$5)","v":445.19810000000001},null,null,null,509.44,null,null,509.44,null,null,509.44,null,null,null,509.44,"London"]
[null,null,null,null,null,null,null,null,null,null,null,null,null,null,null,null,null,null,null,null,350.01,"Bolton",null,0.29275362318840592,{"$f":"U112*Z$5","v":472.51350000000002},null,null,{"$f":"U112*(1+(U112-$U$11)/U112*$AC$5)","v":449.34085999999996},null,null,null,766.1,null,null,766.1,null,null,766.1,null,null,null,766.1,"London"]
[null,null,null,null,null,null,null,null,null,null,null,null,null,null,null,null,null,null,null,null,350.71,"Wigan",null,0.2956521739130436,{"$f":"U113*Z$5","v":473.45850000000002},null,null,{"$f":"U113*(1+(U113-$U$11)/U113*$AC$5)","v":450.61275999999998},null,null,null,784.99,null,null,784.99,null,null,784.99,null,null,null,784.99,"London"]
[null,null,null,null,null,null,null,null,null,null,null,null,null,null,null,null,null,null,null,null,350.73,"Wigan",null,0.29855072463768129,{"$f":"U114*Z$5","v":473.48550000000006},null,null,{"$f":"U114*(1+(U114-$U$11)/U114*$AC$5)","v":450.64909999999998},null,null,null,484.31,null,null,484.31,null,null,484.31,null,null,null,484.31,"London"]
[null,null,null,null,null,null,null,null,null,null,null,null,null,null,null,null,null,null,null,null,352.38,"Wigan",null,0.30144927536231897,{"$f":"U115*Z$5","v":475.71300000000002},null,null,{"$f":"U115*(1+(U115-$U$11)/U115*$AC$5)","v":453.64715000000001},null,null,null,379.08,null,null,379.08,null,null,379.08,null,null,null,379.08,"London"]
[null,null,null,null,null,null,null,null,null,null,null,null,null,null,null,null,null,null,null,null,352.58,"Bolton",null,0.30434782608695665,{"$f":"U116*Z$5","v":475.983},null,null,{"$f":"U116*(1+(U116-$U$11)/U116*$AC$5)","v":454.01054999999991},null,null,null,358.21,null,null,358.21,null,null,358.21,null,null,null,358.21,"London"]
[null,null,null,null,null,null,null,null,null,null,null,null,null,null,null,null,null,null,null,null,352.77,"Tameside",null,0.30724637681159433,{"$f":"U117*Z$5","v":476.23950000000002},null,null,{"$f":"U117*(1+(U117-$U$11)/U117*$AC$5)","v":454.35577999999992},null,null,null,392.9,null,null,392.9,null,null,392.9,null,null,null,392.9,"London"]
[null,null,null,null,null,null,null,null,null,null,null,null,null,null,null,null,null,null,null,null,353.14,"Manchester",null,0.31014492753623202,{"$f":"U118*Z$5","v":476.73900000000003},null,null,{"$f":"U118*(1+(U118-$U$11)/U118*$AC$5)","v":455.02807000000001},null,null,null,450.81,null,null,450.81,null,null,450.81,null,null,null,450.81,"London"]
[null,null,null,null,null,null,null,null,null,null,null,null,null,null,null,null,null,null,null,null,353.41,"Salford",null,0.3130434782608697,{"$f":"U119*Z$5","v":477.10350000000005},null,null,{"$f":"U119*(1+(U119-$U$11)/U119*$AC$5)","v":455.51866000000001},null,null,null,649.80999999999995,null,null,649.80999999999995,null,null,649.80999999999995,null,null,null,649.80999999999995,"London"]
[null,null,null,null,null,null,null,null,null,null,null,null,null,null,null,null,null,null,null,null,354.23,"Bolton",null,0.31594202898550738,{"$f":"U120*Z$5","v":478.21050000000008},null,null,{"$f":"U120*(1+(U120-$U$11)/U120*$AC$5)","v":457.00859999999994},null,null,null,379.86,null,null,379.86,null,null,379.86,null,null,null,379.86,"London"]
[null,null,null,null,null,null,null,null,null,null,null,null,null,null,null,null,null,null,null,null,355.45,"Wigan",null,0.31884057971014507,{"$f":"U121*Z$5","v":479.85750000000002},null,null,{"$f":"U121*(1+(U121-$U$11)/U121*$AC$5)","v":459.22533999999996},null,null,null,737.8,null,null,737.8,null,null,737.8,null,null,null,737.8,"London"]
[null,null,null,null,null,null,null,null,null,null,null,null,null,null,null,null,null,null,null,null,355.47,"Wigan",null,0.32173913043478275,{"$f":"U122*Z$5","v":479.88450000000006},null,null,{"$f":"U122*(1+(U122-$U$11)/U122*$AC$5)","v":459.26168000000001},null,null,null,513.52,null,null,513.52,null,null,513.52,null,null,null,513.52,"London"]
[null,null,null,null,null,null,null,null,null,null,null,null,null,null,null,null,null,null,null,null,356.07,"Tameside",null,0.32463768115942043,{"$f":"U123*Z$5","v":480.69450000000001},null,null,{"$f":"U123*(1+(U123-$U$11)/U123*$AC$5)","v":460.35187999999999},null,null,null,376.39,null,null,376.39,null,null,376.39,null,null,null,376.39,"London"]
[null,null,null,null,null,null,null,null,null,null,null,null,null,null,null,null,null,null,null,null,356.18,"Rochdale",null,0.32753623188405812,{"$f":"U124*Z$5","v":480.84300000000002},null,null,{"$f":"U124*(1+(U124-$U$11)/U124*$AC$5)","v":460.55175000000003},null,null,null,836.97,null,null,836.97,null,null,836.97,null,null,null,836.97,"London"]
[null,null,null,null,null,null,null,null,null,null,null,null,null,null,null,null,null,null,null,null,356.24,"Stockport",null,0.3304347826086958,{"$f":"U125*Z$5","v":480.92400000000004},null,null,{"$f":"U125*(1+(U125-$U$11)/U125*$AC$5)","v":460.66077000000001},null,null,null,777.75,null,null,777.75,null,null,777.75,null,null,null,777.75,"London"]
[null,null,null,null,null,null,null,null,null,null,null,null,null,null,null,null,null,null,null,null,356.74,"Trafford",null,0.33333333333333348,{"$f":"U126*Z$5","v":481.59900000000005},null,null,{"$f":"U126*(1+(U126-$U$11)/U126*$AC$5)","v":461.56927000000002},null,null,null,831.88,null,null,831.88,null,null,831.88,null,null,null,831.88,"London"]
[null,null,null,null,null,null,null,null,null,null,null,null,null,null,null,null,null,null,null,null,356.83,"Salford",null,0.33623188405797116,{"$f":"U127*Z$5","v":481.72050000000002},null,null,{"$f":"U127*(1+(U127-$U$11)/U127*$AC$5)","v":461.73279999999994},null,null,null,634.36,null,null,634.36,null,null,634.36,null,null,null,634.36,"London"]
[null,null,null,null,null,null,null,null,null,null,null,null,null,null,null,null,null,null,null,null,357.49,"Oldham",null,0.33913043478260885,{"$f":"U128*Z$5","v":482.61150000000004},null,null,{"$f":"U128*(1+(U128-$U$11)/U128*$AC$5)","v":462.93201999999997},null,null,null,312.92,null,null,312.92,null,null,312.92,null,null,null,312.92,"London"]
[null,null,null,null,null,null,null,null,null,null,null,null,null,null,null,null,null,null,null,null,357.86,"Tameside",null,0.34202898550724653,{"$f":"U129*Z$5","v":483.11100000000005},null,null,{"$f":"U129*(1+(U129-$U$11)/U129*$AC$5)","v":463.60431000000005},null,null,null,454.95,null,null,454.95,null,null,454.95,null,null,null,454.95,"London"]
[null,null,null,null,null,null,null,null,null,null,null,null,null,null,null,null,null,null,null,null,359.79,"Wigan",null,0.34492753623188421,{"$f":"U130*Z$5","v":485.71650000000005},null,null,{"$f":"U130*(1+(U130-$U$11)/U130*$AC$5)","v":467.11112000000003},null,null,null,540.66999999999996,null,null,540.66999999999996,null,null,540.66999999999996,null,null,null,540.66999999999996,"London"]
[null,null,null,null,null,null,null,null,null,null,null,null,null,null,null,null,null,null,null,null,360.06,"Rochdale",null,0.3478260869565219,{"$f":"U131*Z$5","v":486.08100000000002},null,null,{"$f":"U131*(1+(U131-$U$11)/U131*$AC$5)","v":467.60170999999997},null,null,null,518.36,null,null,518.36,null,null,518.36,null,null,null,518.36,"London"]
[null,null,null,null,null,null,null,null,null,null,null,null,null,null,null,null,null,null,null,null,360.12,"Rochdale",null,0.35072463768115958,{"$f":"U132*Z$5","v":486.16200000000003},null,null,{"$f":"U132*(1+(U132-$U$11)/U132*$AC$5)","v":467.71073000000001},null,null,null,508.46,null,null,508.46,null,null,508.46,null,null,null,508.46,"London"]
[null,null,null,null,null,null,null,null,null,null,null,null,null,null,null,null,null,null,null,null,360.48,"Tameside",null,0.35362318840579726,{"$f":"U133*Z$5","v":486.64800000000008},null,null,{"$f":"U133*(1+(U133-$U$11)/U133*$AC$5)","v":468.36485000000005},null,null,null,375.49,null,null,375.49,null,null,375.49,null,null,null,375.49,"London"]
[null,null,null,null,null,null,null,null,null,null,null,null,null,null,null,null,null,null,null,null,360.52,"Salford",null,0.35652173913043494,{"$f":"U134*Z$5","v":486.702},null,null,{"$f":"U134*(1+(U134-$U$11)/U134*$AC$5)","v":468.43752999999992},null,null,null,615.12,null,null,615.12,null,null,615.12,null,null,null,615.12,"London"]
[null,null,null,null,null,null,null,null,null,null,null,null,null,null,null,null,null,null,null,null,363.94,"Tameside",null,0.35942028985507263,{"$f":"U135*Z$5","v":491.31900000000002},null,null,{"$f":"U135*(1+(U135-$U$11)/U135*$AC$5)","v":474.65166999999997},null,null,null,516.91,null,null,516.91,null,null,516.91,null,null,null,516.91,"London"]
[null,null,null,null,null,null,null,null,null,null,null,null,null,null,null,null,null,null,null,null,364.76,"Wigan",null,0.36231884057971031,{"$f":"U136*Z$5","v":492.42600000000004},null,null,{"$f":"U136*(1+(U136-$U$11)/U136*$AC$5)","v":476.14160999999996},null,null,null,654.80999999999995,null,null,654.80999999999995,null,null,654.80999999999995,null,null,null,654.80999999999995,"London"]
[null,null,null,null,null,null,null,null,null,null,null,null,null,null,null,null,null,null,null,null,365.1,"Salford",null,0.36521739130434799,{"$f":"U137*Z$5","v":492.88500000000005},null,null,{"$f":"U137*(1+(U137-$U$11)/U137*$AC$5)","v":476.75939},null,null,null,576.24,null,null,576.24,null,null,576.24,null,null,null,576.24,"London"]
[null,null,null,null,null,null,null,null,null,null,null,null,null,null,null,null,null,null,null,null,365.34,"Wigan",null,0.36811594202898568,{"$f":"U138*Z$5","v":493.209},null,null,{"$f":"U138*(1+(U138-$U$11)/U138*$AC$5)","v":477.19546999999994},null,null,null,440.41,null,null,440.41,null,null,440.41,null,null,null,440.41,"London"]
[null,null,null,null,null,null,null,null,null,null,null,null,null,null,null,null,null,null,null,null,365.61,"Oldham",null,0.37101449275362336,{"$f":"U139*Z$5","v":493.57350000000002},null,null,{"$f":"U139*(1+(U139-$U$11)/U139*$AC$5)","v":477.68606000000005},null,null,null,542.70000000000005,null,null,542.70000000000005,null,null,542.70000000000005,null,null,null,542.70000000000005,"London"]
[null,null,null,null,null,null,null,null,null,null,null,null,null,null,null,null,null,null,null,null,365.76,"Manchester",null,0.37391304347826104,{"$f":"U140*Z$5","v":493.77600000000001},null,null,{"$f":"U140*(1+(U140-$U$11)/U140*$AC$5)","v":477.95860999999996},null,null,null,500.24,null,null,{"$f":"AF140","v":500.24},null,null,{"$f":"AF140","v":500.24},null,null,null,500.24,"London"]
[null,null,null,null,null,null,null,null,null,null,null,null,null,null,null,null,null,null,null,null,365.93,"Trafford",null,{"$f":"X140+1/(COUNT($Y$11:$Y$356)-1)","v":0.37681159420289873},{"$f":"U141*Z$5","v":494.00550000000004},null,null,{"$f":"U141*(1+(U141-$U$11)/U141*$AC$5)","v":478.26750000000004},null,null,null,689.94,null,null,689.94,null,null,689.94,null,null,null,689.94,"London"]
[null,null,null,null,null,null,null,null,null,null,null,null,null,null,null,null,null,null,null,null,366.35,"Bury",null,0.37971014492753641,{"$f":"U142*Z$5","v":494.57250000000005},null,null,{"$f":"U142*(1+(U142-$U$11)/U142*$AC$5)","v":479.03064000000006},null,null,null,570.55999999999995,null,null,570.55999999999995,null,null,570.55999999999995,null,null,null,570.55999999999995,"London"]
[null,null,null,null,null,null,null,null,null,null,null,null,null,null,null,null,null,null,null,null,366.53,"Manchester",null,0.38260869565217409,{"$f":"U143*Z$5","v":494.81549999999999},null,null,{"$f":"U143*(1+(U143-$U$11)/U143*$AC$5)","v":479.35769999999997},null,null,null,415.88,null,null,415.88,null,null,415.88,null,null,null,415.88,"London"]
[null,null,null,null,null,null,null,null,null,null,null,null,null,null,null,null,null,null,null,null,366.62,"Bolton",null,0.38550724637681177,{"$f":"U144*Z$5","v":494.93700000000001},null,null,{"$f":"U144*(1+(U144-$U$11)/U144*$AC$5)","v":479.52123},null,null,null,590.19000000000005,null,null,590.19000000000005,null,null,590.19000000000005,null,null,null,590.19000000000005,"London"]
[null,null,null,null,null,null,null,null,null,null,null,null,null,null,null,null,null,null,null,null,367.12,"Stockport",null,0.38840579710144946,{"$f":"U145*Z$5","v":495.61200000000002},null,null,{"$f":"U145*(1+(U145-$U$11)/U145*$AC$5)","v":480.42972999999995},null,null,null,734.12,null,null,734.12,null,null,734.12,null,null,null,734.12,"London"]
[null,null,null,null,null,null,null,null,null,null,null,null,null,null,null,null,null,null,null,null,367.19,"Rochdale",null,0.39130434782608714,{"$f":"U146*Z$5","v":495.70650000000001},null,null,{"$f":"U146*(1+(U146-$U$11)/U146*$AC$5)","v":480.55691999999999},null,null,null,537.45000000000005,null,null,537.45000000000005,null,null,537.45000000000005,null,null,null,537.45000000000005,"London"]
[null,null,null,null,null,null,null,null,null,null,null,null,null,null,null,null,null,null,null,null,367.44,"Bury",null,0.39420289855072482,{"$f":"U147*Z$5","v":496.04400000000004},null,null,{"$f":"U147*(1+(U147-$U$11)/U147*$AC$5)","v":481.01117000000005},null,null,null,400.14,null,null,400.14,null,null,400.14,null,null,null,400.14,"London"]
[null,null,null,null,null,null,null,null,null,null,null,null,null,null,null,null,null,null,null,null,367.71,"Salford",null,0.39710144927536251,{"$f":"U148*Z$5","v":496.4085},null,null,{"$f":"U148*(1+(U148-$U$11)/U148*$AC$5)","v":481.50175999999999},null,null,null,709.82,null,null,709.82,null,null,709.82,null,null,null,709.82,"London"]
[null,null,null,null,null,null,null,null,null,null,null,null,null,null,null,null,null,null,null,null,368.23,"Salford",null,0.40000000000000019,{"$f":"U149*Z$5","v":497.11050000000006},null,null,{"$f":"U149*(1+(U149-$U$11)/U149*$AC$5)","v":482.44659999999999},null,null,null,554.47,null,null,554.47,null,null,554.47,null,null,null,554.47,"London"]
[null,null,null,null,null,null,null,null,null,null,null,null,null,null,null,null,null,null,null,null,368.38,"Tameside",null,0.40289855072463787,{"$f":"U150*Z$5","v":497.31300000000005},null,null,{"$f":"U150*(1+(U150-$U$11)/U150*$AC$5)","v":482.71914999999996},null,null,null,534.72,null,null,534.72,null,null,534.72,null,null,null,534.72,"London"]
[null,null,null,null,null,null,null,null,null,null,null,null,null,null,null,null,null,null,null,null,369.13,"Stockport",null,0.40579710144927555,{"$f":"U151*Z$5","v":498.32550000000003},null,null,{"$f":"U151*(1+(U151-$U$11)/U151*$AC$5)","v":484.08190000000002},null,null,null,462.16,null,null,462.16,null,null,462.16,null,null,null,462.16,"London"]
[null,null,null,null,null,null,null,null,null,null,null,null,null,null,null,null,null,null,null,null,369.98,"Salford",null,0.40869565217391324,{"$f":"U152*Z$5","v":499.47300000000007},null,null,{"$f":"U152*(1+(U152-$U$11)/U152*$AC$5)","v":485.62635},null,null,null,361.9,null,null,361.9,null,null,361.9,null,null,null,361.9,"London"]
[null,null,null,null,null,null,null,null,null,null,null,null,null,null,null,null,null,null,null,null,370.7,"Manchester",null,0.41159420289855092,{"$f":"U153*Z$5","v":500.44499999999999},null,null,{"$f":"U153*(1+(U153-$U$11)/U153*$AC$5)","v":486.9345899999999},null,null,null,397.21,null,null,397.21,null,null,397.21,null,null,null,397.21,"London"]
[null,null,null,null,null,null,null,null,null,null,null,null,null,null,null,null,null,null,null,null,370.74,"Manchester",null,0.4144927536231886,{"$f":"U154*Z$5","v":500.49900000000002},null,null,{"$f":"U154*(1+(U154-$U$11)/U154*$AC$5)","v":487.00726999999995},null,null,null,516.9,null,null,516.9,null,null,516.9,null,null,null,516.9,"London"]
[null,null,null,null,null,null,null,null,null,null,null,null,null,null,null,null,null,null,null,null,373.07,"Salford",null,0.41739130434782629,{"$f":"U155*Z$5","v":503.64450000000005},null,null,{"$f":"U155*(1+(U155-$U$11)/U155*$AC$5)","v":491.24087999999995},null,null,null,498.36,null,null,498.36,null,null,498.36,null,null,null,498.36,"London"]
[null,null,null,null,null,null,null,null,null,null,null,null,null,null,null,null,null,null,null,null,373.8,"Tameside",null,0.42028985507246397,{"$f":"U156*Z$5","v":504.63000000000005},null,null,{"$f":"U156*(1+(U156-$U$11)/U156*$AC$5)","v":492.56729000000001},null,null,null,392.44,null,null,392.44,null,null,392.44,null,null,null,392.44,"London"]
[null,null,null,null,null,null,null,null,null,null,null,null,null,null,null,null,null,null,null,null,374.82,"Salford",null,0.42318840579710165,{"$f":"U157*Z$5","v":506.00700000000001},null,null,{"$f":"U157*(1+(U157-$U$11)/U157*$AC$5)","v":494.42062999999996},null,null,null,724.43,null,null,724.43,null,null,724.43,null,null,null,724.43,"London"]
[null,null,null,null,null,null,null,null,null,null,null,null,null,null,null,null,null,null,null,null,375.83,"Salford",null,0.42608695652173934,{"$f":"U158*Z$5","v":507.37049999999999},null,null,{"$f":"U158*(1+(U158-$U$11)/U158*$AC$5)","v":496.25579999999997},null,null,null,736.07,null,null,736.07,null,null,736.07,null,null,null,736.07,"London"]
[null,null,null,null,null,null,null,null,null,null,null,null,null,null,null,null,null,null,null,null,376.04,"Stockport",null,0.42898550724637702,{"$f":"U159*Z$5","v":507.65400000000005},null,null,{"$f":"U159*(1+(U159-$U$11)/U159*$AC$5)","v":496.63737000000003},null,null,null,816.28,null,null,816.28,null,null,816.28,null,null,null,816.28,"London"]
[null,null,null,null,null,null,null,null,null,null,null,null,null,null,null,null,null,null,null,null,378.3,"Stockport",null,0.4318840579710147,{"$f":"U160*Z$5","v":510.70500000000004},null,null,{"$f":"U160*(1+(U160-$U$11)/U160*$AC$5)","v":500.74378999999999},null,null,null,684.57,null,null,684.57,null,null,684.57,null,null,null,684.57,"London"]
[null,null,null,null,null,null,null,null,null,null,null,null,null,null,null,null,null,null,null,null,378.58,"Tameside",null,0.43478260869565238,{"$f":"U161*Z$5","v":511.08300000000003},null,null,{"$f":"U161*(1+(U161-$U$11)/U161*$AC$5)","v":501.25254999999999},null,null,null,829.22,null,null,829.22,null,null,829.22,null,null,null,829.22,"London"]
[null,null,null,null,null,null,null,null,null,null,null,null,null,null,null,null,null,null,null,null,378.66,"Bury",null,0.43768115942029007,{"$f":"U162*Z$5","v":511.19100000000009},null,null,{"$f":"U162*(1+(U162-$U$11)/U162*$AC$5)","v":501.39791000000002},null,null,null,762.21,null,null,762.21,null,null,762.21,null,null,null,762.21,"London"]
[null,null,null,null,null,null,null,null,null,null,null,null,null,null,null,null,null,null,null,null,378.77,"Tameside",null,0.44057971014492775,{"$f":"U163*Z$5","v":511.33949999999999},null,null,{"$f":"U163*(1+(U163-$U$11)/U163*$AC$5)","v":501.59778},null,null,null,866.29,null,null,866.29,null,null,866.29,null,null,null,866.29,"London"]
[null,null,null,null,null,null,null,null,null,null,null,null,null,null,null,null,null,null,null,null,379.46,"Salford",null,0.44347826086956543,{"$f":"U164*Z$5","v":512.27099999999996},null,null,{"$f":"U164*(1+(U164-$U$11)/U164*$AC$5)","v":502.85150999999996},null,null,null,642.54,null,null,642.54,null,null,642.54,null,null,null,642.54,"London"]
[null,null,null,null,null,null,null,null,null,null,null,null,null,null,null,null,null,null,null,null,380.77,"Salford",null,0.44637681159420312,{"$f":"U165*Z$5","v":514.03949999999998},null,null,{"$f":"U165*(1+(U165-$U$11)/U165*$AC$5)","v":505.2317799999999},null,null,null,579.53,null,null,579.53,null,null,579.53,null,null,null,579.53,"London"]
[null,null,null,null,null,null,null,null,null,null,null,null,null,null,null,null,null,null,null,null,381.37,"Stockport",null,0.4492753623188408,{"$f":"U166*Z$5","v":514.84950000000003},null,null,{"$f":"U166*(1+(U166-$U$11)/U166*$AC$5)","v":506.32198},null,null,null,527.78,null,null,527.78,null,null,527.78,null,null,null,527.78,"London"]
[null,null,null,null,null,null,null,null,null,null,null,null,null,null,null,null,null,null,null,null,382.19,"Trafford",null,0.45217391304347848,{"$f":"U167*Z$5","v":515.95650000000001},null,null,{"$f":"U167*(1+(U167-$U$11)/U167*$AC$5)","v":507.81191999999999},null,null,null,830.82,null,null,830.82,null,null,830.82,null,null,null,830.82,"London"]
[null,null,null,null,null,null,null,null,null,null,null,null,null,null,null,null,null,null,null,null,382.8,"Salford",null,0.45507246376811616,{"$f":"U168*Z$5","v":516.78000000000009},null,null,{"$f":"U168*(1+(U168-$U$11)/U168*$AC$5)","v":508.92028999999997},null,null,null,648.73,null,null,648.73,null,null,648.73,null,null,null,648.73,"London"]
[null,null,null,null,null,null,null,null,null,null,null,null,null,null,null,null,null,null,null,null,382.91,"Tameside",null,0.45797101449275385,{"$f":"U169*Z$5","v":516.9285000000001},null,null,{"$f":"U169*(1+(U169-$U$11)/U169*$AC$5)","v":509.12016000000006},null,null,null,742.04,null,null,742.04,null,null,742.04,null,null,null,742.04,"London"]
[null,null,null,null,null,null,null,null,null,null,null,null,null,null,null,null,null,null,null,null,383.71,"Oldham",null,0.46086956521739153,{"$f":"U170*Z$5","v":518.00850000000003},null,null,{"$f":"U170*(1+(U170-$U$11)/U170*$AC$5)","v":510.57375999999999},null,null,null,722.05,null,null,722.05,null,null,722.05,null,null,null,722.05,"London"]
[null,null,null,null,null,null,null,null,null,null,null,null,null,null,null,null,null,null,null,null,384.07,"Wigan",null,0.46376811594202921,{"$f":"U171*Z$5","v":518.49450000000002},null,null,{"$f":"U171*(1+(U171-$U$11)/U171*$AC$5)","v":511.22787999999991},null,null,null,760.21,null,null,760.21,null,null,760.21,null,null,null,760.21,"London"]
[null,null,null,null,null,null,null,null,null,null,null,null,null,null,null,null,null,null,null,null,384.93,"Wigan",null,0.4666666666666669,{"$f":"U172*Z$5","v":519.65550000000007},null,null,{"$f":"U172*(1+(U172-$U$11)/U172*$AC$5)","v":512.79049999999995},null,null,null,502.14,null,null,502.14,null,null,502.14,null,null,null,502.14,"London"]
[null,null,null,null,null,null,null,null,null,null,null,null,null,null,null,null,null,null,null,null,385.94,"Bolton",null,0.46956521739130458,{"$f":"U173*Z$5","v":521.01900000000001},null,null,{"$f":"U173*(1+(U173-$U$11)/U173*$AC$5)","v":514.62567000000001},null,null,null,479.34,null,null,479.34,null,null,479.34,null,null,null,479.34,"London"]
[null,null,null,null,null,null,null,null,null,null,null,null,null,null,null,null,null,null,null,null,386.36,"Wigan",null,0.47246376811594226,{"$f":"U174*Z$5","v":521.58600000000001},null,null,{"$f":"U174*(1+(U174-$U$11)/U174*$AC$5)","v":515.38881000000003},null,null,null,567.47,null,null,567.47,null,null,567.47,null,null,null,567.47,"London"]
[null,null,null,null,null,null,null,null,null,null,null,null,null,null,null,null,null,null,null,null,386.69,"Bolton",null,0.47536231884057994,{"$f":"U175*Z$5","v":522.03150000000005},null,null,{"$f":"U175*(1+(U175-$U$11)/U175*$AC$5)","v":515.98842000000002},null,null,null,576.41999999999996,null,null,576.41999999999996,null,null,576.41999999999996,null,null,null,576.41999999999996,"London"]
[null,null,null,null,null,null,null,null,null,null,null,null,null,null,null,null,null,null,null,null,387.04,"Wigan",null,0.47826086956521763,{"$f":"U176*Z$5","v":522.50400000000002},null,null,{"$f":"U176*(1+(U176-$U$11)/U176*$AC$5)","v":516.62437},null,null,null,567.39,null,null,567.39,null,null,567.39,null,null,null,567.39,"London"]
[null,null,null,null,null,null,null,null,null,null,null,null,null,null,null,null,null,null,null,null,387.2,"Oldham",null,0.48115942028985531,{"$f":"U177*Z$5","v":522.72},null,null,{"$f":"U177*(1+(U177-$U$11)/U177*$AC$5)","v":516.91508999999996},null,null,null,442.83,null,null,442.83,null,null,442.83,null,null,null,442.83,"London"]
[null,null,null,null,null,null,null,null,null,null,null,null,null,null,null,null,null,null,null,null,387.24,"Tameside",null,0.48405797101449299,{"$f":"U178*Z$5","v":522.774},null,null,{"$f":"U178*(1+(U178-$U$11)/U178*$AC$5)","v":516.98777000000007},null,null,null,472.8,null,null,472.8,null,null,472.8,null,null,null,472.8,"London"]
[null,null,null,null,null,null,null,null,null,null,null,null,null,null,null,null,null,null,null,null,388.13,"Tameside",null,0.48695652173913068,{"$f":"U179*Z$5","v":523.97550000000001},null,null,{"$f":"U179*(1+(U179-$U$11)/U179*$AC$5)","v":518.60490000000004},null,null,null,406.9,null,null,406.9,null,null,406.9,null,null,null,406.9,"London"]
[null,null,null,null,null,null,null,null,null,null,null,null,null,null,null,null,null,null,null,null,388.42,"Trafford",null,0.48985507246376836,{"$f":"U180*Z$5","v":524.36700000000008},null,null,{"$f":"U180*(1+(U180-$U$11)/U180*$AC$5)","v":519.13183000000004},null,null,null,352.37,null,null,352.37,null,null,352.37,null,null,null,352.37,"London"]
[null,null,null,null,null,null,null,null,null,null,null,null,null,null,null,null,null,null,null,null,390.34,"Stockport",null,0.49275362318840604,{"$f":"U181*Z$5","v":526.95899999999995},null,null,{"$f":"U181*(1+(U181-$U$11)/U181*$AC$5)","v":522.62046999999995},null,null,null,533.42999999999995,null,null,533.42999999999995,null,null,533.42999999999995,null,null,null,533.42999999999995,"London"]
[null,null,null,null,null,null,null,null,null,null,null,null,null,null,null,null,null,null,null,null,391.67,"Tameside",null,0.49565217391304373,{"$f":"U182*Z$5","v":528.75450000000001},null,null,{"$f":"U182*(1+(U182-$U$11)/U182*$AC$5)","v":525.03708000000006},null,null,null,379.3,null,null,379.3,null,null,379.3,null,null,null,379.3,"London"]
[null,null,null,null,null,null,null,null,null,null,null,null,null,null,null,null,null,null,null,null,392,"Bolton",null,0.49855072463768141,{"$f":"U183*Z$5","v":529.20000000000005},null,null,{"$f":"U183*(1+(U183-$U$11)/U183*$AC$5)","v":525.63669000000004},null,null,null,671.54,null,null,671.54,null,null,671.54,null,null,null,671.54,"London"]
[null,null,null,null,null,null,null,null,null,null,null,null,null,null,null,null,null,null,null,null,392.21,"Oldham",null,0.50144927536231909,{"$f":"U184*Z$5","v":529.48350000000005},null,null,{"$f":"U184*(1+(U184-$U$11)/U184*$AC$5)","v":526.01825999999994},null,null,null,686.66,null,null,686.66,null,null,686.66,null,null,null,686.66,"London"]
[null,null,null,null,null,null,null,null,null,null,null,null,null,null,null,null,null,null,null,null,392.31,"Salford",null,0.50434782608695672,{"$f":"U185*Z$5","v":529.61850000000004},null,null,{"$f":"U185*(1+(U185-$U$11)/U185*$AC$5)","v":526.19996000000003},null,null,null,608.02,null,null,608.02,null,null,608.02,null,null,null,608.02,"London"]
[null,null,null,null,null,null,null,null,null,null,null,null,null,null,null,null,null,null,null,null,392.46,"Salford",null,0.50724637681159435,{"$f":"U186*Z$5","v":529.82100000000003},null,null,{"$f":"U186*(1+(U186-$U$11)/U186*$AC$5)","v":526.47250999999994},null,null,null,740.41,null,null,740.41,null,null,740.41,null,null,null,740.41,"London"]
[null,null,null,null,null,null,null,null,null,null,null,null,null,null,null,null,null,null,null,null,394.25,"Wigan",null,0.51014492753623197,{"$f":"U187*Z$5","v":532.23750000000007},null,null,{"$f":"U187*(1+(U187-$U$11)/U187*$AC$5)","v":529.72494000000006},null,null,null,487.43,null,null,487.43,null,null,487.43,null,null,null,487.43,"London"]
[null,null,null,null,null,null,null,null,null,null,null,null,null,null,null,null,null,null,null,null,395.72,"Trafford",null,0.5130434782608696,{"$f":"U188*Z$5","v":534.22200000000009},null,null,{"$f":"U188*(1+(U188-$U$11)/U188*$AC$5)","v":532.39593000000002},null,null,null,556.64,null,null,556.64,null,null,556.64,null,null,null,556.64,"London"]
[null,null,null,null,null,null,null,null,null,null,null,null,null,null,null,null,null,null,null,null,396.48,"Oldham",null,0.51594202898550723,{"$f":"U189*Z$5","v":535.24800000000005},null,null,{"$f":"U189*(1+(U189-$U$11)/U189*$AC$5)","v":533.77685000000008},null,null,null,575.94000000000005,null,null,575.94000000000005,null,null,575.94000000000005,null,null,null,575.94000000000005,"London"]
[null,null,null,null,null,null,null,null,null,null,null,null,null,null,null,null,null,null,null,null,397.38,"Oldham",null,0.51884057971014486,{"$f":"U190*Z$5","v":536.46300000000008},null,null,{"$f":"U190*(1+(U190-$U$11)/U190*$AC$5)","v":535.41215},null,null,null,860.33,null,null,860.33,null,null,860.33,null,null,null,860.33,"London"]
[null,null,null,null,null,null,null,null,null,null,null,null,null,null,null,null,null,null,null,null,399.24,"Bolton",null,0.52173913043478248,{"$f":"U191*Z$5","v":538.97400000000005},null,null,{"$f":"U191*(1+(U191-$U$11)/U191*$AC$5)","v":538.79176999999993},null,null,null,632.51,null,null,632.51,null,null,632.51,null,null,null,632.51,"London"]
[null,null,null,null,null,null,null,null,null,null,null,null,null,null,null,null,null,null,null,null,399.3,"Salford",null,0.52463768115942011,{"$f":"U192*Z$5","v":539.05500000000006},null,null,{"$f":"U192*(1+(U192-$U$11)/U192*$AC$5)","v":538.90078999999992},null,null,null,489.93,null,null,489.93,null,null,489.93,null,null,null,489.93,"London"]
[null,null,null,null,null,null,null,null,null,null,null,null,null,null,null,null,null,null,null,null,400,"Wigan",null,0.52753623188405774,{"$f":"U193*Z$5","v":540},null,null,{"$f":"U193*(1+(U193-$U$11)/U193*$AC$5)","v":540.17268999999999},null,null,null,415.39,null,null,415.39,null,null,415.39,null,null,null,415.39,"London"]
[null,null,null,null,null,null,null,null,null,null,null,null,null,null,null,null,null,null,null,null,400.01,"Bury",null,0.53043478260869537,{"$f":"U194*Z$5","v":540.01350000000002},null,null,{"$f":"U194*(1+(U194-$U$11)/U194*$AC$5)","v":540.19086000000004},null,null,null,738.85,null,null,738.85,null,null,738.85,null,null,null,738.85,"London"]
[null,null,null,null,null,null,null,null,null,null,null,null,null,null,null,null,null,null,null,null,401.45,"Bolton",null,0.53333333333333299,{"$f":"U195*Z$5","v":541.95749999999998},null,null,{"$f":"U195*(1+(U195-$U$11)/U195*$AC$5)","v":542.80733999999995},null,null,null,394.2,null,null,394.2,null,null,394.2,null,null,null,394.2,"London"]
[null,null,null,null,null,null,null,null,null,null,null,null,null,null,null,null,null,null,null,null,402.51,"Stockport",null,0.53623188405797062,{"$f":"U196*Z$5","v":543.38850000000002},null,null,{"$f":"U196*(1+(U196-$U$11)/U196*$AC$5)","v":544.73335999999995},null,null,null,588.54999999999995,null,null,588.54999999999995,null,null,588.54999999999995,null,null,null,588.54999999999995,"London"]
[null,null,null,null,null,null,null,null,null,null,null,null,null,null,null,null,null,null,null,null,402.56,"Rochdale",null,0.53913043478260825,{"$f":"U197*Z$5","v":543.45600000000002},null,null,{"$f":"U197*(1+(U197-$U$11)/U197*$AC$5)","v":544.82420999999999},null,null,null,560.16999999999996,null,null,560.16999999999996,null,null,560.16999999999996,null,null,null,560.16999999999996,"London"]
[null,null,null,null,null,null,null,null,null,null,null,null,null,null,null,null,null,null,null,null,402.88,"Oldham",null,0.54202898550724588,{"$f":"U198*Z$5","v":543.88800000000003},null,null,{"$f":"U198*(1+(U198-$U$11)/U198*$AC$5)","v":545.40564999999992},null,null,null,563.23,null,null,563.23,null,null,563.23,null,null,null,563.23,"London"]
[null,null,null,null,null,null,null,null,null,null,null,null,null,null,null,null,null,null,null,null,403.39,"Bury",null,0.5449275362318835,{"$f":"U199*Z$5","v":544.57650000000001},null,null,{"$f":"U199*(1+(U199-$U$11)/U199*$AC$5)","v":546.33231999999998},null,null,null,573.75,null,null,573.75,null,null,573.75,null,null,null,573.75,"London"]
[null,null,null,null,null,null,null,null,null,null,null,null,null,null,null,null,null,null,null,null,404.7,"Manchester",null,0.54782608695652113,{"$f":"U200*Z$5","v":546.34500000000003},null,null,{"$f":"U200*(1+(U200-$U$11)/U200*$AC$5)","v":548.71258999999998},null,null,null,594.04,null,null,594.04,null,null,594.04,null,null,null,594.04,"London"]
[null,null,null,null,null,null,null,null,null,null,null,null,null,null,null,null,null,null,null,null,404.75,"Trafford",null,0.55072463768115876,{"$f":"U201*Z$5","v":546.41250000000002},null,null,{"$f":"U201*(1+(U201-$U$11)/U201*$AC$5)","v":548.80343999999991},null,null,null,580.12,null,null,580.12,null,null,580.12,null,null,null,580.12,"London"]
[null,null,null,null,null,null,null,null,null,null,null,null,null,null,null,null,null,null,null,null,405.07,"Wigan",null,0.55362318840579638,{"$f":"U202*Z$5","v":546.84450000000004},null,null,{"$f":"U202*(1+(U202-$U$11)/U202*$AC$5)","v":549.38487999999995},null,null,null,421.82,null,null,421.82,null,null,421.82,null,null,null,421.82,"London"]
[null,null,null,null,null,null,null,null,null,null,null,null,null,null,null,null,null,null,null,null,405.56,"Bury",null,0.55652173913043401,{"$f":"U203*Z$5","v":547.50600000000009},null,null,{"$f":"U203*(1+(U203-$U$11)/U203*$AC$5)","v":550.27521000000002},null,null,null,519.78,null,null,519.78,null,null,519.78,null,null,null,519.78,"London"]
[null,null,null,null,null,null,null,null,null,null,null,null,null,null,null,null,null,null,null,null,406.69,"Salford",null,0.55942028985507164,{"$f":"U204*Z$5","v":549.03150000000005},null,null,{"$f":"U204*(1+(U204-$U$11)/U204*$AC$5)","v":552.32841999999994},null,null,null,519.24,null,null,{"$f":"AF204","v":519.24},null,null,{"$f":"AF204","v":519.24},null,null,null,519.24,"London"]
[null,null,null,null,null,null,null,null,null,null,null,null,null,null,null,null,null,null,null,null,408.95,"Wigan",null,{"$f":"X204+1/(COUNT($Y$11:$Y$356)-1)","v":0.56231884057970927},{"$f":"U205*Z$5","v":552.08249999999998},null,null,{"$f":"U205*(1+(U205-$U$11)/U205*$AC$5)","v":556.43483999999989},null,null,null,528.98,null,null,528.98,null,null,528.98,null,null,null,528.98,"London"]
[null,null,null,null,null,null,null,null,null,null,null,null,null,null,null,null,null,null,null,null,409.36,"Oldham",null,0.56521739130434689,{"$f":"U206*Z$5","v":552.63600000000008},null,null,{"$f":"U206*(1+(U206-$U$11)/U206*$AC$5)","v":557.17980999999997},null,null,null,478.94,null,null,478.94,null,null,478.94,null,null,null,478.94,"London"]
[null,null,null,null,null,null,null,null,null,null,null,null,null,null,null,null,null,null,null,null,409.74,"Bury",null,0.56811594202898452,{"$f":"U207*Z$5","v":553.149},null,null,{"$f":"U207*(1+(U207-$U$11)/U207*$AC$5)","v":557.87027},null,null,null,609.45000000000005,null,null,609.45000000000005,null,null,609.45000000000005,null,null,null,609.45000000000005,"London"]
[null,null,null,null,null,null,null,null,null,null,null,null,null,null,null,null,null,null,null,null,411.18,"Rochdale",null,0.57101449275362215,{"$f":"U208*Z$5","v":555.09300000000007},null,null,{"$f":"U208*(1+(U208-$U$11)/U208*$AC$5)","v":560.48674999999992},null,null,null,450.75,null,null,450.75,null,null,450.75,null,null,null,450.75,"London"]
[null,null,null,null,null,null,null,null,null,null,null,null,null,null,null,null,null,null,null,null,412.07,"Bury",null,0.57391304347825978,{"$f":"U209*Z$5","v":556.29449999999997},null,null,{"$f":"U209*(1+(U209-$U$11)/U209*$AC$5)","v":562.10388},null,null,null,350.48,null,null,350.48,null,null,350.48,null,null,null,350.48,"London"]
[null,null,null,null,null,null,null,null,null,null,null,null,null,null,null,null,null,null,null,null,412.09,"Trafford",null,0.5768115942028974,{"$f":"U210*Z$5","v":556.32150000000001},null,null,{"$f":"U210*(1+(U210-$U$11)/U210*$AC$5)","v":562.14021999999989},null,null,null,414.19,null,null,414.19,null,null,414.19,null,null,null,414.19,"London"]
[null,null,null,null,null,null,null,null,null,null,null,null,null,null,null,null,null,null,null,null,412.27,"Bury",null,0.57971014492753503,{"$f":"U211*Z$5","v":556.56450000000007},null,null,{"$f":"U211*(1+(U211-$U$11)/U211*$AC$5)","v":562.46727999999996},null,null,null,470.21,null,null,470.21,null,null,470.21,null,null,null,470.21,"London"]
[null,null,null,null,null,null,null,null,null,null,null,null,null,null,null,null,null,null,null,null,412.64,"Trafford",null,0.58260869565217266,{"$f":"U212*Z$5","v":557.06399999999996},null,null,{"$f":"U212*(1+(U212-$U$11)/U212*$AC$5)","v":563.13957000000005},null,null,null,503.13,null,null,503.13,null,null,503.13,null,null,null,503.13,"London"]
[null,null,null,null,null,null,null,null,null,null,null,null,null,null,null,null,null,null,null,null,412.92,"Oldham",null,0.58550724637681029,{"$f":"U213*Z$5","v":557.44200000000001},null,null,{"$f":"U213*(1+(U213-$U$11)/U213*$AC$5)","v":563.64832999999999},null,null,null,606.75,null,null,606.75,null,null,606.75,null,null,null,606.75,"London"]
[null,null,null,null,null,null,null,null,null,null,null,null,null,null,null,null,null,null,null,null,413.18,"Wigan",null,0.58840579710144791,{"$f":"U214*Z$5","v":557.79300000000001},null,null,{"$f":"U214*(1+(U214-$U$11)/U214*$AC$5)","v":564.12075000000004},null,null,null,580.30999999999995,null,null,580.30999999999995,null,null,580.30999999999995,null,null,null,580.30999999999995,"London"]
[null,null,null,null,null,null,null,null,null,null,null,null,null,null,null,null,null,null,null,null,413.61,"Stockport",null,0.59130434782608554,{"$f":"U215*Z$5","v":558.37350000000004},null,null,{"$f":"U215*(1+(U215-$U$11)/U215*$AC$5)","v":564.90206000000001},null,null,null,727.82,null,null,727.82,null,null,727.82,null,null,null,727.82,"London"]
[null,null,null,null,null,null,null,null,null,null,null,null,null,null,null,null,null,null,null,null,413.89,"Rochdale",null,0.59420289855072317,{"$f":"U216*Z$5","v":558.75149999999996},null,null,{"$f":"U216*(1+(U216-$U$11)/U216*$AC$5)","v":565.41081999999994},null,null,null,480.94,null,null,480.94,null,null,480.94,null,null,null,480.94,"London"]
[null,null,null,null,null,null,null,null,null,null,null,null,null,null,null,null,null,null,null,null,413.93,"Stockport",null,0.5971014492753608,{"$f":"U217*Z$5","v":558.80550000000005},null,null,{"$f":"U217*(1+(U217-$U$11)/U217*$AC$5)","v":565.48350000000005},null,null,null,585.66999999999996,null,null,585.66999999999996,null,null,585.66999999999996,null,null,null,585.66999999999996,"London"]
[null,null,null,null,null,null,null,null,null,null,null,null,null,null,null,null,null,null,null,null,414.4,"Wigan",null,0.59999999999999842,{"$f":"U218*Z$5","v":559.44000000000005},null,null,{"$f":"U218*(1+(U218-$U$11)/U218*$AC$5)","v":566.33749},null,null,null,469.24,null,null,469.24,null,null,469.24,null,null,null,469.24,"London"]
[null,null,null,null,null,null,null,null,null,null,null,null,null,null,null,null,null,null,null,null,415.51,"Manchester",null,0.60289855072463605,{"$f":"U219*Z$5","v":560.93849999999998},null,null,{"$f":"U219*(1+(U219-$U$11)/U219*$AC$5)","v":568.35435999999993},null,null,null,619.33000000000004,null,null,619.33000000000004,null,null,619.33000000000004,null,null,null,619.33000000000004,"London"]
[null,null,null,null,null,null,null,null,null,null,null,null,null,null,null,null,null,null,null,null,415.75,"Oldham",null,0.60579710144927368,{"$f":"U220*Z$5","v":561.26250000000005},null,null,{"$f":"U220*(1+(U220-$U$11)/U220*$AC$5)","v":568.79043999999999},null,null,null,569.74,null,null,569.74,null,null,569.74,null,null,null,569.74,"London"]
[null,null,null,null,null,null,null,null,null,null,null,null,null,null,null,null,null,null,null,null,416.34,"Stockport",null,0.60869565217391131,{"$f":"U221*Z$5","v":562.05899999999997},null,null,{"$f":"U221*(1+(U221-$U$11)/U221*$AC$5)","v":569.86247000000003},null,null,null,630.54,null,null,630.54,null,null,630.54,null,null,null,630.54,"London"]
[null,null,null,null,null,null,null,null,null,null,null,null,null,null,null,null,null,null,null,null,416.49,"Rochdale",null,0.61159420289854893,{"$f":"U222*Z$5","v":562.26150000000007},null,null,{"$f":"U222*(1+(U222-$U$11)/U222*$AC$5)","v":570.13502000000005},null,null,null,667.12,null,null,667.12,null,null,667.12,null,null,null,667.12,"London"]
[null,null,null,null,null,null,null,null,null,null,null,null,null,null,null,null,null,null,null,null,417.09,"Bolton",null,0.61449275362318656,{"$f":"U223*Z$5","v":563.07150000000001},null,null,{"$f":"U223*(1+(U223-$U$11)/U223*$AC$5)","v":571.22521999999992},null,null,null,558.92999999999995,null,null,558.92999999999995,null,null,558.92999999999995,null,null,null,558.92999999999995,"London"]
[null,null,null,null,null,null,null,null,null,null,null,null,null,null,null,null,null,null,null,null,417.37,"Tameside",null,0.61739130434782419,{"$f":"U224*Z$5","v":563.44950000000006},null,null,{"$f":"U224*(1+(U224-$U$11)/U224*$AC$5)","v":571.73397999999997},null,null,null,468.57,null,null,468.57,null,null,468.57,null,null,null,468.57,"London"]
[null,null,null,null,null,null,null,null,null,null,null,null,null,null,null,null,null,null,null,null,420.79,"Stockport",null,0.62028985507246182,{"$f":"U225*Z$5","v":568.06650000000002},null,null,{"$f":"U225*(1+(U225-$U$11)/U225*$AC$5)","v":577.94812000000002},null,null,null,602.82000000000005,null,null,602.82000000000005,null,null,602.82000000000005,null,null,null,602.82000000000005,"London"]
[null,null,null,null,null,null,null,null,null,null,null,null,null,null,null,null,null,null,null,null,421.22,"Wigan",null,0.62318840579709944,{"$f":"U226*Z$5","v":568.64700000000005},null,null,{"$f":"U226*(1+(U226-$U$11)/U226*$AC$5)","v":578.72942999999998},null,null,null,452.81,null,null,452.81,null,null,452.81,null,null,null,452.81,"London"]
[null,null,null,null,null,null,null,null,null,null,null,null,null,null,null,null,null,null,null,null,421.59,"Manchester",null,0.62608695652173707,{"$f":"U227*Z$5","v":569.14650000000006},null,null,{"$f":"U227*(1+(U227-$U$11)/U227*$AC$5)","v":579.40171999999995},null,null,null,668.66,null,null,668.66,null,null,668.66,null,null,null,668.66,"London"]
[null,null,null,null,null,null,null,null,null,null,null,null,null,null,null,null,null,null,null,null,421.9,"Bolton",null,0.6289855072463747,{"$f":"U228*Z$5","v":569.56500000000005},null,null,{"$f":"U228*(1+(U228-$U$11)/U228*$AC$5)","v":579.96498999999994},null,null,null,551.94000000000005,null,null,551.94000000000005,null,null,551.94000000000005,null,null,null,551.94000000000005,"London"]
[null,null,null,null,null,null,null,null,null,null,null,null,null,null,null,null,null,null,null,null,422.59,"Trafford",null,0.63188405797101233,{"$f":"U229*Z$5","v":570.49649999999997},null,null,{"$f":"U229*(1+(U229-$U$11)/U229*$AC$5)","v":581.21871999999996},null,null,null,580.99,null,null,580.99,null,null,580.99,null,null,null,580.99,"London"]
[null,null,null,null,null,null,null,null,null,null,null,null,null,null,null,null,null,null,null,null,424.02,"Bury",null,0.63478260869564995,{"$f":"U230*Z$5","v":572.42700000000002},null,null,{"$f":"U230*(1+(U230-$U$11)/U230*$AC$5)","v":583.81702999999993},null,null,null,586.15,null,null,586.15,null,null,586.15,null,null,null,586.15,"London"]
[null,null,null,null,null,null,null,null,null,null,null,null,null,null,null,null,null,null,null,null,424.6,"Tameside",null,0.63768115942028758,{"$f":"U231*Z$5","v":573.21},null,null,{"$f":"U231*(1+(U231-$U$11)/U231*$AC$5)","v":584.87089000000003},null,null,null,527.67999999999995,null,null,527.67999999999995,null,null,527.67999999999995,null,null,null,527.67999999999995,"London"]
[null,null,null,null,null,null,null,null,null,null,null,null,null,null,null,null,null,null,null,null,426.24,"Wigan",null,0.64057971014492521,{"$f":"U232*Z$5","v":575.42400000000009},null,null,{"$f":"U232*(1+(U232-$U$11)/U232*$AC$5)","v":587.85077000000001},null,null,null,457.52,null,null,457.52,null,null,457.52,null,null,null,457.52,"London"]
[null,null,null,null,null,null,null,null,null,null,null,null,null,null,null,null,null,null,null,null,427.78,"Bolton",null,0.64347826086956283,{"$f":"U233*Z$5","v":577.50300000000004},null,null,{"$f":"U233*(1+(U233-$U$11)/U233*$AC$5)","v":590.64895000000001},null,null,null,533.98,null,null,533.98,null,null,533.98,null,null,null,533.98,"London"]
[null,null,null,null,null,null,null,null,null,null,null,null,null,null,null,null,null,null,null,null,428.41,"Wigan",null,0.64637681159420046,{"$f":"U234*Z$5","v":578.35350000000005},null,null,{"$f":"U234*(1+(U234-$U$11)/U234*$AC$5)","v":591.79365999999993},null,null,null,511.18,null,null,511.18,null,null,511.18,null,null,null,511.18,"London"]
[null,null,null,null,null,null,null,null,null,null,null,null,null,null,null,null,null,null,null,null,429.51,"Tameside",null,0.64927536231883809,{"$f":"U235*Z$5","v":579.83850000000007},null,null,{"$f":"U235*(1+(U235-$U$11)/U235*$AC$5)","v":593.79236000000003},null,null,null,455.82,null,null,455.82,null,null,455.82,null,null,null,455.82,"London"]
[null,null,null,null,null,null,null,null,null,null,null,null,null,null,null,null,null,null,null,null,430.58,"Oldham",null,0.65217391304347572,{"$f":"U236*Z$5","v":581.28300000000002},null,null,{"$f":"U236*(1+(U236-$U$11)/U236*$AC$5)","v":595.73654999999997},null,null,null,442.57,null,null,442.57,null,null,442.57,null,null,null,442.57,"London"]
[null,null,null,null,null,null,null,null,null,null,null,null,null,null,null,null,null,null,null,null,430.83,"Oldham",null,0.65507246376811334,{"$f":"U237*Z$5","v":581.62049999999999},null,null,{"$f":"U237*(1+(U237-$U$11)/U237*$AC$5)","v":596.19079999999997},null,null,null,457.5,null,null,457.5,null,null,457.5,null,null,null,457.5,"London"]
[null,null,null,null,null,null,null,null,null,null,null,null,null,null,null,null,null,null,null,null,431.42,"Tameside",null,0.65797101449275097,{"$f":"U238*Z$5","v":582.41700000000003},null,null,{"$f":"U238*(1+(U238-$U$11)/U238*$AC$5)","v":597.26282999999989},null,null,null,506.84,null,null,506.84,null,null,506.84,null,null,null,506.84,"London"]
[null,null,null,null,null,null,null,null,null,null,null,null,null,null,null,null,null,null,null,null,432.31,"Salford",null,0.6608695652173886,{"$f":"U239*Z$5","v":583.61850000000004},null,null,{"$f":"U239*(1+(U239-$U$11)/U239*$AC$5)","v":598.87995999999998},null,null,null,407.37,null,null,407.37,null,null,407.37,null,null,null,407.37,"London"]
[null,null,null,null,null,null,null,null,null,null,null,null,null,null,null,null,null,null,null,null,432.8,"Tameside",null,0.66376811594202623,{"$f":"U240*Z$5","v":584.28000000000009},null,null,{"$f":"U240*(1+(U240-$U$11)/U240*$AC$5)","v":599.77029000000005},null,null,null,546.61,null,null,546.61,null,null,546.61,null,null,null,546.61,"London"]
[null,null,null,null,null,null,null,null,null,null,null,null,null,null,null,null,null,null,null,null,432.97,"Stockport",null,0.66666666666666385,{"$f":"U241*Z$5","v":584.50950000000012},null,null,{"$f":"U241*(1+(U241-$U$11)/U241*$AC$5)","v":600.07918000000006},null,null,null,418.61,null,null,418.61,null,null,418.61,null,null,null,418.61,"London"]
[null,null,null,null,null,null,null,null,null,null,null,null,null,null,null,null,null,null,null,null,433.03,"Trafford",null,0.66956521739130148,{"$f":"U242*Z$5","v":584.59050000000002},null,null,{"$f":"U242*(1+(U242-$U$11)/U242*$AC$5)","v":600.18819999999994},null,null,null,425.61,null,null,425.61,null,null,425.61,null,null,null,425.61,"London"]
[null,null,null,null,null,null,null,null,null,null,null,null,null,null,null,null,null,null,null,null,433.4,"Manchester",null,0.67246376811593911,{"$f":"U243*Z$5","v":585.09},null,null,{"$f":"U243*(1+(U243-$U$11)/U243*$AC$5)","v":600.86048999999991},null,null,null,378.02,null,null,378.02,null,null,378.02,null,null,null,378.02,"London"]
[null,null,null,null,null,null,null,null,null,null,null,null,null,null,null,null,null,null,null,null,434.1,"Manchester",null,0.67536231884057674,{"$f":"U244*Z$5","v":586.03500000000008},null,null,{"$f":"U244*(1+(U244-$U$11)/U244*$AC$5)","v":602.13238999999999},null,null,null,398.39,null,null,398.39,null,null,398.39,null,null,null,398.39,"London"]
[null,null,null,null,null,null,null,null,null,null,null,null,null,null,null,null,null,null,null,null,434.8,"Tameside",null,0.67826086956521436,{"$f":"U245*Z$5","v":586.98},null,null,{"$f":"U245*(1+(U245-$U$11)/U245*$AC$5)","v":603.40428999999995},null,null,null,337,null,null,337,null,null,337,null,null,null,337,"London"]
[null,null,null,null,null,null,null,null,null,null,null,null,null,null,null,null,null,null,null,null,434.83,"Rochdale",null,0.68115942028985199,{"$f":"U246*Z$5","v":587.02049999999997},null,null,{"$f":"U246*(1+(U246-$U$11)/U246*$AC$5)","v":603.4588},null,null,null,371.5,null,null,371.5,null,null,371.5,null,null,null,371.5,"London"]
[null,null,null,null,null,null,null,null,null,null,null,null,null,null,null,null,null,null,null,null,435.29,"Wigan",null,0.68405797101448962,{"$f":"U247*Z$5","v":587.64150000000006},null,null,{"$f":"U247*(1+(U247-$U$11)/U247*$AC$5)","v":604.29462000000001},null,null,null,336.99,null,null,336.99,null,null,336.99,null,null,null,336.99,"London"]
[null,null,null,null,null,null,null,null,null,null,null,null,null,null,null,null,null,null,null,null,435.38,"Trafford",null,0.68695652173912725,{"$f":"U248*Z$5","v":587.76300000000003},null,null,{"$f":"U248*(1+(U248-$U$11)/U248*$AC$5)","v":604.45814999999993},null,null,null,330.74,null,null,330.74,null,null,330.74,null,null,null,330.74,"London"]
[null,null,null,null,null,null,null,null,null,null,null,null,null,null,null,null,null,null,null,null,435.45,"Trafford",null,0.68985507246376487,{"$f":"U249*Z$5","v":587.85750000000007},null,null,{"$f":"U249*(1+(U249-$U$11)/U249*$AC$5)","v":604.58533999999997},null,null,null,373.8,null,null,373.8,null,null,373.8,null,null,null,373.8,"London"]
[null,null,null,null,null,null,null,null,null,null,null,null,null,null,null,null,null,null,null,null,436.57,"Bury",null,0.6927536231884025,{"$f":"U250*Z$5","v":589.36950000000002},null,null,{"$f":"U250*(1+(U250-$U$11)/U250*$AC$5)","v":606.62037999999995},null,null,null,408.32,null,null,408.32,null,null,408.32,null,null,null,408.32,"London"]
[null,null,null,null,null,null,null,null,null,null,null,null,null,null,null,null,null,null,null,null,436.57,"Stockport",null,0.69565217391304013,{"$f":"U251*Z$5","v":589.36950000000002},null,null,{"$f":"U251*(1+(U251-$U$11)/U251*$AC$5)","v":606.62037999999995},null,null,null,336.78,null,null,336.78,null,null,336.78,null,null,null,336.78,"London"]
[null,null,null,null,null,null,null,null,null,null,null,null,null,null,null,null,null,null,null,null,437.73,"Stockport",null,0.69855072463767776,{"$f":"U252*Z$5","v":590.93550000000005},null,null,{"$f":"U252*(1+(U252-$U$11)/U252*$AC$5)","v":608.72810000000004},null,null,null,430.49,null,null,430.49,null,null,430.49,null,null,null,430.49,"London"]
[null,null,null,null,null,null,null,null,null,null,null,null,null,null,null,null,null,null,null,null,437.8,"Wigan",null,0.70144927536231538,{"$f":"U253*Z$5","v":591.03000000000009},null,null,{"$f":"U253*(1+(U253-$U$11)/U253*$AC$5)","v":608.85528999999997},null,null,null,371.72,null,null,371.72,null,null,371.72,null,null,null,371.72,"London"]
[null,null,null,null,null,null,null,null,null,null,null,null,null,null,null,null,null,null,null,null,438.36,"Oldham",null,0.70434782608695301,{"$f":"U254*Z$5","v":591.78600000000006},null,null,{"$f":"U254*(1+(U254-$U$11)/U254*$AC$5)","v":609.87280999999996},null,null,null,359.12,null,null,359.12,null,null,359.12,null,null,null,359.12,"London"]
[null,null,null,null,null,null,null,null,null,null,null,null,null,null,null,null,null,null,null,null,438.52,"Tameside",null,0.70724637681159064,{"$f":"U255*Z$5","v":592.00200000000007},null,null,{"$f":"U255*(1+(U255-$U$11)/U255*$AC$5)","v":610.16353000000004},null,null,null,433.52,null,null,433.52,null,null,433.52,null,null,null,433.52,"London"]
[null,null,null,null,null,null,null,null,null,null,null,null,null,null,null,null,null,null,null,null,440.14,"Wigan",null,0.71014492753622827,{"$f":"U256*Z$5","v":594.18899999999996},null,null,{"$f":"U256*(1+(U256-$U$11)/U256*$AC$5)","v":613.10706999999991},null,null,null,406.12,null,null,406.12,null,null,406.12,null,null,null,406.12,"London"]
[null,null,null,null,null,null,null,null,null,null,null,null,null,null,null,null,null,null,null,null,441.79,"Salford",null,0.71304347826086589,{"$f":"U257*Z$5","v":596.41650000000004},null,null,{"$f":"U257*(1+(U257-$U$11)/U257*$AC$5)","v":616.10512000000006},null,null,null,337.49,null,null,337.49,null,null,337.49,null,null,null,337.49,"London"]
[null,null,null,null,null,null,null,null,null,null,null,null,null,null,null,null,null,null,null,null,442.79,"Tameside",null,0.71594202898550352,{"$f":"U258*Z$5","v":597.76650000000006},null,null,{"$f":"U258*(1+(U258-$U$11)/U258*$AC$5)","v":617.92212000000006},null,null,null,372.39,null,null,372.39,null,null,372.39,null,null,null,372.39,"London"]
[null,null,null,null,null,null,null,null,null,null,null,null,null,null,null,null,null,null,null,null,446.1,"Trafford",null,0.71884057971014115,{"$f":"U259*Z$5","v":602.23500000000001},null,null,{"$f":"U259*(1+(U259-$U$11)/U259*$AC$5)","v":623.93638999999996},null,null,null,395.05,null,null,395.05,null,null,395.05,null,null,null,395.05,"London"]
[null,null,null,null,null,null,null,null,null,null,null,null,null,null,null,null,null,null,null,null,446.56,"Salford",null,0.72173913043477878,{"$f":"U260*Z$5","v":602.85599999999999},null,null,{"$f":"U260*(1+(U260-$U$11)/U260*$AC$5)","v":624.77220999999997},null,null,null,359.43,null,null,359.43,null,null,359.43,null,null,null,359.43,"London"]
[null,null,null,null,null,null,null,null,null,null,null,null,null,null,null,null,null,null,null,null,447.5,"Rochdale",null,0.7246376811594164,{"$f":"U261*Z$5","v":604.125},null,null,{"$f":"U261*(1+(U261-$U$11)/U261*$AC$5)","v":626.48018999999999},null,null,null,352.63,null,null,352.63,null,null,352.63,null,null,null,352.63,"London"]
[null,null,null,null,null,null,null,null,null,null,null,null,null,null,null,null,null,null,null,null,449.51,"Bolton",null,0.72753623188405403,{"$f":"U262*Z$5","v":606.83850000000007},null,null,{"$f":"U262*(1+(U262-$U$11)/U262*$AC$5)","v":630.13235999999995},null,null,null,318.58999999999997,null,null,318.58999999999997,null,null,318.58999999999997,null,null,null,318.58999999999997,"London"]
[null,null,null,null,null,null,null,null,null,null,null,null,null,null,null,null,null,null,null,null,450.79,"Bury",null,0.73043478260869166,{"$f":"U263*Z$5","v":608.56650000000002},null,null,{"$f":"U263*(1+(U263-$U$11)/U263*$AC$5)","v":632.45812000000001},null,null,null,381.93,null,null,381.93,null,null,381.93,null,null,null,381.93,"London"]
[null,null,null,null,null,null,null,null,null,null,null,null,null,null,null,null,null,null,null,null,451.03,"Stockport",null,0.73333333333332928,{"$f":"U264*Z$5","v":608.89049999999997},null,null,{"$f":"U264*(1+(U264-$U$11)/U264*$AC$5)","v":632.89419999999996},null,null,null,360.69,null,null,360.69,null,null,360.69,null,null,null,360.69,"London"]
[null,null,null,null,null,null,null,null,null,null,null,null,null,null,null,null,null,null,null,null,452.64,"Stockport",null,0.73623188405796691,{"$f":"U265*Z$5","v":611.06400000000008},null,null,{"$f":"U265*(1+(U265-$U$11)/U265*$AC$5)","v":635.81957},null,null,null,346.98,null,null,346.98,null,null,346.98,null,null,null,346.98,"London"]
[null,null,null,null,null,null,null,null,null,null,null,null,null,null,null,null,null,null,null,null,452.93,"Bolton",null,0.73913043478260454,{"$f":"U266*Z$5","v":611.45550000000003},null,null,{"$f":"U266*(1+(U266-$U$11)/U266*$AC$5)","v":636.34649999999999},null,null,null,346.56,null,null,346.56,null,null,346.56,null,null,null,346.56,"London"]
[null,null,null,null,null,null,null,null,null,null,null,null,null,null,null,null,null,null,null,null,455.59,"Rochdale",null,0.74202898550724217,{"$f":"U267*Z$5","v":615.04650000000004},null,null,{"$f":"U267*(1+(U267-$U$11)/U267*$AC$5)","v":641.17971999999986},null,null,null,379.63,null,null,379.63,null,null,379.63,null,null,null,379.63,"London"]
[null,null,null,null,null,null,null,null,null,null,null,null,null,null,null,null,null,null,null,null,456.22,"Manchester",null,0.74492753623187979,{"$f":"U268*Z$5","v":615.89700000000005},null,null,{"$f":"U268*(1+(U268-$U$11)/U268*$AC$5)","v":642.32443000000012},null,null,null,404.09,null,null,{"$f":"AF268","v":404.09},null,null,{"$f":"AF268","v":404.09},null,null,null,404.09,"London"]
[null,null,null,null,null,null,null,null,null,null,null,null,null,null,null,null,null,null,null,null,456.3,"Tameside",null,{"$f":"X268+1/(COUNT($Y$11:$Y$356)-1)","v":0.74782608695651742},{"$f":"U269*Z$5","v":616.00500000000011},null,null,{"$f":"U269*(1+(U269-$U$11)/U269*$AC$5)","v":642.46978999999999},null,null,null,353.24,null,null,353.24,null,null,353.24,null,null,null,353.24,"London"]
[null,null,null,null,null,null,null,null,null,null,null,null,null,null,null,null,null,null,null,null,456.88,"Stockport",null,0.75072463768115505,{"$f":"U270*Z$5","v":616.78800000000001},null,null,{"$f":"U270*(1+(U270-$U$11)/U270*$AC$5)","v":643.52364999999998},null,null,null,373.44,null,null,373.44,null,null,373.44,null,null,null,373.44,"London"]
[null,null,null,null,null,null,null,null,null,null,null,null,null,null,null,null,null,null,null,null,459.1,"Oldham",null,0.75362318840579268,{"$f":"U271*Z$5","v":619.78500000000008},null,null,{"$f":"U271*(1+(U271-$U$11)/U271*$AC$5)","v":647.55739000000005},null,null,null,380,null,null,380,null,null,380,null,null,null,380,"London"]
[null,null,null,null,null,null,null,null,null,null,null,null,null,null,null,null,null,null,null,null,460.14,"Wigan",null,0.7565217391304303,{"$f":"U272*Z$5","v":621.18900000000008},null,null,{"$f":"U272*(1+(U272-$U$11)/U272*$AC$5)","v":649.44706999999994},null,null,null,367.1,null,null,367.1,null,null,367.1,null,null,null,367.1,"London"]
[null,null,null,null,null,null,null,null,null,null,null,null,null,null,null,null,null,null,null,null,460.69,"Stockport",null,0.75942028985506793,{"$f":"U273*Z$5","v":621.93150000000003},null,null,{"$f":"U273*(1+(U273-$U$11)/U273*$AC$5)","v":650.44641999999999},null,null,null,328.46,null,null,328.46,null,null,328.46,null,null,null,328.46,"London"]
[null,null,null,null,null,null,null,null,null,null,null,null,null,null,null,null,null,null,null,null,464.26,"Manchester",null,0.76231884057970556,{"$f":"U274*Z$5","v":626.75099999999998},null,null,{"$f":"U274*(1+(U274-$U$11)/U274*$AC$5)","v":656.93310999999994},null,null,null,370.11,null,null,370.11,null,null,370.11,null,null,null,370.11,"London"]
[null,null,null,null,null,null,null,null,null,null,null,null,null,null,null,null,null,null,null,null,464.52,"Stockport",null,0.76521739130434319,{"$f":"U275*Z$5","v":627.10199999999998},null,null,{"$f":"U275*(1+(U275-$U$11)/U275*$AC$5)","v":657.40553},null,null,null,384.86,null,null,384.86,null,null,384.86,null,null,null,384.86,"London"]
[null,null,null,null,null,null,null,null,null,null,null,null,null,null,null,null,null,null,null,null,465.26,"Stockport",null,0.76811594202898081,{"$f":"U276*Z$5","v":628.101},null,null,{"$f":"U276*(1+(U276-$U$11)/U276*$AC$5)","v":658.75010999999995},null,null,null,365.56,null,null,365.56,null,null,365.56,null,null,null,365.56,"London"]
[null,null,null,null,null,null,null,null,null,null,null,null,null,null,null,null,null,null,null,null,465.58,"Bury",null,0.77101449275361844,{"$f":"U277*Z$5","v":628.53300000000002},null,null,{"$f":"U277*(1+(U277-$U$11)/U277*$AC$5)","v":659.33154999999999},null,null,null,413.66,null,null,413.66,null,null,413.66,null,null,null,413.66,"London"]
[null,null,null,null,null,null,null,null,null,null,null,null,null,null,null,null,null,null,null,null,466.03,"Wigan",null,0.77391304347825607,{"$f":"U278*Z$5","v":629.14049999999997},null,null,{"$f":"U278*(1+(U278-$U$11)/U278*$AC$5)","v":660.14919999999995},null,null,null,402.5,null,null,402.5,null,null,402.5,null,null,null,402.5,"London"]
[null,null,null,null,null,null,null,null,null,null,null,null,null,null,null,null,null,null,null,null,466.51,"Bury",null,0.7768115942028937,{"$f":"U279*Z$5","v":629.7885},null,null,{"$f":"U279*(1+(U279-$U$11)/U279*$AC$5)","v":661.02135999999996},null,null,null,355.34,null,null,355.34,null,null,355.34,null,null,null,355.34,"London"]
[null,null,null,null,null,null,null,null,null,null,null,null,null,null,null,null,null,null,null,null,467.2,"Bury",null,0.77971014492753132,{"$f":"U280*Z$5","v":630.72},null,null,{"$f":"U280*(1+(U280-$U$11)/U280*$AC$5)","v":662.27508999999986},null,null,null,497.4,null,null,497.4,null,null,497.4,null,null,null,497.4,"London"]
[null,null,null,null,null,null,null,null,null,null,null,null,null,null,null,null,null,null,null,null,467.29,"Wigan",null,0.78260869565216895,{"$f":"U281*Z$5","v":630.84150000000011},null,null,{"$f":"U281*(1+(U281-$U$11)/U281*$AC$5)","v":662.43862000000013},null,null,null,761.31,null,null,761.31,null,null,761.31,null,null,null,761.31,"London"]
[null,null,null,null,null,null,null,null,null,null,null,null,null,null,null,null,null,null,null,null,467.62,"Stockport",null,0.78550724637680658,{"$f":"U282*Z$5","v":631.28700000000003},null,null,{"$f":"U282*(1+(U282-$U$11)/U282*$AC$5)","v":663.03823},null,null,null,583.63,null,null,583.63,null,null,583.63,null,null,null,583.63,"London"]
[null,null,null,null,null,null,null,null,null,null,null,null,null,null,null,null,null,null,null,null,468.09,"Bury",null,0.78840579710144421,{"$f":"U283*Z$5","v":631.92150000000004},null,null,{"$f":"U283*(1+(U283-$U$11)/U283*$AC$5)","v":663.89221999999995},null,null,null,803.2,null,null,803.2,null,null,803.2,null,null,null,803.2,"London"]
[null,null,null,null,null,null,null,null,null,null,null,null,null,null,null,null,null,null,null,null,468.16,"Wigan",null,0.79130434782608183,{"$f":"U284*Z$5","v":632.01600000000008},null,null,{"$f":"U284*(1+(U284-$U$11)/U284*$AC$5)","v":664.01940999999999},null,null,null,475.06,null,null,475.06,null,null,475.06,null,null,null,475.06,"London"]
[null,null,null,null,null,null,null,null,null,null,null,null,null,null,null,null,null,null,null,null,468.17,"Wigan",null,0.79420289855071946,{"$f":"U285*Z$5","v":632.0295000000001},null,null,{"$f":"U285*(1+(U285-$U$11)/U285*$AC$5)","v":664.03758000000005},null,null,null,479.3,null,null,479.3,null,null,479.3,null,null,null,479.3,"London"]
[null,null,null,null,null,null,null,null,null,null,null,null,null,null,null,null,null,null,null,null,468.36,"Tameside",null,0.79710144927535709,{"$f":"U286*Z$5","v":632.28600000000006},null,null,{"$f":"U286*(1+(U286-$U$11)/U286*$AC$5)","v":664.38280999999995},null,null,null,452.97,null,null,452.97,null,null,452.97,null,null,null,452.97,"London"]
[null,null,null,null,null,null,null,null,null,null,null,null,null,null,null,null,null,null,null,null,468.73,"Wigan",null,0.79999999999999472,{"$f":"U287*Z$5","v":632.78550000000007},null,null,{"$f":"U287*(1+(U287-$U$11)/U287*$AC$5)","v":665.05510000000004},null,null,null,689.97,null,null,689.97,null,null,689.97,null,null,null,689.97,"London"]
[null,null,null,null,null,null,null,null,null,null,null,null,null,null,null,null,null,null,null,null,469.01,"Bolton",null,0.80289855072463234,{"$f":"U288*Z$5","v":633.1635},null,null,{"$f":"U288*(1+(U288-$U$11)/U288*$AC$5)","v":665.56385999999998},null,null,null,493.17,null,null,493.17,null,null,493.17,null,null,null,493.17,"London"]
[null,null,null,null,null,null,null,null,null,null,null,null,null,null,null,null,null,null,null,null,471.97,"Stockport",null,0.80579710144926997,{"$f":"U289*Z$5","v":637.15950000000009},null,null,{"$f":"U289*(1+(U289-$U$11)/U289*$AC$5)","v":670.94218000000001},null,null,null,443.95,null,null,443.95,null,null,443.95,null,null,null,443.95,"London"]
[null,null,null,null,null,null,null,null,null,null,null,null,null,null,null,null,null,null,null,null,473.75,"Wigan",null,0.8086956521739076,{"$f":"U290*Z$5","v":639.5625},null,null,{"$f":"U290*(1+(U290-$U$11)/U290*$AC$5)","v":674.17643999999996},null,null,null,385.3,null,null,385.3,null,null,385.3,null,null,null,385.3,"London"]
[null,null,null,null,null,null,null,null,null,null,null,null,null,null,null,null,null,null,null,null,474.68,"Bolton",null,0.81159420289854523,{"$f":"U291*Z$5","v":640.8180000000001},null,null,{"$f":"U291*(1+(U291-$U$11)/U291*$AC$5)","v":675.86625000000004},null,null,null,420.16,null,null,420.16,null,null,420.16,null,null,null,420.16,"London"]
[null,null,null,null,null,null,null,null,null,null,null,null,null,null,null,null,null,null,null,null,476.49,"Bolton",null,0.81449275362318285,{"$f":"U292*Z$5","v":643.26150000000007},null,null,{"$f":"U292*(1+(U292-$U$11)/U292*$AC$5)","v":679.15501999999992},null,null,null,401.78,null,null,401.78,null,null,401.78,null,null,null,401.78,"London"]
[null,null,null,null,null,null,null,null,null,null,null,null,null,null,null,null,null,null,null,null,477.29,"Rochdale",null,0.81739130434782048,{"$f":"U293*Z$5","v":644.34150000000011},null,null,{"$f":"U293*(1+(U293-$U$11)/U293*$AC$5)","v":680.60862000000009},null,null,null,470.91,null,null,470.91,null,null,470.91,null,null,null,470.91,"London"]
[null,null,null,null,null,null,null,null,null,null,null,null,null,null,null,null,null,null,null,null,478.29,"Wigan",null,0.82028985507245811,{"$f":"U294*Z$5","v":645.69150000000002},null,null,{"$f":"U294*(1+(U294-$U$11)/U294*$AC$5)","v":682.42561999999998},null,null,null,367.47,null,null,367.47,null,null,367.47,null,null,null,367.47,"London"]
[null,null,null,null,null,null,null,null,null,null,null,null,null,null,null,null,null,null,null,null,479.18,"Wigan",null,0.82318840579709573,{"$f":"U295*Z$5","v":646.89300000000003},null,null,{"$f":"U295*(1+(U295-$U$11)/U295*$AC$5)","v":684.04275000000007},null,null,null,365.86,null,null,365.86,null,null,365.86,null,null,null,365.86,"London"]
[null,null,null,null,null,null,null,null,null,null,null,null,null,null,null,null,null,null,null,null,479.54,"Trafford",null,0.82608695652173336,{"$f":"U296*Z$5","v":647.37900000000002},null,null,{"$f":"U296*(1+(U296-$U$11)/U296*$AC$5)","v":684.69686999999999},null,null,null,440.95,null,null,440.95,null,null,440.95,null,null,null,440.95,"London"]
[null,null,null,null,null,null,null,null,null,null,null,null,null,null,null,null,null,null,null,null,483.18,"Oldham",null,0.82898550724637099,{"$f":"U297*Z$5","v":652.29300000000001},null,null,{"$f":"U297*(1+(U297-$U$11)/U297*$AC$5)","v":691.31074999999987},null,null,null,356.3,null,null,356.3,null,null,356.3,null,null,null,356.3,"London"]
[null,null,null,null,null,null,null,null,null,null,null,null,null,null,null,null,null,null,null,null,483.49,"Wigan",null,0.83188405797100862,{"$f":"U298*Z$5","v":652.7115},null,null,{"$f":"U298*(1+(U298-$U$11)/U298*$AC$5)","v":691.87401999999997},null,null,null,349.22,null,null,349.22,null,null,349.22,null,null,null,349.22,"London"]
[null,null,null,null,null,null,null,null,null,null,null,null,null,null,null,null,null,null,null,null,483.9,"Stockport",null,0.83478260869564624,{"$f":"U299*Z$5","v":653.26499999999999},null,null,{"$f":"U299*(1+(U299-$U$11)/U299*$AC$5)","v":692.61898999999994},null,null,null,406.82,null,null,406.82,null,null,406.82,null,null,null,406.82,"London"]
[null,null,null,null,null,null,null,null,null,null,null,null,null,null,null,null,null,null,null,null,484.96,"Bury",null,0.83768115942028387,{"$f":"U300*Z$5","v":654.69600000000003},null,null,{"$f":"U300*(1+(U300-$U$11)/U300*$AC$5)","v":694.54500999999993},null,null,null,371.7,null,null,371.7,null,null,371.7,null,null,null,371.7,"London"]
[null,null,null,null,null,null,null,null,null,null,null,null,null,null,null,null,null,null,null,null,488.48,"Stockport",null,0.8405797101449215,{"$f":"U301*Z$5","v":659.44800000000009},null,null,{"$f":"U301*(1+(U301-$U$11)/U301*$AC$5)","v":700.94084999999995},null,null,null,372.34,null,null,372.34,null,null,372.34,null,null,null,372.34,"London"]
[null,null,null,null,null,null,null,null,null,null,null,null,null,null,null,null,null,null,null,null,491.48,"Manchester",null,0.84347826086955913,{"$f":"U302*Z$5","v":663.49800000000005},null,null,{"$f":"U302*(1+(U302-$U$11)/U302*$AC$5)","v":706.39185000000009},null,null,null,405.7,null,null,405.7,null,null,405.7,null,null,null,405.7,"London"]
[null,null,null,null,null,null,null,null,null,null,null,null,null,null,null,null,null,null,null,null,491.91,"Bolton",null,0.84637681159419675,{"$f":"U303*Z$5","v":664.07850000000008},null,null,{"$f":"U303*(1+(U303-$U$11)/U303*$AC$5)","v":707.17315999999994},null,null,null,585.79999999999995,null,null,585.79999999999995,null,null,585.79999999999995,null,null,null,585.79999999999995,"London"]
[null,null,null,null,null,null,null,null,null,null,null,null,null,null,null,null,null,null,null,null,492.13,"Bolton",null,0.84927536231883438,{"$f":"U304*Z$5","v":664.37549999999999},null,null,{"$f":"U304*(1+(U304-$U$11)/U304*$AC$5)","v":707.5729},null,null,null,544.59,null,null,544.59,null,null,544.59,null,null,null,544.59,"London"]
[null,null,null,null,null,null,null,null,null,null,null,null,null,null,null,null,null,null,null,null,492.94,"Stockport",null,0.85217391304347201,{"$f":"U305*Z$5","v":665.46900000000005},null,null,{"$f":"U305*(1+(U305-$U$11)/U305*$AC$5)","v":709.04467},null,null,null,430.27,null,null,430.27,null,null,430.27,null,null,null,430.27,"London"]
[null,null,null,null,null,null,null,null,null,null,null,null,null,null,null,null,null,null,null,null,493,"Oldham",null,0.85507246376810964,{"$f":"U306*Z$5","v":665.55000000000007},null,null,{"$f":"U306*(1+(U306-$U$11)/U306*$AC$5)","v":709.15368999999998},null,null,null,494.54,null,null,494.54,null,null,494.54,null,null,null,494.54,"London"]
[null,null,null,null,null,null,null,null,null,null,null,null,null,null,null,null,null,null,null,null,493.58,"Trafford",null,0.85797101449274726,{"$f":"U307*Z$5","v":666.33299999999997},null,null,{"$f":"U307*(1+(U307-$U$11)/U307*$AC$5)","v":710.20754999999997},null,null,null,676.83,null,null,676.83,null,null,676.83,null,null,null,676.83,"London"]
[null,null,null,null,null,null,null,null,null,null,null,null,null,null,null,null,null,null,null,null,495.86,"Rochdale",null,0.86086956521738489,{"$f":"U308*Z$5","v":669.41100000000006},null,null,{"$f":"U308*(1+(U308-$U$11)/U308*$AC$5)","v":714.35031000000004},null,null,null,546.99,null,null,546.99,null,null,546.99,null,null,null,546.99,"London"]
[null,null,null,null,null,null,null,null,null,null,null,null,null,null,null,null,null,null,null,null,496.77,"Bolton",null,0.86376811594202252,{"$f":"U309*Z$5","v":670.6395},null,null,{"$f":"U309*(1+(U309-$U$11)/U309*$AC$5)","v":716.00378000000001},null,null,null,725.73,null,null,725.73,null,null,725.73,null,null,null,725.73,"London"]
[null,null,null,null,null,null,null,null,null,null,null,null,null,null,null,null,null,null,null,null,496.96,"Bury",null,0.86666666666666015,{"$f":"U310*Z$5","v":670.89600000000007},null,null,{"$f":"U310*(1+(U310-$U$11)/U310*$AC$5)","v":716.34900999999991},null,null,null,846.87,null,null,846.87,null,null,846.87,null,null,null,846.87,"London"]
[null,null,null,null,null,null,null,null,null,null,null,null,null,null,null,null,null,null,null,null,499.9,"Rochdale",null,0.86956521739129777,{"$f":"U311*Z$5","v":674.86500000000001},null,null,{"$f":"U311*(1+(U311-$U$11)/U311*$AC$5)","v":721.69098999999994},null,null,null,634.37,null,null,634.37,null,null,634.37,null,null,null,634.37,"London"]
[null,null,null,null,null,null,null,null,null,null,null,null,null,null,null,null,null,null,null,null,507.56,"Oldham",null,0.8724637681159354,{"$f":"U312*Z$5","v":685.20600000000002},null,null,{"$f":"U312*(1+(U312-$U$11)/U312*$AC$5)","v":735.60921000000008},null,null,null,658.65,null,null,658.65,null,null,658.65,null,null,null,658.65,"London"]
[null,null,null,null,null,null,null,null,null,null,null,null,null,null,null,null,null,null,null,null,510.44,"Manchester",null,0.87536231884057303,{"$f":"U313*Z$5","v":689.09400000000005},null,null,{"$f":"U313*(1+(U313-$U$11)/U313*$AC$5)","v":740.84217000000001},null,null,null,488.51,null,null,488.51,null,null,488.51,null,null,null,488.51,"London"]
[null,null,null,null,null,null,null,null,null,null,null,null,null,null,null,null,null,null,null,null,511.31,"Stockport",null,0.87826086956521066,{"$f":"U314*Z$5","v":690.26850000000002},null,null,{"$f":"U314*(1+(U314-$U$11)/U314*$AC$5)","v":742.42295999999999},null,null,null,415.83,null,null,415.83,null,null,415.83,null,null,null,415.83,"London"]
[null,null,null,null,null,null,null,null,null,null,null,null,null,null,null,null,null,null,null,null,512.54999999999995,"Manchester",null,0.88115942028984828,{"$f":"U315*Z$5","v":691.9425},null,null,{"$f":"U315*(1+(U315-$U$11)/U315*$AC$5)","v":744.67603999999994},null,null,null,401.95,null,null,401.95,null,null,401.95,null,null,null,401.95,"London"]
[null,null,null,null,null,null,null,null,null,null,null,null,null,null,null,null,null,null,null,null,514.41,"Bury",null,0.88405797101448591,{"$f":"U316*Z$5","v":694.45349999999996},null,null,{"$f":"U316*(1+(U316-$U$11)/U316*$AC$5)","v":748.05565999999999},null,null,null,524.48,null,null,524.48,null,null,524.48,null,null,null,524.48,"London"]
[null,null,null,null,null,null,null,null,null,null,null,null,null,null,null,null,null,null,null,null,514.51,"Stockport",null,0.88695652173912354,{"$f":"U317*Z$5","v":694.58850000000007},null,null,{"$f":"U317*(1+(U317-$U$11)/U317*$AC$5)","v":748.23735999999997},null,null,null,480.26,null,null,480.26,null,null,480.26,null,null,null,480.26,"London"]
[null,null,null,null,null,null,null,null,null,null,null,null,null,null,null,null,null,null,null,null,516.01,"Manchester",null,0.88985507246376117,{"$f":"U318*Z$5","v":696.61350000000004},null,null,{"$f":"U318*(1+(U318-$U$11)/U318*$AC$5)","v":750.96285999999998},null,null,null,463.14,null,null,463.14,null,null,463.14,null,null,null,463.14,"London"]
[null,null,null,null,null,null,null,null,null,null,null,null,null,null,null,null,null,null,null,null,518.41,"Stockport",null,0.89275362318839879,{"$f":"U319*Z$5","v":699.85350000000005},null,null,{"$f":"U319*(1+(U319-$U$11)/U319*$AC$5)","v":755.3236599999999},null,null,null,458.84,null,null,458.84,null,null,458.84,null,null,null,458.84,"London"]
[null,null,null,null,null,null,null,null,null,null,null,null,null,null,null,null,null,null,null,null,519.17999999999995,"Trafford",null,0.89565217391303642,{"$f":"U320*Z$5","v":700.89300000000003},null,null,{"$f":"U320*(1+(U320-$U$11)/U320*$AC$5)","v":756.72274999999991},null,null,null,450.15,null,null,450.15,null,null,450.15,null,null,null,450.15,"London"]
[null,null,null,null,null,null,null,null,null,null,null,null,null,null,null,null,null,null,null,null,521.14,"Manchester",null,0.89855072463767405,{"$f":"U321*Z$5","v":703.53899999999999},null,null,{"$f":"U321*(1+(U321-$U$11)/U321*$AC$5)","v":760.28407000000004},null,null,null,340.03,null,null,340.03,null,null,340.03,null,null,null,340.03,"London"]
[null,null,null,null,null,null,null,null,null,null,null,null,null,null,null,null,null,null,null,null,522.74,"Rochdale",null,0.90144927536231167,{"$f":"U322*Z$5","v":705.69900000000007},null,null,{"$f":"U322*(1+(U322-$U$11)/U322*$AC$5)","v":763.19127000000003},null,null,null,423.55,null,null,423.55,null,null,423.55,null,null,null,423.55,"London"]
[null,null,null,null,null,null,null,null,null,null,null,null,null,null,null,null,null,null,null,null,522.80999999999995,"Bury",null,0.9043478260869493,{"$f":"U323*Z$5","v":705.79349999999999},null,null,{"$f":"U323*(1+(U323-$U$11)/U323*$AC$5)","v":763.31845999999985},null,null,null,372.21,null,null,372.21,null,null,372.21,null,null,null,372.21,"London"]
[null,null,null,null,null,null,null,null,null,null,null,null,null,null,null,null,null,null,null,null,524.91999999999996,"Stockport",null,0.90724637681158693,{"$f":"U324*Z$5","v":708.64199999999994},null,null,{"$f":"U324*(1+(U324-$U$11)/U324*$AC$5)","v":767.15233000000001},null,null,null,336.41,null,null,336.41,null,null,336.41,null,null,null,336.41,"London"]
[null,null,null,null,null,null,null,null,null,null,null,null,null,null,null,null,null,null,null,null,527.96,"Bolton",null,0.91014492753622456,{"$f":"U325*Z$5","v":712.74600000000009},null,null,{"$f":"U325*(1+(U325-$U$11)/U325*$AC$5)","v":772.67601000000013},null,null,null,327.11,null,null,327.11,null,null,327.11,null,null,null,327.11,"London"]
[null,null,null,null,null,null,null,null,null,null,null,null,null,null,null,null,null,null,null,null,530.76,"Stockport",null,0.91304347826086218,{"$f":"U326*Z$5","v":716.52600000000007},null,null,{"$f":"U326*(1+(U326-$U$11)/U326*$AC$5)","v":777.76361000000009},null,null,null,379.44,null,null,379.44,null,null,379.44,null,null,null,379.44,"London"]
[null,null,null,null,null,null,null,null,null,null,null,null,null,null,null,null,null,null,null,null,531.92999999999995,"Trafford",null,0.91594202898549981,{"$f":"U327*Z$5","v":718.10550000000001},null,null,{"$f":"U327*(1+(U327-$U$11)/U327*$AC$5)","v":779.88949999999988},null,null,null,336.22,null,null,336.22,null,null,336.22,null,null,null,336.22,"London"]
[null,null,null,null,null,null,null,null,null,null,null,null,null,null,null,null,null,null,null,null,532.08000000000004,"Trafford",null,0.91884057971013744,{"$f":"U328*Z$5","v":718.30800000000011},null,null,{"$f":"U328*(1+(U328-$U$11)/U328*$AC$5)","v":780.16205000000002},null,null,null,411.01,null,null,411.01,null,null,411.01,null,null,null,411.01,"London"]
[null,null,null,null,null,null,null,null,null,null,null,null,null,null,null,null,null,null,null,null,534.51,"Oldham",null,0.92173913043477507,{"$f":"U329*Z$5","v":721.58850000000007},null,null,{"$f":"U329*(1+(U329-$U$11)/U329*$AC$5)","v":784.57736},null,null,null,373.41,null,null,373.41,null,null,373.41,null,null,null,373.41,"London"]
[null,null,null,null,null,null,null,null,null,null,null,null,null,null,null,null,null,null,null,null,535.1,"Bury",null,0.92463768115941269,{"$f":"U330*Z$5","v":722.3850000000001},null,null,{"$f":"U330*(1+(U330-$U$11)/U330*$AC$5)","v":785.64939000000004},null,null,null,366.85,null,null,366.85,null,null,366.85,null,null,null,366.85,"London"]
[null,null,null,null,null,null,null,null,null,null,null,null,null,null,null,null,null,null,null,null,537.84,"Trafford",null,0.92753623188405032,{"$f":"U331*Z$5","v":726.08400000000006},null,null,{"$f":"U331*(1+(U331-$U$11)/U331*$AC$5)","v":790.62797},null,null,null,344.66,null,null,344.66,null,null,344.66,null,null,null,344.66,"London"]
[null,null,null,null,null,null,null,null,null,null,null,null,null,null,null,null,null,null,null,null,537.89,"Trafford",null,0.93043478260868795,{"$f":"U332*Z$5","v":726.15150000000006},null,null,{"$f":"U332*(1+(U332-$U$11)/U332*$AC$5)","v":790.71881999999994},null,null,null,351.12,null,null,{"$f":"AF332","v":351.12},null,null,{"$f":"AF332","v":351.12},null,null,null,351.12,"London"]
[null,null,null,null,null,null,null,null,null,null,null,null,null,null,null,null,null,null,null,null,539.30999999999995,"Bury",null,{"$f":"X332+1/(COUNT($Y$11:$Y$356)-1)","v":0.93333333333332558},{"$f":"U333*Z$5","v":728.06849999999997},null,null,{"$f":"U333*(1+(U333-$U$11)/U333*$AC$5)","v":793.29895999999997},null,null,null,324.32,null,null,324.32,null,null,324.32,null,null,null,324.32,"London"]
[null,null,null,null,null,null,null,null,null,null,null,null,null,null,null,null,null,null,null,null,539.34,"Trafford",null,0.9362318840579632,{"$f":"U334*Z$5","v":728.10900000000004},null,null,{"$f":"U334*(1+(U334-$U$11)/U334*$AC$5)","v":793.35347000000002},null,null,null,440.8,null,null,440.8,null,null,440.8,null,null,null,440.8,"London"]
[null,null,null,null,null,null,null,null,null,null,null,null,null,null,null,null,null,null,null,null,540.20000000000005,"Trafford",null,0.93913043478260083,{"$f":"U335*Z$5","v":729.2700000000001},null,null,{"$f":"U335*(1+(U335-$U$11)/U335*$AC$5)","v":794.91609000000005},null,null,null,345.97,null,null,345.97,null,null,345.97,null,null,null,345.97,"London"]
[null,null,null,null,null,null,null,null,null,null,null,null,null,null,null,null,null,null,null,null,540.63,"Trafford",null,0.94202898550723846,{"$f":"U336*Z$5","v":729.85050000000001},null,null,{"$f":"U336*(1+(U336-$U$11)/U336*$AC$5)","v":795.6973999999999},null,null,null,531.16999999999996,null,null,531.16999999999996,null,null,531.16999999999996,null,null,null,531.16999999999996,"London"]
[null,null,null,null,null,null,null,null,null,null,null,null,null,null,null,null,null,null,null,null,541.20000000000005,"Bolton",null,0.94492753623187609,{"$f":"U337*Z$5","v":730.62000000000012},null,null,{"$f":"U337*(1+(U337-$U$11)/U337*$AC$5)","v":796.73309000000006},null,null,null,343.47,null,null,343.47,null,null,343.47,null,null,null,343.47,"London"]
[null,null,null,null,null,null,null,null,null,null,null,null,null,null,null,null,null,null,null,null,541.52,"Manchester",null,0.94782608695651371,{"$f":"U338*Z$5","v":731.05200000000002},null,null,{"$f":"U338*(1+(U338-$U$11)/U338*$AC$5)","v":797.31452999999999},null,null,null,490.28,null,null,490.28,null,null,490.28,null,null,null,490.28,"London"]
[null,null,null,null,null,null,null,null,null,null,null,null,null,null,null,null,null,null,null,null,542.22,"Trafford",null,0.95072463768115134,{"$f":"U339*Z$5","v":731.99700000000007},null,null,{"$f":"U339*(1+(U339-$U$11)/U339*$AC$5)","v":798.58643000000006},null,null,null,552.98,null,null,552.98,null,null,552.98,null,null,null,552.98,"London"]
[null,null,null,null,null,null,null,null,null,null,null,null,null,null,null,null,null,null,null,null,542.37,"Stockport",null,0.95362318840578897,{"$f":"U340*Z$5","v":732.19950000000006},null,null,{"$f":"U340*(1+(U340-$U$11)/U340*$AC$5)","v":798.85897999999997},null,null,null,877.69,null,null,877.69,null,null,877.69,null,null,null,877.69,"London"]
[null,null,null,null,null,null,null,null,null,null,null,null,null,null,null,null,null,null,null,null,545.95000000000005,"Salford",null,0.9565217391304266,{"$f":"U341*Z$5","v":737.03250000000014},null,null,{"$f":"U341*(1+(U341-$U$11)/U341*$AC$5)","v":805.3638400000001},null,null,null,556.79999999999995,null,null,556.79999999999995,null,null,556.79999999999995,null,null,null,556.79999999999995,"London"]
[null,null,null,null,null,null,null,null,null,null,null,null,null,null,null,null,null,null,null,null,548.39,"Salford",null,0.95942028985506422,{"$f":"U342*Z$5","v":740.32650000000001},null,null,{"$f":"U342*(1+(U342-$U$11)/U342*$AC$5)","v":809.7973199999999},null,null,null,512.47,null,null,512.47,null,null,512.47,null,null,null,512.47,"London"]
[null,null,null,null,null,null,null,null,null,null,null,null,null,null,null,null,null,null,null,null,549.72,"Oldham",null,0.96231884057970185,{"$f":"U343*Z$5","v":742.12200000000007},null,null,{"$f":"U343*(1+(U343-$U$11)/U343*$AC$5)","v":812.21393000000012},null,null,null,675.78,null,null,675.78,null,null,675.78,null,null,null,675.78,"London"]
[null,null,null,null,null,null,null,null,null,null,null,null,null,null,null,null,null,null,null,null,550.39,"Stockport",null,0.96521739130433948,{"$f":"U344*Z$5","v":743.02650000000006},null,null,{"$f":"U344*(1+(U344-$U$11)/U344*$AC$5)","v":813.43131999999991},null,null,null,463.63,null,null,463.63,null,null,463.63,null,null,null,463.63,"London"]
[null,null,null,null,null,null,null,null,null,null,null,null,null,null,null,null,null,null,null,null,551.07000000000005,"Stockport",null,0.96811594202897711,{"$f":"U345*Z$5","v":743.94450000000006},null,null,{"$f":"U345*(1+(U345-$U$11)/U345*$AC$5)","v":814.66688000000011},null,null,null,592.21,null,null,592.21,null,null,592.21,null,null,null,592.21,"London"]
[null,null,null,null,null,null,null,null,null,null,null,null,null,null,null,null,null,null,null,null,554.4,"Stockport",null,0.97101449275361473,{"$f":"U346*Z$5","v":748.44},null,null,{"$f":"U346*(1+(U346-$U$11)/U346*$AC$5)","v":820.71748999999988},null,null,null,751.93,null,null,751.93,null,null,751.93,null,null,null,751.93,"London"]
[null,null,null,null,null,null,null,null,null,null,null,null,null,null,null,null,null,null,null,null,559.39,"Bolton",null,0.97391304347825236,{"$f":"U347*Z$5","v":755.17650000000003},null,null,{"$f":"U347*(1+(U347-$U$11)/U347*$AC$5)","v":829.78431999999987},null,null,null,474.98,null,null,474.98,null,null,474.98,null,null,null,474.98,"London"]
[null,null,null,null,null,null,null,null,null,null,null,null,null,null,null,null,null,null,null,null,567.39,"Trafford",null,0.97681159420288999,{"$f":"U348*Z$5","v":765.97649999999999},null,null,{"$f":"U348*(1+(U348-$U$11)/U348*$AC$5)","v":844.32032000000004},null,null,null,474.95,null,null,474.95,null,null,474.95,null,null,null,474.95,"London"]
[null,null,null,null,null,null,null,null,null,null,null,null,null,null,null,null,null,null,null,null,578.66,"Stockport",null,0.97971014492752762,{"$f":"U349*Z$5","v":781.19100000000003},null,null,{"$f":"U349*(1+(U349-$U$11)/U349*$AC$5)","v":864.79790999999989},null,null,null,687.58,null,null,687.58,null,null,687.58,null,null,null,687.58,"London"]
[null,null,null,null,null,null,null,null,null,null,null,null,null,null,null,null,null,null,null,null,581.92999999999995,"Manchester",null,0.98260869565216524,{"$f":"U350*Z$5","v":785.60550000000001},null,null,{"$f":"U350*(1+(U350-$U$11)/U350*$AC$5)","v":870.73949999999991},null,null,null,659.64,null,null,659.64,null,null,659.64,null,null,null,659.64,"London"]
[null,null,null,null,null,null,null,null,null,null,null,null,null,null,null,null,null,null,null,null,599.67999999999995,"Stockport",null,0.98550724637680287,{"$f":"U351*Z$5","v":809.56799999999998},null,null,{"$f":"U351*(1+(U351-$U$11)/U351*$AC$5)","v":902.99124999999992},null,null,null,857.28,null,null,857.28,null,null,857.28,null,null,null,857.28,"London"]
[null,null,null,null,null,null,null,null,null,null,null,null,null,null,null,null,null,null,null,null,606.04,"Trafford",null,0.9884057971014405,{"$f":"U352*Z$5","v":818.154},null,null,{"$f":"U352*(1+(U352-$U$11)/U352*$AC$5)","v":914.54736999999989},null,null,null,408.28,null,null,408.28,null,null,408.28,null,null,null,408.28,"London"]
[null,null,null,null,null,null,null,null,null,null,null,null,null,null,null,null,null,null,null,null,609.45000000000005,"Stockport",null,0.99130434782607812,{"$f":"U353*Z$5","v":822.75750000000016},null,null,{"$f":"U353*(1+(U353-$U$11)/U353*$AC$5)","v":920.7433400000001},null,null,null,815.41,null,null,815.41,null,null,815.41,null,null,null,815.41,"London"]
[null,null,null,null,null,null,null,null,null,null,null,null,null,null,null,null,null,null,null,null,610.85,"Stockport",null,0.99420289855071575,{"$f":"U354*Z$5","v":824.64750000000004},null,null,{"$f":"U354*(1+(U354-$U$11)/U354*$AC$5)","v":923.28714000000002},null,null,null,964.7,null,null,964.7,null,null,964.7,null,null,null,964.7,"London"]
[null,null,null,null,null,null,null,null,null,null,null,null,null,null,null,null,null,null,null,null,616.14,"Manchester",null,0.99710144927535338,{"$f":"U355*Z$5","v":831.78899999999999},null,null,{"$f":"U355*(1+(U355-$U$11)/U355*$AC$5)","v":932.89906999999994},null,null,null,932.07,null,null,932.07,null,null,932.07,null,null,null,932.07,"London"]
[null,null,null,null,null,null,null,null,null,null,null,null,null,null,null,null,null,null,null,null,642.84,"Trafford",null,0.99999999999999101,{"$f":"U356*Z$5","v":867.83400000000006},null,null,{"$f":"U356*(1+(U356-$U$11)/U356*$AC$5)","v":981.41297000000009},null,null,null,789.58,null,null,789.58,null,null,789.58,null,null,null,789.58,"London"]
[null,null,null,null,null,null,null,null,null,null,null,null,null,null,null,null,null,null,null,null,null,null,null,null,null,null,null,null,null,null,null,773.11,null,null,773.11,null,null,773.11,null,null,null,773.11,"London"]
[null,null,null,null,null,null,null,null,null,null,null,null,null,null,null,null,null,null,null,null,null,null,null,null,null,null,null,null,null,null,null,385.01,null,null,385.01,null,null,385.01,null,null,null,385.01,"London"]
[null,null,null,null,null,null,null,null,null,null,null,null,null,null,null,null,null,null,null,null,null,null,null,null,null,null,null,null,null,null,null,792.62,null,null,792.62,null,null,792.62,null,null,null,792.62,"London"]
[null,null,null,null,null,null,null,null,null,null,null,null,null,null,null,null,null,null,null,null,null,null,null,null,null,null,null,null,null,null,null,846.54,null,null,846.54,null,null,846.54,null,null,null,846.54,"London"]
[null,null,null,null,null,null,null,null,null,null,null,null,null,null,null,null,null,null,null,null,null,null,null,null,null,null,null,null,null,null,null,516.72,null,null,516.72,null,null,516.72,null,null,null,516.72,"London"]
[null,null,null,null,null,null,null,null,null,null,null,null,null,null,null,null,null,null,null,null,null,null,null,null,null,null,null,null,null,null,null,870.12,null,null,870.12,null,null,870.12,null,null,null,870.12,"London"]
[null,null,null,null,null,null,null,null,null,null,null,null,null,null,null,null,null,null,null,null,null,null,null,null,null,null,null,null,null,null,null,549.46,null,null,549.46,null,null,549.46,null,null,null,549.46,"London"]
[null,null,null,null,null,null,null,null,null,null,null,null,null,null,null,null,null,null,null,null,null,null,null,null,null,null,null,null,null,null,null,735.07,null,null,735.07,null,null,735.07,null,null,null,735.07,"London"]
[null,null,null,null,null,null,null,null,null,null,null,null,null,null,null,null,null,null,null,null,null,null,null,null,null,null,null,null,null,null,null,804.44,null,null,804.44,null,null,804.44,null,null,null,804.44,"London"]
[null,null,null,null,null,null,null,null,null,null,null,null,null,null,null,null,null,null,null,null,null,null,null,null,null,null,null,null,null,null,null,807.33,null,null,807.33,null,null,807.33,null,null,null,807.33,"London"]
[null,null,null,null,null,null,null,null,null,null,null,null,null,null,null,null,null,null,null,null,null,null,null,null,null,null,null,null,null,null,null,508.39,null,null,508.39,null,null,508.39,null,null,null,508.39,"London"]
[null,null,null,null,null,null,null,null,null,null,null,null,null,null,null,null,null,null,null,null,null,null,null,null,null,null,null,null,null,null,null,410.44,null,null,410.44,null,null,410.44,null,null,null,410.44,"London"]
[null,null,null,null,null,null,null,null,null,null,null,null,null,null,null,null,null,null,null,null,null,null,null,null,null,null,null,null,null,null,null,653.80999999999995,null,null,653.80999999999995,null,null,653.80999999999995,null,null,null,653.80999999999995,"London"]
[null,null,null,null,null,null,null,null,null,null,null,null,null,null,null,null,null,null,null,null,null,null,null,null,null,null,null,null,null,null,null,838.28,null,null,838.28,null,null,838.28,null,null,null,838.28,"London"]
[null,null,null,null,null,null,null,null,null,null,null,null,null,null,null,null,null,null,null,null,null,null,null,null,null,null,null,null,null,null,null,798.44,null,null,798.44,null,null,798.44,null,null,null,798.44,"London"]
[null,null,null,null,null,null,null,null,null,null,null,null,null,null,null,null,null,null,null,null,null,null,null,null,null,null,null,null,null,null,null,786.23,null,null,786.23,null,null,786.23,null,null,null,786.23,"London"]
[null,null,null,null,null,null,null,null,null,null,null,null,null,null,null,null,null,null,null,null,null,null,null,null,null,null,null,null,null,null,null,677.3,null,null,677.3,null,null,677.3,null,null,null,677.3,"London"]
[null,null,null,null,null,null,null,null,null,null,null,null,null,null,null,null,null,null,null,null,null,null,null,null,null,null,null,null,null,null,null,694.38,null,null,694.38,null,null,694.38,null,null,null,694.38,"London"]
[null,null,null,null,null,null,null,null,null,null,null,null,null,null,null,null,null,null,null,null,null,null,null,null,null,null,null,null,null,null,null,671.6,null,null,671.6,null,null,671.6,null,null,null,671.6,"London"]
[null,null,null,null,null,null,null,null,null,null,null,null,null,null,null,null,null,null,null,null,null,null,null,null,null,null,null,null,null,null,null,696.9,null,null,696.9,null,null,696.9,null,null,null,696.9,"London"]
[null,null,null,null,null,null,null,null,null,null,null,null,null,null,null,null,null,null,null,null,null,null,null,null,null,null,null,null,null,null,null,634.65,null,null,634.65,null,null,634.65,null,null,null,634.65,"London"]
[null,null,null,null,null,null,null,null,null,null,null,null,null,null,null,null,null,null,null,null,null,null,null,null,null,null,null,null,null,null,null,495.79,null,null,495.79,null,null,495.79,null,null,null,495.79,"London"]
[null,null,null,null,null,null,null,null,null,null,null,null,null,null,null,null,null,null,null,null,null,null,null,null,null,null,null,null,null,null,null,482.94,null,null,482.94,null,null,482.94,null,null,null,482.94,"London"]
[null,null,null,null,null,null,null,null,null,null,null,null,null,null,null,null,null,null,null,null,null,null,null,null,null,null,null,null,null,null,null,538.29999999999995,null,null,538.29999999999995,null,null,538.29999999999995,null,null,null,538.29999999999995,"London"]
[null,null,null,null,null,null,null,null,null,null,null,null,null,null,null,null,null,null,null,null,null,null,null,null,null,null,null,null,null,null,null,568.02,null,null,568.02,null,null,568.02,null,null,null,568.02,"London"]
[null,null,null,null,null,null,null,null,null,null,null,null,null,null,null,null,null,null,null,null,null,null,null,null,null,null,null,null,null,null,null,500.61,null,null,500.61,null,null,500.61,null,null,null,500.61,"London"]
[null,null,null,null,null,null,null,null,null,null,null,null,null,null,null,null,null,null,null,null,null,null,null,null,null,null,null,null,null,null,null,685.28,null,null,685.28,null,null,685.28,null,null,null,685.28,"London"]
[null,null,null,null,null,null,null,null,null,null,null,null,null,null,null,null,null,null,null,null,null,null,null,null,null,null,null,null,null,null,null,594.62,null,null,594.62,null,null,594.62,null,null,null,594.62,"London"]
[null,null,null,null,null,null,null,null,null,null,null,null,null,null,null,null,null,null,null,null,null,null,null,null,null,null,null,null,null,null,null,546.83000000000004,null,null,546.83000000000004,null,null,546.83000000000004,null,null,null,546.83000000000004,"London"]
[null,null,null,null,null,null,null,null,null,null,null,null,null,null,null,null,null,null,null,null,null,null,null,null,null,null,null,null,null,null,null,394.8,null,null,394.8,null,null,394.8,null,null,null,394.8,"London"]
[null,null,null,null,null,null,null,null,null,null,null,null,null,null,null,null,null,null,null,null,null,null,null,null,null,null,null,null,null,null,null,444.18,null,null,444.18,null,null,444.18,null,null,null,444.18,"London"]
[null,null,null,null,null,null,null,null,null,null,null,null,null,null,null,null,null,null,null,null,null,null,null,null,null,null,null,null,null,null,null,671.17,null,null,671.17,null,null,671.17,null,null,null,671.17,"London"]
[null,null,null,null,null,null,null,null,null,null,null,null,null,null,null,null,null,null,null,null,null,null,null,null,null,null,null,null,null,null,null,721.57,null,null,721.57,null,null,721.57,null,null,null,721.57,"London"]
[null,null,null,null,null,null,null,null,null,null,null,null,null,null,null,null,null,null,null,null,null,null,null,null,null,null,null,null,null,null,null,749.41,null,null,749.41,null,null,749.41,null,null,null,749.41,"London"]
[null,null,null,null,null,null,null,null,null,null,null,null,null,null,null,null,null,null,null,null,null,null,null,null,null,null,null,null,null,null,null,345.4,null,null,345.4,null,null,345.4,null,null,null,345.4,"London"]
[null,null,null,null,null,null,null,null,null,null,null,null,null,null,null,null,null,null,null,null,null,null,null,null,null,null,null,null,null,null,null,362.19,null,null,362.19,null,null,362.19,null,null,null,362.19,"London"]
[null,null,null,null,null,null,null,null,null,null,null,null,null,null,null,null,null,null,null,null,null,null,null,null,null,null,null,null,null,null,null,815.39,null,null,815.39,null,null,815.39,null,null,null,815.39,"London"]
[null,null,null,null,null,null,null,null,null,null,null,null,null,null,null,null,null,null,null,null,null,null,null,null,null,null,null,null,null,null,null,638.49,null,null,638.49,null,null,638.49,null,null,null,638.49,"London"]
[null,null,null,null,null,null,null,null,null,null,null,null,null,null,null,null,null,null,null,null,null,null,null,null,null,null,null,null,null,null,null,607.47,null,null,607.47,null,null,607.47,null,null,null,607.47,"London"]
[null,null,null,null,null,null,null,null,null,null,null,null,null,null,null,null,null,null,null,null,null,null,null,null,null,null,null,null,null,null,null,631.76,null,null,{"$f":"AF396","v":631.76},null,null,{"$f":"AF396","v":631.76},null,null,null,631.76,"London"]
[null,null,null,null,null,null,null,null,null,null,null,null,null,null,null,null,null,null,null,null,null,null,null,null,null,null,null,null,null,null,null,541.62,null,null,541.62,null,null,541.62,null,null,null,541.62,"London"]
[null,null,null,null,null,null,null,null,null,null,null,null,null,null,null,null,null,null,null,null,null,null,null,null,null,null,null,null,null,null,null,694.74,null,null,694.74,null,null,694.74,null,null,null,694.74,"London"]
[null,null,null,null,null,null,null,null,null,null,null,null,null,null,null,null,null,null,null,null,null,null,null,null,null,null,null,null,null,null,null,605.37,null,null,605.37,null,null,605.37,null,null,null,605.37,"London"]
[null,null,null,null,null,null,null,null,null,null,null,null,null,null,null,null,null,null,null,null,null,null,null,null,null,null,null,null,null,null,null,655.45,null,null,655.45,null,null,655.45,null,null,null,655.45,"London"]
[null,null,null,null,null,null,null,null,null,null,null,null,null,null,null,null,null,null,null,null,null,null,null,null,null,null,null,null,null,null,null,777.05,null,null,777.05,null,null,777.05,null,null,null,777.05,"London"]
[null,null,null,null,null,null,null,null,null,null,null,null,null,null,null,null,null,null,null,null,null,null,null,null,null,null,null,null,null,null,null,648.20000000000005,null,null,648.20000000000005,null,null,648.20000000000005,null,null,null,648.20000000000005,"London"]
[null,null,null,null,null,null,null,null,null,null,null,null,null,null,null,null,null,null,null,null,null,null,null,null,null,null,null,null,null,null,null,559.98,null,null,559.98,null,null,559.98,null,null,null,559.98,"London"]
[null,null,null,null,null,null,null,null,null,null,null,null,null,null,null,null,null,null,null,null,null,null,null,null,null,null,null,null,null,null,null,709.65,null,null,709.65,null,null,709.65,null,null,null,709.65,"London"]
[null,null,null,null,null,null,null,null,null,null,null,null,null,null,null,null,null,null,null,null,null,null,null,null,null,null,null,null,null,null,null,515.52,null,null,515.52,null,null,515.52,null,null,null,515.52,"London"]
[null,null,null,null,null,null,null,null,null,null,null,null,null,null,null,null,null,null,null,null,null,null,null,null,null,null,null,null,null,null,null,564.51,null,null,564.51,null,null,564.51,null,null,null,564.51,"London"]
[null,null,null,null,null,null,null,null,null,null,null,null,null,null,null,null,null,null,null,null,null,null,null,null,null,null,null,null,null,null,null,407.51,null,null,407.51,null,null,407.51,null,null,null,407.51,"London"]
[null,null,null,null,null,null,null,null,null,null,null,null,null,null,null,null,null,null,null,null,null,null,null,null,null,null,null,null,null,null,null,486.62,null,null,486.62,null,null,486.62,null,null,null,486.62,"London"]
[null,null,null,null,null,null,null,null,null,null,null,null,null,null,null,null,null,null,null,null,null,null,null,null,null,null,null,null,null,null,null,495.77,null,null,495.77,null,null,495.77,null,null,null,495.77,"London"]
[null,null,null,null,null,null,null,null,null,null,null,null,null,null,null,null,null,null,null,null,null,null,null,null,null,null,null,null,null,null,null,428.05,null,null,428.05,null,null,428.05,null,null,null,428.05,"London"]
[null,null,null,null,null,null,null,null,null,null,null,null,null,null,null,null,null,null,null,null,null,null,null,null,null,null,null,null,null,null,null,401.73,null,null,401.73,null,null,401.73,null,null,null,401.73,"London"]
[null,null,null,null,null,null,null,null,null,null,null,null,null,null,null,null,null,null,null,null,null,null,null,null,null,null,null,null,null,null,null,394.34,null,null,394.34,null,null,394.34,null,null,null,394.34,"London"]
[null,null,null,null,null,null,null,null,null,null,null,null,null,null,null,null,null,null,null,null,null,null,null,null,null,null,null,null,null,null,null,399.99,null,null,399.99,null,null,399.99,null,null,null,399.99,"London"]
[null,null,null,null,null,null,null,null,null,null,null,null,null,null,null,null,null,null,null,null,null,null,null,null,null,null,null,null,null,null,null,395.27,null,null,395.27,null,null,395.27,null,null,null,395.27,"London"]
[null,null,null,null,null,null,null,null,null,null,null,null,null,null,null,null,null,null,null,null,null,null,null,null,null,null,null,null,null,null,null,467.76,null,null,467.76,null,null,467.76,null,null,null,467.76,"London"]
[null,null,null,null,null,null,null,null,null,null,null,null,null,null,null,null,null,null,null,null,null,null,null,null,null,null,null,null,null,null,null,485.64,null,null,485.64,null,null,485.64,null,null,null,485.64,"London"]
[null,null,null,null,null,null,null,null,null,null,null,null,null,null,null,null,null,null,null,null,null,null,null,null,null,null,null,null,null,null,null,406.45,null,null,406.45,null,null,406.45,null,null,null,406.45,"London"]
[null,null,null,null,null,null,null,null,null,null,null,null,null,null,null,null,null,null,null,null,null,null,null,null,null,null,null,null,null,null,null,398.87,null,null,398.87,null,null,398.87,null,null,null,398.87,"London"]
[null,null,null,null,null,null,null,null,null,null,null,null,null,null,null,null,null,null,null,null,null,null,null,null,null,null,null,null,null,null,null,382.9,null,null,382.9,null,null,382.9,null,null,null,382.9,"London"]
[null,null,null,null,null,null,null,null,null,null,null,null,null,null,null,null,null,null,null,null,null,null,null,null,null,null,null,null,null,null,null,349.63,null,null,349.63,null,null,349.63,null,null,null,349.63,"London"]
[null,null,null,null,null,null,null,null,null,null,null,null,null,null,null,null,null,null,null,null,null,null,null,null,null,null,null,null,null,null,null,434.83,null,null,434.83,null,null,434.83,null,null,null,434.83,"London"]
[null,null,null,null,null,null,null,null,null,null,null,null,null,null,null,null,null,null,null,null,null,null,null,null,null,null,null,null,null,null,null,385.26,null,null,385.26,null,null,385.26,null,null,null,385.26,"London"]
[null,null,null,null,null,null,null,null,null,null,null,null,null,null,null,null,null,null,null,null,null,null,null,null,null,null,null,null,null,null,null,421.06,null,null,421.06,null,null,421.06,null,null,null,421.06,"London"]
[null,null,null,null,null,null,null,null,null,null,null,null,null,null,null,null,null,null,null,null,null,null,null,null,null,null,null,null,null,null,null,392.08,null,null,392.08,null,null,392.08,null,null,null,392.08,"London"]
[null,null,null,null,null,null,null,null,null,null,null,null,null,null,null,null,null,null,null,null,null,null,null,null,null,null,null,null,null,null,null,419.45,null,null,419.45,null,null,419.45,null,null,null,419.45,"London"]
[null,null,null,null,null,null,null,null,null,null,null,null,null,null,null,null,null,null,null,null,null,null,null,null,null,null,null,null,null,null,null,303.74,null,null,303.74,null,null,303.74,null,null,null,303.74,"London"]
[null,null,null,null,null,null,null,null,null,null,null,null,null,null,null,null,null,null,null,null,null,null,null,null,null,null,null,null,null,null,null,360.46,null,null,360.46,null,null,360.46,null,null,null,360.46,"London"]
[null,null,null,null,null,null,null,null,null,null,null,null,null,null,null,null,null,null,null,null,null,null,null,null,null,null,null,null,null,null,null,406.12,null,null,406.12,null,null,406.12,null,null,null,406.12,"London"]
[null,null,null,null,null,null,null,null,null,null,null,null,null,null,null,null,null,null,null,null,null,null,null,null,null,null,null,null,null,null,null,677.67,null,null,677.67,null,null,677.67,null,null,null,677.67,"London"]
[null,null,null,null,null,null,null,null,null,null,null,null,null,null,null,null,null,null,null,null,null,null,null,null,null,null,null,null,null,null,null,595.79999999999995,null,null,595.79999999999995,null,null,595.79999999999995,null,null,null,595.79999999999995,"London"]
[null,null,null,null,null,null,null,null,null,null,null,null,null,null,null,null,null,null,null,null,null,null,null,null,null,null,null,null,null,null,null,621.51,null,null,621.51,null,null,621.51,null,null,null,621.51,"London"]
[null,null,null,null,null,null,null,null,null,null,null,null,null,null,null,null,null,null,null,null,null,null,null,null,null,null,null,null,null,null,null,490.64,null,null,490.64,null,null,490.64,null,null,null,490.64,"London"]
[null,null,null,null,null,null,null,null,null,null,null,null,null,null,null,null,null,null,null,null,null,null,null,null,null,null,null,null,null,null,null,646.54,null,null,646.54,null,null,646.54,null,null,null,646.54,"London"]
[null,null,null,null,null,null,null,null,null,null,null,null,null,null,null,null,null,null,null,null,null,null,null,null,null,null,null,null,null,null,null,568.79,null,null,568.79,null,null,568.79,null,null,null,568.79,"London"]
[null,null,null,null,null,null,null,null,null,null,null,null,null,null,null,null,null,null,null,null,null,null,null,null,null,null,null,null,null,null,null,641.6,null,null,641.6,null,null,641.6,null,null,null,641.6,"London"]
[null,null,null,null,null,null,null,null,null,null,null,null,null,null,null,null,null,null,null,null,null,null,null,null,null,null,null,null,null,null,null,666.6,null,null,666.6,null,null,666.6,null,null,null,666.6,"London"]
[null,null,null,null,null,null,null,null,null,null,null,null,null,null,null,null,null,null,null,null,null,null,null,null,null,null,null,null,null,null,null,649.42999999999995,null,null,649.42999999999995,null,null,649.42999999999995,null,null,null,649.42999999999995,"London"]
[null,null,null,null,null,null,null,null,null,null,null,null,null,null,null,null,null,null,null,null,null,null,null,null,null,null,null,null,null,null,null,529.39,null,null,529.39,null,null,529.39,null,null,null,529.39,"London"]
[null,null,null,null,null,null,null,null,null,null,null,null,null,null,null,null,null,null,null,null,null,null,null,null,null,null,null,null,null,null,null,596.75,null,null,596.75,null,null,596.75,null,null,null,596.75,"London"]
[null,null,null,null,null,null,null,null,null,null,null,null,null,null,null,null,null,null,null,null,null,null,null,null,null,null,null,null,null,null,null,596.15,null,null,596.15,null,null,596.15,null,null,null,596.15,"London"]
[null,null,null,null,null,null,null,null,null,null,null,null,null,null,null,null,null,null,null,null,null,null,null,null,null,null,null,null,null,null,null,546.69000000000005,null,null,546.69000000000005,null,null,546.69000000000005,null,null,null,546.69000000000005,"London"]
[null,null,null,null,null,null,null,null,null,null,null,null,null,null,null,null,null,null,null,null,null,null,null,null,null,null,null,null,null,null,null,579.13,null,null,579.13,null,null,579.13,null,null,null,579.13,"London"]
[null,null,null,null,null,null,null,null,null,null,null,null,null,null,null,null,null,null,null,null,null,null,null,null,null,null,null,null,null,null,null,576.61,null,null,576.61,null,null,576.61,null,null,null,576.61,"London"]
[null,null,null,null,null,null,null,null,null,null,null,null,null,null,null,null,null,null,null,null,null,null,null,null,null,null,null,null,null,null,null,679.18,null,null,679.18,null,null,679.18,null,null,null,679.18,"London"]
[null,null,null,null,null,null,null,null,null,null,null,null,null,null,null,null,null,null,null,null,null,null,null,null,null,null,null,null,null,null,null,538.66,null,null,538.66,null,null,538.66,null,null,null,538.66,"London"]
[null,null,null,null,null,null,null,null,null,null,null,null,null,null,null,null,null,null,null,null,null,null,null,null,null,null,null,null,null,null,null,511.19,null,null,511.19,null,null,511.19,null,null,null,511.19,"London"]
[null,null,null,null,null,null,null,null,null,null,null,null,null,null,null,null,null,null,null,null,null,null,null,null,null,null,null,null,null,null,null,554.41,null,null,554.41,null,null,554.41,null,null,null,554.41,"London"]
[null,null,null,null,null,null,null,null,null,null,null,null,null,null,null,null,null,null,null,null,null,null,null,null,null,null,null,null,null,null,null,723.81,null,null,723.81,null,null,723.81,null,null,null,723.81,"London"]
[null,null,null,null,null,null,null,null,null,null,null,null,null,null,null,null,null,null,null,null,null,null,null,null,null,null,null,null,null,null,null,460.4,null,null,460.4,null,null,460.4,null,null,null,460.4,"London"]
[null,null,null,null,null,null,null,null,null,null,null,null,null,null,null,null,null,null,null,null,null,null,null,null,null,null,null,null,null,null,null,511.82,null,null,511.82,null,null,511.82,null,null,null,511.82,"London"]
[null,null,null,null,null,null,null,null,null,null,null,null,null,null,null,null,null,null,null,null,null,null,null,null,null,null,null,null,null,null,null,633.48,null,null,633.48,null,null,633.48,null,null,null,633.48,"London"]
[null,null,null,null,null,null,null,null,null,null,null,null,null,null,null,null,null,null,null,null,null,null,null,null,null,null,null,null,null,null,null,381.79,null,null,381.79,null,null,381.79,null,null,null,381.79,"London"]
[null,null,null,null,null,null,null,null,null,null,null,null,null,null,null,null,null,null,null,null,null,null,null,null,null,null,null,null,null,null,null,654.97,null,null,654.97,null,null,654.97,null,null,null,654.97,"London"]
[null,null,null,null,null,null,null,null,null,null,null,null,null,null,null,null,null,null,null,null,null,null,null,null,null,null,null,null,null,null,null,350.83,null,null,350.83,null,null,350.83,null,null,null,350.83,"London"]
[null,null,null,null,null,null,null,null,null,null,null,null,null,null,null,null,null,null,null,null,null,null,null,null,null,null,null,null,null,null,null,546.1,null,null,546.1,null,null,546.1,null,null,null,546.1,"London"]
[null,null,null,null,null,null,null,null,null,null,null,null,null,null,null,null,null,null,null,null,null,null,null,null,null,null,null,null,null,null,null,636.80999999999995,null,null,636.80999999999995,null,null,636.80999999999995,null,null,null,636.80999999999995,"London"]
[null,null,null,null,null,null,null,null,null,null,null,null,null,null,null,null,null,null,null,null,null,null,null,null,null,null,null,null,null,null,null,641.98,null,null,641.98,null,null,641.98,null,null,null,641.98,"London"]
[null,null,null,null,null,null,null,null,null,null,null,null,null,null,null,null,null,null,null,null,null,null,null,null,null,null,null,null,null,null,null,433.09,null,null,433.09,null,null,433.09,null,null,null,433.09,"London"]
[null,null,null,null,null,null,null,null,null,null,null,null,null,null,null,null,null,null,null,null,null,null,null,null,null,null,null,null,null,null,null,537.4,null,null,537.4,null,null,537.4,null,null,null,537.4,"London"]
[null,null,null,null,null,null,null,null,null,null,null,null,null,null,null,null,null,null,null,null,null,null,null,null,null,null,null,null,null,null,null,499.56,null,null,{"$f":"AF460","v":499.56},null,null,{"$f":"AF460","v":499.56},null,null,null,499.56,"London"]
[null,null,null,null,null,null,null,null,null,null,null,null,null,null,null,null,null,null,null,null,null,null,null,null,null,null,null,null,null,null,null,778.38,null,null,778.38,null,null,778.38,null,null,null,778.38,"London"]
[null,null,null,null,null,null,null,null,null,null,null,null,null,null,null,null,null,null,null,null,null,null,null,null,null,null,null,null,null,null,null,549.47,null,null,549.47,null,null,549.47,null,null,null,549.47,"London"]
[null,null,null,null,null,null,null,null,null,null,null,null,null,null,null,null,null,null,null,null,null,null,null,null,null,null,null,null,null,null,null,674.57,null,null,674.57,null,null,674.57,null,null,null,674.57,"London"]
[null,null,null,null,null,null,null,null,null,null,null,null,null,null,null,null,null,null,null,null,null,null,null,null,null,null,null,null,null,null,null,404.75,null,null,404.75,null,null,404.75,null,null,null,404.75,"London"]
[null,null,null,null,null,null,null,null,null,null,null,null,null,null,null,null,null,null,null,null,null,null,null,null,null,null,null,null,null,null,null,542.73,null,null,542.73,null,null,542.73,null,null,null,542.73,"London"]
[null,null,null,null,null,null,null,null,null,null,null,null,null,null,null,null,null,null,null,null,null,null,null,null,null,null,null,null,null,null,null,667.51,null,null,667.51,null,null,667.51,null,null,null,667.51,"London"]
[null,null,null,null,null,null,null,null,null,null,null,null,null,null,null,null,null,null,null,null,null,null,null,null,null,null,null,null,null,null,null,421.85,null,null,421.85,null,null,421.85,null,null,null,421.85,"London"]
[null,null,null,null,null,null,null,null,null,null,null,null,null,null,null,null,null,null,null,null,null,null,null,null,null,null,null,null,null,null,null,501.58,null,null,501.58,null,null,501.58,null,null,null,501.58,"London"]
[null,null,null,null,null,null,null,null,null,null,null,null,null,null,null,null,null,null,null,null,null,null,null,null,null,null,null,null,null,null,null,484.1,null,null,484.1,null,null,484.1,null,null,null,484.1,"London"]
[null,null,null,null,null,null,null,null,null,null,null,null,null,null,null,null,null,null,null,null,null,null,null,null,null,null,null,null,null,null,null,467.93,null,null,467.93,null,null,467.93,null,null,null,467.93,"London"]
[null,null,null,null,null,null,null,null,null,null,null,null,null,null,null,null,null,null,null,null,null,null,null,null,null,null,null,null,null,null,null,414.5,null,null,414.5,null,null,414.5,null,null,null,414.5,"London"]
[null,null,null,null,null,null,null,null,null,null,null,null,null,null,null,null,null,null,null,null,null,null,null,null,null,null,null,null,null,null,null,463.45,null,null,463.45,null,null,463.45,null,null,null,463.45,"London"]
[null,null,null,null,null,null,null,null,null,null,null,null,null,null,null,null,null,null,null,null,null,null,null,null,null,null,null,null,null,null,null,450.23,null,null,450.23,null,null,450.23,null,null,null,450.23,"London"]
[null,null,null,null,null,null,null,null,null,null,null,null,null,null,null,null,null,null,null,null,null,null,null,null,null,null,null,null,null,null,null,507.53,null,null,507.53,null,null,507.53,null,null,null,507.53,"London"]
[null,null,null,null,null,null,null,null,null,null,null,null,null,null,null,null,null,null,null,null,null,null,null,null,null,null,null,null,null,null,null,564.69000000000005,null,null,564.69000000000005,null,null,564.69000000000005,null,null,null,564.69000000000005,"London"]
[null,null,null,null,null,null,null,null,null,null,null,null,null,null,null,null,null,null,null,null,null,null,null,null,null,null,null,null,null,null,null,520.85,null,null,520.85,null,null,520.85,null,null,null,520.85,"London"]
[null,null,null,null,null,null,null,null,null,null,null,null,null,null,null,null,null,null,null,null,null,null,null,null,null,null,null,null,null,null,null,411.23,null,null,411.23,null,null,411.23,null,null,null,411.23,"London"]
[null,null,null,null,null,null,null,null,null,null,null,null,null,null,null,null,null,null,null,null,null,null,null,null,null,null,null,null,null,null,null,572.37,null,null,572.37,null,null,572.37,null,null,null,572.37,"London"]
[null,null,null,null,null,null,null,null,null,null,null,null,null,null,null,null,null,null,null,null,null,null,null,null,null,null,null,null,null,null,null,455.9,null,null,455.9,null,null,455.9,null,null,null,455.9,"London"]
[null,null,null,null,null,null,null,null,null,null,null,null,null,null,null,null,null,null,null,null,null,null,null,null,null,null,null,null,null,null,null,576.37,null,null,576.37,null,null,576.37,null,null,null,576.37,"London"]
[null,null,null,null,null,null,null,null,null,null,null,null,null,null,null,null,null,null,null,null,null,null,null,null,null,null,null,null,null,null,null,535.27,null,null,535.27,null,null,535.27,null,null,null,535.27,"London"]
[null,null,null,null,null,null,null,null,null,null,null,null,null,null,null,null,null,null,null,null,null,null,null,null,null,null,null,null,null,null,null,584.53,null,null,584.53,null,null,584.53,null,null,null,584.53,"London"]
[null,null,null,null,null,null,null,null,null,null,null,null,null,null,null,null,null,null,null,null,null,null,null,null,null,null,null,null,null,null,null,586.17999999999995,null,null,586.17999999999995,null,null,586.17999999999995,null,null,null,586.17999999999995,"London"]
[null,null,null,null,null,null,null,null,null,null,null,null,null,null,null,null,null,null,null,null,null,null,null,null,null,null,null,null,null,null,null,540.69000000000005,null,null,540.69000000000005,null,null,540.69000000000005,null,null,null,540.69000000000005,"London"]
[null,null,null,null,null,null,null,null,null,null,null,null,null,null,null,null,null,null,null,null,null,null,null,null,null,null,null,null,null,null,null,553.51,null,null,553.51,null,null,553.51,null,null,null,553.51,"London"]
[null,null,null,null,null,null,null,null,null,null,null,null,null,null,null,null,null,null,null,null,null,null,null,null,null,null,null,null,null,null,null,580.46,null,null,580.46,null,null,580.46,null,null,null,580.46,"London"]
[null,null,null,null,null,null,null,null,null,null,null,null,null,null,null,null,null,null,null,null,null,null,null,null,null,null,null,null,null,null,null,515.84,null,null,515.84,null,null,515.84,null,null,null,515.84,"London"]
[null,null,null,null,null,null,null,null,null,null,null,null,null,null,null,null,null,null,null,null,null,null,null,null,null,null,null,null,null,null,null,608.28,null,null,608.28,null,null,608.28,null,null,null,608.28,"London"]
[null,null,null,null,null,null,null,null,null,null,null,null,null,null,null,null,null,null,null,null,null,null,null,null,null,null,null,null,null,null,null,546.26,null,null,546.26,null,null,546.26,null,null,null,546.26,"London"]
[null,null,null,null,null,null,null,null,null,null,null,null,null,null,null,null,null,null,null,null,null,null,null,null,null,null,null,null,null,null,null,606.48,null,null,606.48,null,null,606.48,null,null,null,606.48,"London"]
[null,null,null,null,null,null,null,null,null,null,null,null,null,null,null,null,null,null,null,null,null,null,null,null,null,null,null,null,null,null,null,676.04,null,null,676.04,null,null,676.04,null,null,null,676.04,"London"]
[null,null,null,null,null,null,null,null,null,null,null,null,null,null,null,null,null,null,null,null,null,null,null,null,null,null,null,null,null,null,null,593.41,null,null,593.41,null,null,593.41,null,null,null,593.41,"London"]
[null,null,null,null,null,null,null,null,null,null,null,null,null,null,null,null,null,null,null,null,null,null,null,null,null,null,null,null,null,null,null,608.5,null,null,608.5,null,null,608.5,null,null,null,608.5,"London"]
[null,null,null,null,null,null,null,null,null,null,null,null,null,null,null,null,null,null,null,null,null,null,null,null,null,null,null,null,null,null,null,584.52,null,null,584.52,null,null,584.52,null,null,null,584.52,"London"]
[null,null,null,null,null,null,null,null,null,null,null,null,null,null,null,null,null,null,null,null,null,null,null,null,null,null,null,null,null,null,null,575.67999999999995,null,null,575.67999999999995,null,null,575.67999999999995,null,null,null,575.67999999999995,"London"]
[null,null,null,null,null,null,null,null,null,null,null,null,null,null,null,null,null,null,null,null,null,null,null,null,null,null,null,null,null,null,null,499.55,null,null,499.55,null,null,499.55,null,null,null,499.55,"London"]
[null,null,null,null,null,null,null,null,null,null,null,null,null,null,null,null,null,null,null,null,null,null,null,null,null,null,null,null,null,null,null,521.70000000000005,null,null,521.70000000000005,null,null,521.70000000000005,null,null,null,521.70000000000005,"London"]
[null,null,null,null,null,null,null,null,null,null,null,null,null,null,null,null,null,null,null,null,null,null,null,null,null,null,null,null,null,null,null,479.92,null,null,479.92,null,null,479.92,null,null,null,479.92,"London"]
[null,null,null,null,null,null,null,null,null,null,null,null,null,null,null,null,null,null,null,null,null,null,null,null,null,null,null,null,null,null,null,459.48,null,null,459.48,null,null,459.48,null,null,null,459.48,"London"]
[null,null,null,null,null,null,null,null,null,null,null,null,null,null,null,null,null,null,null,null,null,null,null,null,null,null,null,null,null,null,null,470.66,null,null,470.66,null,null,470.66,null,null,null,470.66,"London"]
[null,null,null,null,null,null,null,null,null,null,null,null,null,null,null,null,null,null,null,null,null,null,null,null,null,null,null,null,null,null,null,623.77,null,null,623.77,null,null,623.77,null,null,null,623.77,"London"]
[null,null,null,null,null,null,null,null,null,null,null,null,null,null,null,null,null,null,null,null,null,null,null,null,null,null,null,null,null,null,null,448.11,null,null,448.11,null,null,448.11,null,null,null,448.11,"London"]
[null,null,null,null,null,null,null,null,null,null,null,null,null,null,null,null,null,null,null,null,null,null,null,null,null,null,null,null,null,null,null,499.67,null,null,499.67,null,null,499.67,null,null,null,499.67,"London"]
[null,null,null,null,null,null,null,null,null,null,null,null,null,null,null,null,null,null,null,null,null,null,null,null,null,null,null,null,null,null,null,489.85,null,null,489.85,null,null,489.85,null,null,null,489.85,"London"]
[null,null,null,null,null,null,null,null,null,null,null,null,null,null,null,null,null,null,null,null,null,null,null,null,null,null,null,null,null,null,null,593.13,null,null,593.13,null,null,593.13,null,null,null,593.13,"London"]
[null,null,null,null,null,null,null,null,null,null,null,null,null,null,null,null,null,null,null,null,null,null,null,null,null,null,null,null,null,null,null,409.87,null,null,409.87,null,null,409.87,null,null,null,409.87,"London"]
[null,null,null,null,null,null,null,null,null,null,null,null,null,null,null,null,null,null,null,null,null,null,null,null,null,null,null,null,null,null,null,375.94,null,null,375.94,null,null,375.94,null,null,null,375.94,"London"]
[null,null,null,null,null,null,null,null,null,null,null,null,null,null,null,null,null,null,null,null,null,null,null,null,null,null,null,null,null,null,null,417.63,null,null,417.63,null,null,417.63,null,null,null,417.63,"London"]
[null,null,null,null,null,null,null,null,null,null,null,null,null,null,null,null,null,null,null,null,null,null,null,null,null,null,null,null,null,null,null,473.78,null,null,473.78,null,null,473.78,null,null,null,473.78,"London"]
[null,null,null,null,null,null,null,null,null,null,null,null,null,null,null,null,null,null,null,null,null,null,null,null,null,null,null,null,null,null,null,424.66,null,null,424.66,null,null,424.66,null,null,null,424.66,"London"]
[null,null,null,null,null,null,null,null,null,null,null,null,null,null,null,null,null,null,null,null,null,null,null,null,null,null,null,null,null,null,null,393.56,null,null,393.56,null,null,393.56,null,null,null,393.56,"London"]
[null,null,null,null,null,null,null,null,null,null,null,null,null,null,null,null,null,null,null,null,null,null,null,null,null,null,null,null,null,null,null,463.81,null,null,463.81,null,null,463.81,null,null,null,463.81,"London"]
[null,null,null,null,null,null,null,null,null,null,null,null,null,null,null,null,null,null,null,null,null,null,null,null,null,null,null,null,null,null,null,431.62,null,null,431.62,null,null,431.62,null,null,null,431.62,"London"]
[null,null,null,null,null,null,null,null,null,null,null,null,null,null,null,null,null,null,null,null,null,null,null,null,null,null,null,null,null,null,null,440.25,null,null,440.25,null,null,440.25,null,null,null,440.25,"London"]
[null,null,null,null,null,null,null,null,null,null,null,null,null,null,null,null,null,null,null,null,null,null,null,null,null,null,null,null,null,null,null,534.08000000000004,null,null,534.08000000000004,null,null,534.08000000000004,null,null,null,534.08000000000004,"London"]
[null,null,null,null,null,null,null,null,null,null,null,null,null,null,null,null,null,null,null,null,null,null,null,null,null,null,null,null,null,null,null,394.03,null,null,394.03,null,null,394.03,null,null,null,394.03,"London"]
[null,null,null,null,null,null,null,null,null,null,null,null,null,null,null,null,null,null,null,null,null,null,null,null,null,null,null,null,null,null,null,409.29,null,null,409.29,null,null,409.29,null,null,null,409.29,"London"]
[null,null,null,null,null,null,null,null,null,null,null,null,null,null,null,null,null,null,null,null,null,null,null,null,null,null,null,null,null,null,null,313.08,null,null,313.08,null,null,313.08,null,null,null,313.08,"London"]
[null,null,null,null,null,null,null,null,null,null,null,null,null,null,null,null,null,null,null,null,null,null,null,null,null,null,null,null,null,null,null,460.3,null,null,460.3,null,null,460.3,null,null,null,460.3,"London"]
[null,null,null,null,null,null,null,null,null,null,null,null,null,null,null,null,null,null,null,null,null,null,null,null,null,null,null,null,null,null,null,534.26,null,null,534.26,null,null,534.26,null,null,null,534.26,"London"]
[null,null,null,null,null,null,null,null,null,null,null,null,null,null,null,null,null,null,null,null,null,null,null,null,null,null,null,null,null,null,null,352.86,null,null,352.86,null,null,352.86,null,null,null,352.86,"London"]
[null,null,null,null,null,null,null,null,null,null,null,null,null,null,null,null,null,null,null,null,null,null,null,null,null,null,null,null,null,null,null,326.85000000000002,null,null,326.85000000000002,null,null,326.85000000000002,null,null,null,326.85000000000002,"London"]
[null,null,null,null,null,null,null,null,null,null,null,null,null,null,null,null,null,null,null,null,null,null,null,null,null,null,null,null,null,null,null,373.29,null,null,373.29,null,null,373.29,null,null,null,373.29,"London"]
[null,null,null,null,null,null,null,null,null,null,null,null,null,null,null,null,null,null,null,null,null,null,null,null,null,null,null,null,null,null,null,331.34,null,null,{"$f":"AF524","v":331.34},null,null,{"$f":"AF524","v":331.34},null,null,null,331.34,"London"]
[null,null,null,null,null,null,null,null,null,null,null,null,null,null,null,null,null,null,null,null,null,null,null,null,null,null,null,null,null,null,null,531.6,null,null,531.6,null,null,531.6,null,null,null,531.6,"London"]
[null,null,null,null,null,null,null,null,null,null,null,null,null,null,null,null,null,null,null,null,null,null,null,null,null,null,null,null,null,null,null,399.29,null,null,399.29,null,null,399.29,null,null,null,399.29,"London"]
[null,null,null,null,null,null,null,null,null,null,null,null,null,null,null,null,null,null,null,null,null,null,null,null,null,null,null,null,null,null,null,584.04999999999995,null,null,584.04999999999995,null,null,584.04999999999995,null,null,null,584.04999999999995,"London"]
[null,null,null,null,null,null,null,null,null,null,null,null,null,null,null,null,null,null,null,null,null,null,null,null,null,null,null,null,null,null,null,360.96,null,null,360.96,null,null,360.96,null,null,null,360.96,"London"]
[null,null,null,null,null,null,null,null,null,null,null,null,null,null,null,null,null,null,null,null,null,null,null,null,null,null,null,null,null,null,null,586.11,null,null,586.11,null,null,586.11,null,null,null,586.11,"London"]
[null,null,null,null,null,null,null,null,null,null,null,null,null,null,null,null,null,null,null,null,null,null,null,null,null,null,null,null,null,null,null,541.05999999999995,null,null,541.05999999999995,null,null,541.05999999999995,null,null,null,541.05999999999995,"London"]
[null,null,null,null,null,null,null,null,null,null,null,null,null,null,null,null,null,null,null,null,null,null,null,null,null,null,null,null,null,null,null,350.74,null,null,350.74,null,null,350.74,null,null,null,350.74,"London"]
[null,null,null,null,null,null,null,null,null,null,null,null,null,null,null,null,null,null,null,null,null,null,null,null,null,null,null,null,null,null,null,482.89,null,null,482.89,null,null,482.89,null,null,null,482.89,"London"]
[null,null,null,null,null,null,null,null,null,null,null,null,null,null,null,null,null,null,null,null,null,null,null,null,null,null,null,null,null,null,null,621.63,null,null,621.63,null,null,621.63,null,null,null,621.63,"London"]
[null,null,null,null,null,null,null,null,null,null,null,null,null,null,null,null,null,null,null,null,null,null,null,null,null,null,null,null,null,null,null,604.58000000000004,null,null,604.58000000000004,null,null,604.58000000000004,null,null,null,604.58000000000004,"London"]
[null,null,null,null,null,null,null,null,null,null,null,null,null,null,null,null,null,null,null,null,null,null,null,null,null,null,null,null,null,null,null,557.53,null,null,557.53,null,null,557.53,null,null,null,557.53,"London"]
[null,null,null,null,null,null,null,null,null,null,null,null,null,null,null,null,null,null,null,null,null,null,null,null,null,null,null,null,null,null,null,679.47,null,null,679.47,null,null,679.47,null,null,null,679.47,"London"]
[null,null,null,null,null,null,null,null,null,null,null,null,null,null,null,null,null,null,null,null,null,null,null,null,null,null,null,null,null,null,null,808.76,null,null,808.76,null,null,808.76,null,null,null,808.76,"London"]
[null,null,null,null,null,null,null,null,null,null,null,null,null,null,null,null,null,null,null,null,null,null,null,null,null,null,null,null,null,null,null,608.80999999999995,null,null,608.80999999999995,null,null,608.80999999999995,null,null,null,608.80999999999995,"London"]
[null,null,null,null,null,null,null,null,null,null,null,null,null,null,null,null,null,null,null,null,null,null,null,null,null,null,null,null,null,null,null,388.05,null,null,388.05,null,null,388.05,null,null,null,388.05,"London"]
[null,null,null,null,null,null,null,null,null,null,null,null,null,null,null,null,null,null,null,null,null,null,null,null,null,null,null,null,null,null,null,557.98,null,null,557.98,null,null,557.98,null,null,null,557.98,"London"]
[null,null,null,null,null,null,null,null,null,null,null,null,null,null,null,null,null,null,null,null,null,null,null,null,null,null,null,null,null,null,null,704.55,null,null,704.55,null,null,704.55,null,null,null,704.55,"London"]
[null,null,null,null,null,null,null,null,null,null,null,null,null,null,null,null,null,null,null,null,null,null,null,null,null,null,null,null,null,null,null,757.41,null,null,757.41,null,null,757.41,null,null,null,757.41,"London"]
[null,null,null,null,null,null,null,null,null,null,null,null,null,null,null,null,null,null,null,null,null,null,null,null,null,null,null,null,null,null,null,653.67999999999995,null,null,653.67999999999995,null,null,653.67999999999995,null,null,null,653.67999999999995,"London"]
[null,null,null,null,null,null,null,null,null,null,null,null,null,null,null,null,null,null,null,null,null,null,null,null,null,null,null,null,null,null,null,428.93,null,null,428.93,null,null,428.93,null,null,null,428.93,"London"]
[null,null,null,null,null,null,null,null,null,null,null,null,null,null,null,null,null,null,null,null,null,null,null,null,null,null,null,null,null,null,null,584.80999999999995,null,null,584.80999999999995,null,null,584.80999999999995,null,null,null,584.80999999999995,"London"]
[null,null,null,null,null,null,null,null,null,null,null,null,null,null,null,null,null,null,null,null,null,null,null,null,null,null,null,null,null,null,null,689.86,null,null,689.86,null,null,689.86,null,null,null,689.86,"London"]
[null,null,null,null,null,null,null,null,null,null,null,null,null,null,null,null,null,null,null,null,null,null,null,null,null,null,null,null,null,null,null,731.44,null,null,731.44,null,null,731.44,null,null,null,731.44,"London"]
[null,null,null,null,null,null,null,null,null,null,null,null,null,null,null,null,null,null,null,null,null,null,null,null,null,null,null,null,null,null,null,437.58,null,null,437.58,null,null,437.58,null,null,null,437.58,"London"]
[null,null,null,null,null,null,null,null,null,null,null,null,null,null,null,null,null,null,null,null,null,null,null,null,null,null,null,null,null,null,null,626.86,null,null,626.86,null,null,626.86,null,null,null,626.86,"London"]
[null,null,null,null,null,null,null,null,null,null,null,null,null,null,null,null,null,null,null,null,null,null,null,null,null,null,null,null,null,null,null,752.71,null,null,752.71,null,null,752.71,null,null,null,752.71,"London"]
[null,null,null,null,null,null,null,null,null,null,null,null,null,null,null,null,null,null,null,null,null,null,null,null,null,null,null,null,null,null,null,702.72,null,null,702.72,null,null,702.72,null,null,null,702.72,"London"]
[null,null,null,null,null,null,null,null,null,null,null,null,null,null,null,null,null,null,null,null,null,null,null,null,null,null,null,null,null,null,null,516.86,null,null,516.86,null,null,516.86,null,null,null,516.86,"London"]
[null,null,null,null,null,null,null,null,null,null,null,null,null,null,null,null,null,null,null,null,null,null,null,null,null,null,null,null,null,null,null,616.5,null,null,616.5,null,null,616.5,null,null,null,616.5,"London"]
[null,null,null,null,null,null,null,null,null,null,null,null,null,null,null,null,null,null,null,null,null,null,null,null,null,null,null,null,null,null,null,743.68,null,null,743.68,null,null,743.68,null,null,null,743.68,"London"]
[null,null,null,null,null,null,null,null,null,null,null,null,null,null,null,null,null,null,null,null,null,null,null,null,null,null,null,null,null,null,null,491.82,null,null,491.82,null,null,491.82,null,null,null,491.82,"London"]
[null,null,null,null,null,null,null,null,null,null,null,null,null,null,null,null,null,null,null,null,null,null,null,null,null,null,null,null,null,null,null,661.12,null,null,661.12,null,null,661.12,null,null,null,661.12,"London"]
[null,null,null,null,null,null,null,null,null,null,null,null,null,null,null,null,null,null,null,null,null,null,null,null,null,null,null,null,null,null,null,636.52,null,null,636.52,null,null,636.52,null,null,null,636.52,"London"]
[null,null,null,null,null,null,null,null,null,null,null,null,null,null,null,null,null,null,null,null,null,null,null,null,null,null,null,null,null,null,null,573.91999999999996,null,null,573.91999999999996,null,null,573.91999999999996,null,null,null,573.91999999999996,"London"]
[null,null,null,null,null,null,null,null,null,null,null,null,null,null,null,null,null,null,null,null,null,null,null,null,null,null,null,null,null,null,null,653.45000000000005,null,null,653.45000000000005,null,null,653.45000000000005,null,null,null,653.45000000000005,"London"]
[null,null,null,null,null,null,null,null,null,null,null,null,null,null,null,null,null,null,null,null,null,null,null,null,null,null,null,null,null,null,null,704.51,null,null,704.51,null,null,704.51,null,null,null,704.51,"London"]
[null,null,null,null,null,null,null,null,null,null,null,null,null,null,null,null,null,null,null,null,null,null,null,null,null,null,null,null,null,null,null,581.63,null,null,581.63,null,null,581.63,null,null,null,581.63,"London"]
[null,null,null,null,null,null,null,null,null,null,null,null,null,null,null,null,null,null,null,null,null,null,null,null,null,null,null,null,null,null,null,682.19,null,null,682.19,null,null,682.19,null,null,null,682.19,"London"]
[null,null,null,null,null,null,null,null,null,null,null,null,null,null,null,null,null,null,null,null,null,null,null,null,null,null,null,null,null,null,null,652.32000000000005,null,null,652.32000000000005,null,null,652.32000000000005,null,null,null,652.32000000000005,"London"]
[null,null,null,null,null,null,null,null,null,null,null,null,null,null,null,null,null,null,null,null,null,null,null,null,null,null,null,null,null,null,null,676.56,null,null,676.56,null,null,676.56,null,null,null,676.56,"London"]
[null,null,null,null,null,null,null,null,null,null,null,null,null,null,null,null,null,null,null,null,null,null,null,null,null,null,null,null,null,null,null,575.17999999999995,null,null,575.17999999999995,null,null,575.17999999999995,null,null,null,575.17999999999995,"London"]
[null,null,null,null,null,null,null,null,null,null,null,null,null,null,null,null,null,null,null,null,null,null,null,null,null,null,null,null,null,null,null,682.33,null,null,682.33,null,null,682.33,null,null,null,682.33,"London"]
[null,null,null,null,null,null,null,null,null,null,null,null,null,null,null,null,null,null,null,null,null,null,null,null,null,null,null,null,null,null,null,609.87,null,null,609.87,null,null,609.87,null,null,null,609.87,"London"]
[null,null,null,null,null,null,null,null,null,null,null,null,null,null,null,null,null,null,null,null,null,null,null,null,null,null,null,null,null,null,null,557.05999999999995,null,null,557.05999999999995,null,null,557.05999999999995,null,null,null,557.05999999999995,"London"]
[null,null,null,null,null,null,null,null,null,null,null,null,null,null,null,null,null,null,null,null,null,null,null,null,null,null,null,null,null,null,null,676.23,null,null,676.23,null,null,676.23,null,null,null,676.23,"London"]
[null,null,null,null,null,null,null,null,null,null,null,null,null,null,null,null,null,null,null,null,null,null,null,null,null,null,null,null,null,null,null,611.71,null,null,611.71,null,null,611.71,null,null,null,611.71,"London"]
[null,null,null,null,null,null,null,null,null,null,null,null,null,null,null,null,null,null,null,null,null,null,null,null,null,null,null,null,null,null,null,566.5,null,null,566.5,null,null,566.5,null,null,null,566.5,"London"]
[null,null,null,null,null,null,null,null,null,null,null,null,null,null,null,null,null,null,null,null,null,null,null,null,null,null,null,null,null,null,null,592.66999999999996,null,null,592.66999999999996,null,null,592.66999999999996,null,null,null,592.66999999999996,"London"]
[null,null,null,null,null,null,null,null,null,null,null,null,null,null,null,null,null,null,null,null,null,null,null,null,null,null,null,null,null,null,null,495.21,null,null,495.21,null,null,495.21,null,null,null,495.21,"London"]
[null,null,null,null,null,null,null,null,null,null,null,null,null,null,null,null,null,null,null,null,null,null,null,null,null,null,null,null,null,null,null,494.05,null,null,494.05,null,null,494.05,null,null,null,494.05,"London"]
[null,null,null,null,null,null,null,null,null,null,null,null,null,null,null,null,null,null,null,null,null,null,null,null,null,null,null,null,null,null,null,439.17,null,null,439.17,null,null,439.17,null,null,null,439.17,"London"]
[null,null,null,null,null,null,null,null,null,null,null,null,null,null,null,null,null,null,null,null,null,null,null,null,null,null,null,null,null,null,null,502.23,null,null,502.23,null,null,502.23,null,null,null,502.23,"London"]
[null,null,null,null,null,null,null,null,null,null,null,null,null,null,null,null,null,null,null,null,null,null,null,null,null,null,null,null,null,null,null,507.04,null,null,507.04,null,null,507.04,null,null,null,507.04,"London"]
[null,null,null,null,null,null,null,null,null,null,null,null,null,null,null,null,null,null,null,null,null,null,null,null,null,null,null,null,null,null,null,412.7,null,null,412.7,null,null,412.7,null,null,null,412.7,"London"]
[null,null,null,null,null,null,null,null,null,null,null,null,null,null,null,null,null,null,null,null,null,null,null,null,null,null,null,null,null,null,null,479.64,null,null,479.64,null,null,479.64,null,null,null,479.64,"London"]
[null,null,null,null,null,null,null,null,null,null,null,null,null,null,null,null,null,null,null,null,null,null,null,null,null,null,null,null,null,null,null,427.5,null,null,427.5,null,null,427.5,null,null,null,427.5,"London"]
[null,null,null,null,null,null,null,null,null,null,null,null,null,null,null,null,null,null,null,null,null,null,null,null,null,null,null,null,null,null,null,462.3,null,null,462.3,null,null,462.3,null,null,null,462.3,"London"]
[null,null,null,null,null,null,null,null,null,null,null,null,null,null,null,null,null,null,null,null,null,null,null,null,null,null,null,null,null,null,null,431.5,null,null,431.5,null,null,431.5,null,null,null,431.5,"London"]
[null,null,null,null,null,null,null,null,null,null,null,null,null,null,null,null,null,null,null,null,null,null,null,null,null,null,null,null,null,null,null,461.84,null,null,461.84,null,null,461.84,null,null,null,461.84,"London"]
[null,null,null,null,null,null,null,null,null,null,null,null,null,null,null,null,null,null,null,null,null,null,null,null,null,null,null,null,null,null,null,356.16,null,null,356.16,null,null,356.16,null,null,null,356.16,"London"]
[null,null,null,null,null,null,null,null,null,null,null,null,null,null,null,null,null,null,null,null,null,null,null,null,null,null,null,null,null,null,null,439.15,null,null,439.15,null,null,439.15,null,null,null,439.15,"London"]
[null,null,null,null,null,null,null,null,null,null,null,null,null,null,null,null,null,null,null,null,null,null,null,null,null,null,null,null,null,null,null,564.33000000000004,null,null,564.33000000000004,null,null,564.33000000000004,null,null,null,564.33000000000004,"London"]
[null,null,null,null,null,null,null,null,null,null,null,null,null,null,null,null,null,null,null,null,null,null,null,null,null,null,null,null,null,null,null,615.91,null,null,615.91,null,null,615.91,null,null,null,615.91,"London"]
[null,null,null,null,null,null,null,null,null,null,null,null,null,null,null,null,null,null,null,null,null,null,null,null,null,null,null,null,null,null,null,388.48,null,null,{"$f":"AF588","v":388.48},null,null,{"$f":"AF588","v":388.48},null,null,null,388.48,"London"]
[null,null,null,null,null,null,null,null,null,null,null,null,null,null,null,null,null,null,null,null,null,null,null,null,null,null,null,null,null,null,null,395.55,null,null,395.55,null,null,395.55,null,null,null,395.55,"London"]
[null,null,null,null,null,null,null,null,null,null,null,null,null,null,null,null,null,null,null,null,null,null,null,null,null,null,null,null,null,null,null,638.25,null,null,638.25,null,null,638.25,null,null,null,638.25,"London"]
[null,null,null,null,null,null,null,null,null,null,null,null,null,null,null,null,null,null,null,null,null,null,null,null,null,null,null,null,null,null,null,541.46,null,null,541.46,null,null,541.46,null,null,null,541.46,"London"]
[null,null,null,null,null,null,null,null,null,null,null,null,null,null,null,null,null,null,null,null,null,null,null,null,null,null,null,null,null,null,null,736.25,null,null,736.25,null,null,736.25,null,null,null,736.25,"London"]
[null,null,null,null,null,null,null,null,null,null,null,null,null,null,null,null,null,null,null,null,null,null,null,null,null,null,null,null,null,null,null,499.69,null,null,499.69,null,null,499.69,null,null,null,499.69,"London"]
[null,null,null,null,null,null,null,null,null,null,null,null,null,null,null,null,null,null,null,null,null,null,null,null,null,null,null,null,null,null,null,518.53,null,null,518.53,null,null,518.53,null,null,null,518.53,"London"]
[null,null,null,null,null,null,null,null,null,null,null,null,null,null,null,null,null,null,null,null,null,null,null,null,null,null,null,null,null,null,null,671.64,null,null,671.64,null,null,671.64,null,null,null,671.64,"London"]
[null,null,null,null,null,null,null,null,null,null,null,null,null,null,null,null,null,null,null,null,null,null,null,null,null,null,null,null,null,null,null,510.45,null,null,510.45,null,null,510.45,null,null,null,510.45,"London"]
[null,null,null,null,null,null,null,null,null,null,null,null,null,null,null,null,null,null,null,null,null,null,null,null,null,null,null,null,null,null,null,490.59,null,null,490.59,null,null,490.59,null,null,null,490.59,"London"]
[null,null,null,null,null,null,null,null,null,null,null,null,null,null,null,null,null,null,null,null,null,null,null,null,null,null,null,null,null,null,null,653.02,null,null,653.02,null,null,653.02,null,null,null,653.02,"London"]
[null,null,null,null,null,null,null,null,null,null,null,null,null,null,null,null,null,null,null,null,null,null,null,null,null,null,null,null,null,null,null,365.04,null,null,365.04,null,null,365.04,null,null,null,365.04,"London"]
[null,null,null,null,null,null,null,null,null,null,null,null,null,null,null,null,null,null,null,null,null,null,null,null,null,null,null,null,null,null,null,610.21,null,null,610.21,null,null,610.21,null,null,null,610.21,"London"]
[null,null,null,null,null,null,null,null,null,null,null,null,null,null,null,null,null,null,null,null,null,null,null,null,null,null,null,null,null,null,null,432.19,null,null,432.19,null,null,432.19,null,null,null,432.19,"London"]
[null,null,null,null,null,null,null,null,null,null,null,null,null,null,null,null,null,null,null,null,null,null,null,null,null,null,null,null,null,null,null,680.36,null,null,680.36,null,null,680.36,null,null,null,680.36,"London"]
[null,null,null,null,null,null,null,null,null,null,null,null,null,null,null,null,null,null,null,null,null,null,null,null,null,null,null,null,null,null,null,558.48,null,null,558.48,null,null,558.48,null,null,null,558.48,"London"]
[null,null,null,null,null,null,null,null,null,null,null,null,null,null,null,null,null,null,null,null,null,null,null,null,null,null,null,null,null,null,null,749.52,null,null,749.52,null,null,749.52,null,null,null,749.52,"London"]
[null,null,null,null,null,null,null,null,null,null,null,null,null,null,null,null,null,null,null,null,null,null,null,null,null,null,null,null,null,null,null,387.39,null,null,387.39,null,null,387.39,null,null,null,387.39,"London"]
[null,null,null,null,null,null,null,null,null,null,null,null,null,null,null,null,null,null,null,null,null,null,null,null,null,null,null,null,null,null,null,651.29999999999995,null,null,651.29999999999995,null,null,651.29999999999995,null,null,null,651.29999999999995,"London"]
[null,null,null,null,null,null,null,null,null,null,null,null,null,null,null,null,null,null,null,null,null,null,null,null,null,null,null,null,null,null,null,705.21,null,null,705.21,null,null,705.21,null,null,null,705.21,"London"]
[null,null,null,null,null,null,null,null,null,null,null,null,null,null,null,null,null,null,null,null,null,null,null,null,null,null,null,null,null,null,null,608.66,null,null,608.66,null,null,608.66,null,null,null,608.66,"London"]
[null,null,null,null,null,null,null,null,null,null,null,null,null,null,null,null,null,null,null,null,null,null,null,null,null,null,null,null,null,null,null,618.83000000000004,null,null,618.83000000000004,null,null,618.83000000000004,null,null,null,618.83000000000004,"London"]
[null,null,null,null,null,null,null,null,null,null,null,null,null,null,null,null,null,null,null,null,null,null,null,null,null,null,null,null,null,null,null,629.70000000000005,null,null,629.70000000000005,null,null,629.70000000000005,null,null,null,629.70000000000005,"London"]
[null,null,null,null,null,null,null,null,null,null,null,null,null,null,null,null,null,null,null,null,null,null,null,null,null,null,null,null,null,null,null,689.18,null,null,689.18,null,null,689.18,null,null,null,689.18,"London"]
[null,null,null,null,null,null,null,null,null,null,null,null,null,null,null,null,null,null,null,null,null,null,null,null,null,null,null,null,null,null,null,681.33,null,null,681.33,null,null,681.33,null,null,null,681.33,"London"]
[null,null,null,null,null,null,null,null,null,null,null,null,null,null,null,null,null,null,null,null,null,null,null,null,null,null,null,null,null,null,null,618.83000000000004,null,null,618.83000000000004,null,null,618.83000000000004,null,null,null,618.83000000000004,"London"]
[null,null,null,null,null,null,null,null,null,null,null,null,null,null,null,null,null,null,null,null,null,null,null,null,null,null,null,null,null,null,null,472.94,null,null,472.94,null,null,472.94,null,null,null,472.94,"London"]
[null,null,null,null,null,null,null,null,null,null,null,null,null,null,null,null,null,null,null,null,null,null,null,null,null,null,null,null,null,null,null,470.81,null,null,470.81,null,null,470.81,null,null,null,470.81,"London"]
[null,null,null,null,null,null,null,null,null,null,null,null,null,null,null,null,null,null,null,null,null,null,null,null,null,null,null,null,null,null,null,516.87,null,null,516.87,null,null,516.87,null,null,null,516.87,"London"]
[null,null,null,null,null,null,null,null,null,null,null,null,null,null,null,null,null,null,null,null,null,null,null,null,null,null,null,null,null,null,null,415.22,null,null,415.22,null,null,415.22,null,null,null,415.22,"London"]
[null,null,null,null,null,null,null,null,null,null,null,null,null,null,null,null,null,null,null,null,null,null,null,null,null,null,null,null,null,null,null,495.14,null,null,495.14,null,null,495.14,null,null,null,495.14,"London"]
[null,null,null,null,null,null,null,null,null,null,null,null,null,null,null,null,null,null,null,null,null,null,null,null,null,null,null,null,null,null,null,459.86,null,null,459.86,null,null,459.86,null,null,null,459.86,"London"]
[null,null,null,null,null,null,null,null,null,null,null,null,null,null,null,null,null,null,null,null,null,null,null,null,null,null,null,null,null,null,null,469.96,null,null,469.96,null,null,469.96,null,null,null,469.96,"London"]
[null,null,null,null,null,null,null,null,null,null,null,null,null,null,null,null,null,null,null,null,null,null,null,null,null,null,null,null,null,null,null,520.49,null,null,520.49,null,null,520.49,null,null,null,520.49,"London"]
[null,null,null,null,null,null,null,null,null,null,null,null,null,null,null,null,null,null,null,null,null,null,null,null,null,null,null,null,null,null,null,369.57,null,null,369.57,null,null,369.57,null,null,null,369.57,"London"]
[null,null,null,null,null,null,null,null,null,null,null,null,null,null,null,null,null,null,null,null,null,null,null,null,null,null,null,null,null,null,null,394.61,null,null,394.61,null,null,394.61,null,null,null,394.61,"London"]
[null,null,null,null,null,null,null,null,null,null,null,null,null,null,null,null,null,null,null,null,null,null,null,null,null,null,null,null,null,null,null,417.47,null,null,417.47,null,null,417.47,null,null,null,417.47,"London"]
[null,null,null,null,null,null,null,null,null,null,null,null,null,null,null,null,null,null,null,null,null,null,null,null,null,null,null,null,null,null,null,574.94000000000005,null,null,574.94000000000005,null,null,574.94000000000005,null,null,null,574.94000000000005,"London"]
[null,null,null,null,null,null,null,null,null,null,null,null,null,null,null,null,null,null,null,null,null,null,null,null,null,null,null,null,null,null,null,443.2,null,null,443.2,null,null,443.2,null,null,null,443.2,"London"]
[null,null,null,null,null,null,null,null,null,null,null,null,null,null,null,null,null,null,null,null,null,null,null,null,null,null,null,null,null,null,null,805.56,null,null,805.56,null,null,805.56,null,null,null,805.56,"London"]
[null,null,null,null,null,null,null,null,null,null,null,null,null,null,null,null,null,null,null,null,null,null,null,null,null,null,null,null,null,null,null,464.12,null,null,464.12,null,null,464.12,null,null,null,464.12,"London"]
[null,null,null,null,null,null,null,null,null,null,null,null,null,null,null,null,null,null,null,null,null,null,null,null,null,null,null,null,null,null,null,449.35,null,null,449.35,null,null,449.35,null,null,null,449.35,"London"]
[null,null,null,null,null,null,null,null,null,null,null,null,null,null,null,null,null,null,null,null,null,null,null,null,null,null,null,null,null,null,null,413.4,null,null,413.4,null,null,413.4,null,null,null,413.4,"London"]
[null,null,null,null,null,null,null,null,null,null,null,null,null,null,null,null,null,null,null,null,null,null,null,null,null,null,null,null,null,null,null,424.24,null,null,424.24,null,null,424.24,null,null,null,424.24,"London"]
[null,null,null,null,null,null,null,null,null,null,null,null,null,null,null,null,null,null,null,null,null,null,null,null,null,null,null,null,null,null,null,579.77,null,null,579.77,null,null,579.77,null,null,null,579.77,"London"]
[null,null,null,null,null,null,null,null,null,null,null,null,null,null,null,null,null,null,null,null,null,null,null,null,null,null,null,null,null,null,null,688.9,null,null,688.9,null,null,688.9,null,null,null,688.9,"London"]
[null,null,null,null,null,null,null,null,null,null,null,null,null,null,null,null,null,null,null,null,null,null,null,null,null,null,null,null,null,null,null,708.32,null,null,708.32,null,null,708.32,null,null,null,708.32,"London"]
[null,null,null,null,null,null,null,null,null,null,null,null,null,null,null,null,null,null,null,null,null,null,null,null,null,null,null,null,null,null,null,534.04999999999995,null,null,534.04999999999995,null,null,534.04999999999995,null,null,null,534.04999999999995,"London"]
[null,null,null,null,null,null,null,null,null,null,null,null,null,null,null,null,null,null,null,null,null,null,null,null,null,null,null,null,null,null,null,615.14,null,null,615.14,null,null,615.14,null,null,null,615.14,"London"]
[null,null,null,null,null,null,null,null,null,null,null,null,null,null,null,null,null,null,null,null,null,null,null,null,null,null,null,null,null,null,null,403.56,null,null,403.56,null,null,403.56,null,null,null,403.56,"London"]
[null,null,null,null,null,null,null,null,null,null,null,null,null,null,null,null,null,null,null,null,null,null,null,null,null,null,null,null,null,null,null,466.9,null,null,466.9,null,null,466.9,null,null,null,466.9,"London"]
[null,null,null,null,null,null,null,null,null,null,null,null,null,null,null,null,null,null,null,null,null,null,null,null,null,null,null,null,null,null,null,485.23,null,null,485.23,null,null,485.23,null,null,null,485.23,"London"]
[null,null,null,null,null,null,null,null,null,null,null,null,null,null,null,null,null,null,null,null,null,null,null,null,null,null,null,null,null,null,null,361.73,null,null,361.73,null,null,361.73,null,null,null,361.73,"London"]
[null,null,null,null,null,null,null,null,null,null,null,null,null,null,null,null,null,null,null,null,null,null,null,null,null,null,null,null,null,null,null,644.69000000000005,null,null,644.69000000000005,null,null,644.69000000000005,null,null,null,644.69000000000005,"London"]
[null,null,null,null,null,null,null,null,null,null,null,null,null,null,null,null,null,null,null,null,null,null,null,null,null,null,null,null,null,null,null,503.4,null,null,503.4,null,null,503.4,null,null,null,503.4,"London"]
[null,null,null,null,null,null,null,null,null,null,null,null,null,null,null,null,null,null,null,null,null,null,null,null,null,null,null,null,null,null,null,365.39,null,null,365.39,null,null,365.39,null,null,null,365.39,"London"]
[null,null,null,null,null,null,null,null,null,null,null,null,null,null,null,null,null,null,null,null,null,null,null,null,null,null,null,null,null,null,null,591.71,null,null,591.71,null,null,591.71,null,null,null,591.71,"London"]
[null,null,null,null,null,null,null,null,null,null,null,null,null,null,null,null,null,null,null,null,null,null,null,null,null,null,null,null,null,null,null,643.99,null,null,643.99,null,null,643.99,null,null,null,643.99,"London"]
[null,null,null,null,null,null,null,null,null,null,null,null,null,null,null,null,null,null,null,null,null,null,null,null,null,null,null,null,null,null,null,744.89,null,null,744.89,null,null,744.89,null,null,null,744.89,"London"]
[null,null,null,null,null,null,null,null,null,null,null,null,null,null,null,null,null,null,null,null,null,null,null,null,null,null,null,null,null,null,null,394.91,null,null,394.91,null,null,394.91,null,null,null,394.91,"London"]
[null,null,null,null,null,null,null,null,null,null,null,null,null,null,null,null,null,null,null,null,null,null,null,null,null,null,null,null,null,null,null,804.72,null,null,804.72,null,null,804.72,null,null,null,804.72,"London"]
[null,null,null,null,null,null,null,null,null,null,null,null,null,null,null,null,null,null,null,null,null,null,null,null,null,null,null,null,null,null,null,697.2,null,null,697.2,null,null,697.2,null,null,null,697.2,"London"]
[null,null,null,null,null,null,null,null,null,null,null,null,null,null,null,null,null,null,null,null,null,null,null,null,null,null,null,null,null,null,null,350.72,null,null,350.72,null,null,350.72,null,null,null,350.72,"London"]
[null,null,null,null,null,null,null,null,null,null,null,null,null,null,null,null,null,null,null,null,null,null,null,null,null,null,null,null,null,null,null,403.18,null,null,403.18,null,null,403.18,null,null,null,403.18,"London"]
[null,null,null,null,null,null,null,null,null,null,null,null,null,null,null,null,null,null,null,null,null,null,null,null,null,null,null,null,null,null,null,698.1,null,null,{"$f":"AF652","v":698.1},null,null,{"$f":"AF652","v":698.1},null,null,null,698.1,"London"]
[null,null,null,null,null,null,null,null,null,null,null,null,null,null,null,null,null,null,null,null,null,null,null,null,null,null,null,null,null,null,null,700.05,null,null,700.05,null,null,700.05,null,null,null,700.05,"London"]
[null,null,null,null,null,null,null,null,null,null,null,null,null,null,null,null,null,null,null,null,null,null,null,null,null,null,null,null,null,null,null,459.77,null,null,459.77,null,null,459.77,null,null,null,459.77,"London"]
[null,null,null,null,null,null,null,null,null,null,null,null,null,null,null,null,null,null,null,null,null,null,null,null,null,null,null,null,null,null,null,389.94,null,null,389.94,null,null,389.94,null,null,null,389.94,"London"]
[null,null,null,null,null,null,null,null,null,null,null,null,null,null,null,null,null,null,null,null,null,null,null,null,null,null,null,null,null,null,null,426.42,null,null,426.42,null,null,426.42,null,null,null,426.42,"London"]
[null,null,null,null,null,null,null,null,null,null,null,null,null,null,null,null,null,null,null,null,null,null,null,null,null,null,null,null,null,null,null,544.49,null,null,544.49,null,null,544.49,null,null,null,544.49,"London"]
[null,null,null,null,null,null,null,null,null,null,null,null,null,null,null,null,null,null,null,null,null,null,null,null,null,null,null,null,null,null,null,456.19,null,null,456.19,null,null,456.19,null,null,null,456.19,"London"]
[null,null,null,null,null,null,null,null,null,null,null,null,null,null,null,null,null,null,null,null,null,null,null,null,null,null,null,null,null,null,null,360.31,null,null,360.31,null,null,360.31,null,null,null,360.31,"London"]
[null,null,null,null,null,null,null,null,null,null,null,null,null,null,null,null,null,null,null,null,null,null,null,null,null,null,null,null,null,null,null,425.61,null,null,425.61,null,null,425.61,null,null,null,425.61,"London"]
[null,null,null,null,null,null,null,null,null,null,null,null,null,null,null,null,null,null,null,null,null,null,null,null,null,null,null,null,null,null,null,609.07000000000005,null,null,609.07000000000005,null,null,609.07000000000005,null,null,null,609.07000000000005,"London"]
[null,null,null,null,null,null,null,null,null,null,null,null,null,null,null,null,null,null,null,null,null,null,null,null,null,null,null,null,null,null,null,603.78,null,null,603.78,null,null,603.78,null,null,null,603.78,"London"]
[null,null,null,null,null,null,null,null,null,null,null,null,null,null,null,null,null,null,null,null,null,null,null,null,null,null,null,null,null,null,null,631.02,null,null,631.02,null,null,631.02,null,null,null,631.02,"London"]
[null,null,null,null,null,null,null,null,null,null,null,null,null,null,null,null,null,null,null,null,null,null,null,null,null,null,null,null,null,null,null,607.55999999999995,null,null,607.55999999999995,null,null,607.55999999999995,null,null,null,607.55999999999995,"London"]
[null,null,null,null,null,null,null,null,null,null,null,null,null,null,null,null,null,null,null,null,null,null,null,null,null,null,null,null,null,null,null,393.91,null,null,393.91,null,null,393.91,null,null,null,393.91,"London"]
[null,null,null,null,null,null,null,null,null,null,null,null,null,null,null,null,null,null,null,null,null,null,null,null,null,null,null,null,null,null,null,626.63,null,null,626.63,null,null,626.63,null,null,null,626.63,"London"]
[null,null,null,null,null,null,null,null,null,null,null,null,null,null,null,null,null,null,null,null,null,null,null,null,null,null,null,null,null,null,null,352.12,null,null,352.12,null,null,352.12,null,null,null,352.12,"London"]
[null,null,null,null,null,null,null,null,null,null,null,null,null,null,null,null,null,null,null,null,null,null,null,null,null,null,null,null,null,null,null,515.29999999999995,null,null,515.29999999999995,null,null,515.29999999999995,null,null,null,515.29999999999995,"London"]
[null,null,null,null,null,null,null,null,null,null,null,null,null,null,null,null,null,null,null,null,null,null,null,null,null,null,null,null,null,null,null,521.85,null,null,521.85,null,null,521.85,null,null,null,521.85,"London"]
[null,null,null,null,null,null,null,null,null,null,null,null,null,null,null,null,null,null,null,null,null,null,null,null,null,null,null,null,null,null,null,665.1,null,null,665.1,null,null,665.1,null,null,null,665.1,"London"]
[null,null,null,null,null,null,null,null,null,null,null,null,null,null,null,null,null,null,null,null,null,null,null,null,null,null,null,null,null,null,null,412.34,null,null,412.34,null,null,412.34,null,null,null,412.34,"London"]
[null,null,null,null,null,null,null,null,null,null,null,null,null,null,null,null,null,null,null,null,null,null,null,null,null,null,null,null,null,null,null,605.22,null,null,605.22,null,null,605.22,null,null,null,605.22,"London"]
[null,null,null,null,null,null,null,null,null,null,null,null,null,null,null,null,null,null,null,null,null,null,null,null,null,null,null,null,null,null,null,525.38,null,null,525.38,null,null,525.38,null,null,null,525.38,"London"]
[null,null,null,null,null,null,null,null,null,null,null,null,null,null,null,null,null,null,null,null,null,null,null,null,null,null,null,null,null,null,null,615.30999999999995,null,null,615.30999999999995,null,null,615.30999999999995,null,null,null,615.30999999999995,"London"]
[null,null,null,null,null,null,null,null,null,null,null,null,null,null,null,null,null,null,null,null,null,null,null,null,null,null,null,null,null,null,null,687.04,null,null,687.04,null,null,687.04,null,null,null,687.04,"London"]
[null,null,null,null,null,null,null,null,null,null,null,null,null,null,null,null,null,null,null,null,null,null,null,null,null,null,null,null,null,null,null,386.52,null,null,386.52,null,null,386.52,null,null,null,386.52,"London"]
[null,null,null,null,null,null,null,null,null,null,null,null,null,null,null,null,null,null,null,null,null,null,null,null,null,null,null,null,null,null,null,416.74,null,null,416.74,null,null,416.74,null,null,null,416.74,"London"]
[null,null,null,null,null,null,null,null,null,null,null,null,null,null,null,null,null,null,null,null,null,null,null,null,null,null,null,null,null,null,null,355.46,null,null,355.46,null,null,355.46,null,null,null,355.46,"London"]
[null,null,null,null,null,null,null,null,null,null,null,null,null,null,null,null,null,null,null,null,null,null,null,null,null,null,null,null,null,null,null,509.66,null,null,509.66,null,null,509.66,null,null,null,509.66,"London"]
[null,null,null,null,null,null,null,null,null,null,null,null,null,null,null,null,null,null,null,null,null,null,null,null,null,null,null,null,null,null,null,355.86,null,null,355.86,null,null,355.86,null,null,null,355.86,"London"]
[null,null,null,null,null,null,null,null,null,null,null,null,null,null,null,null,null,null,null,null,null,null,null,null,null,null,null,null,null,null,null,711.29,null,null,711.29,null,null,711.29,null,null,null,711.29,"London"]
[null,null,null,null,null,null,null,null,null,null,null,null,null,null,null,null,null,null,null,null,null,null,null,null,null,null,null,null,null,null,null,589.26,null,null,589.26,null,null,589.26,null,null,null,589.26,"London"]
[null,null,null,null,null,null,null,null,null,null,null,null,null,null,null,null,null,null,null,null,null,null,null,null,null,null,null,null,null,null,null,318.13,null,null,318.13,null,null,318.13,null,null,null,318.13,"London"]
[null,null,null,null,null,null,null,null,null,null,null,null,null,null,null,null,null,null,null,null,null,null,null,null,null,null,null,null,null,null,null,446.89,null,null,446.89,null,null,446.89,null,null,null,446.89,"London"]
[null,null,null,null,null,null,null,null,null,null,null,null,null,null,null,null,null,null,null,null,null,null,null,null,null,null,null,null,null,null,null,513.34,null,null,513.34,null,null,513.34,null,null,null,513.34,"London"]
[null,null,null,null,null,null,null,null,null,null,null,null,null,null,null,null,null,null,null,null,null,null,null,null,null,null,null,null,null,null,null,362.86,null,null,362.86,null,null,362.86,null,null,null,362.86,"London"]
[null,null,null,null,null,null,null,null,null,null,null,null,null,null,null,null,null,null,null,null,null,null,null,null,null,null,null,null,null,null,null,443.01,null,null,443.01,null,null,443.01,null,null,null,443.01,"London"]
[null,null,null,null,null,null,null,null,null,null,null,null,null,null,null,null,null,null,null,null,null,null,null,null,null,null,null,null,null,null,null,538.54,null,null,538.54,null,null,538.54,null,null,null,538.54,"London"]
[null,null,null,null,null,null,null,null,null,null,null,null,null,null,null,null,null,null,null,null,null,null,null,null,null,null,null,null,null,null,null,345.01,null,null,345.01,null,null,345.01,null,null,null,345.01,"London"]
[null,null,null,null,null,null,null,null,null,null,null,null,null,null,null,null,null,null,null,null,null,null,null,null,null,null,null,null,null,null,null,390.85,null,null,390.85,null,null,390.85,null,null,null,390.85,"London"]
[null,null,null,null,null,null,null,null,null,null,null,null,null,null,null,null,null,null,null,null,null,null,null,null,null,null,null,null,null,null,null,443.02,null,null,443.02,null,null,443.02,null,null,null,443.02,"London"]
[null,null,null,null,null,null,null,null,null,null,null,null,null,null,null,null,null,null,null,null,null,null,null,null,null,null,null,null,null,null,null,404.69,null,null,404.69,null,null,404.69,null,null,null,404.69,"London"]
[null,null,null,null,null,null,null,null,null,null,null,null,null,null,null,null,null,null,null,null,null,null,null,null,null,null,null,null,null,null,null,452.45,null,null,452.45,null,null,452.45,null,null,null,452.45,"London"]
[null,null,null,null,null,null,null,null,null,null,null,null,null,null,null,null,null,null,null,null,null,null,null,null,null,null,null,null,null,null,null,385.73,null,null,385.73,null,null,385.73,null,null,null,385.73,"London"]
[null,null,null,null,null,null,null,null,null,null,null,null,null,null,null,null,null,null,null,null,null,null,null,null,null,null,null,null,null,null,null,391.05,null,null,391.05,null,null,391.05,null,null,null,391.05,"London"]
[null,null,null,null,null,null,null,null,null,null,null,null,null,null,null,null,null,null,null,null,null,null,null,null,null,null,null,null,null,null,null,430.9,null,null,430.9,null,null,430.9,null,null,null,430.9,"London"]
[null,null,null,null,null,null,null,null,null,null,null,null,null,null,null,null,null,null,null,null,null,null,null,null,null,null,null,null,null,null,null,468.71,null,null,468.71,null,null,468.71,null,null,null,468.71,"London"]
[null,null,null,null,null,null,null,null,null,null,null,null,null,null,null,null,null,null,null,null,null,null,null,null,null,null,null,null,null,null,null,390.85,null,null,390.85,null,null,390.85,null,null,null,390.85,"London"]
[null,null,null,null,null,null,null,null,null,null,null,null,null,null,null,null,null,null,null,null,null,null,null,null,null,null,null,null,null,null,null,351.04,null,null,351.04,null,null,351.04,null,null,null,351.04,"London"]
[null,null,null,null,null,null,null,null,null,null,null,null,null,null,null,null,null,null,null,null,null,null,null,null,null,null,null,null,null,null,null,450.43,null,null,450.43,null,null,450.43,null,null,null,450.43,"London"]
[null,null,null,null,null,null,null,null,null,null,null,null,null,null,null,null,null,null,null,null,null,null,null,null,null,null,null,null,null,null,null,591.04999999999995,null,null,591.04999999999995,null,null,591.04999999999995,null,null,null,591.04999999999995,"London"]
[null,null,null,null,null,null,null,null,null,null,null,null,null,null,null,null,null,null,null,null,null,null,null,null,null,null,null,null,null,null,null,397.98,null,null,397.98,null,null,397.98,null,null,null,397.98,"London"]
[null,null,null,null,null,null,null,null,null,null,null,null,null,null,null,null,null,null,null,null,null,null,null,null,null,null,null,null,null,null,null,690.93,null,null,690.93,null,null,690.93,null,null,null,690.93,"London"]
[null,null,null,null,null,null,null,null,null,null,null,null,null,null,null,null,null,null,null,null,null,null,null,null,null,null,null,null,null,null,null,507.97,null,null,507.97,null,null,507.97,null,null,null,507.97,"London"]
[null,null,null,null,null,null,null,null,null,null,null,null,null,null,null,null,null,null,null,null,null,null,null,null,null,null,null,null,null,null,null,484.92,null,null,484.92,null,null,484.92,null,null,null,484.92,"London"]
[null,null,null,null,null,null,null,null,null,null,null,null,null,null,null,null,null,null,null,null,null,null,null,null,null,null,null,null,null,null,null,606.29999999999995,null,null,606.29999999999995,null,null,606.29999999999995,null,null,null,606.29999999999995,"London"]
[null,null,null,null,null,null,null,null,null,null,null,null,null,null,null,null,null,null,null,null,null,null,null,null,null,null,null,null,null,null,null,821.68,null,null,821.68,null,null,821.68,null,null,null,821.68,"London"]
[null,null,null,null,null,null,null,null,null,null,null,null,null,null,null,null,null,null,null,null,null,null,null,null,null,null,null,null,null,null,null,539.61,null,null,539.61,null,null,539.61,null,null,null,539.61,"London"]
[null,null,null,null,null,null,null,null,null,null,null,null,null,null,null,null,null,null,null,null,null,null,null,null,null,null,null,null,null,null,null,615.97,null,null,615.97,null,null,615.97,null,null,null,615.97,"London"]
[null,null,null,null,null,null,null,null,null,null,null,null,null,null,null,null,null,null,null,null,null,null,null,null,null,null,null,null,null,null,null,484.6,null,null,484.6,null,null,484.6,null,null,null,484.6,"London"]
[null,null,null,null,null,null,null,null,null,null,null,null,null,null,null,null,null,null,null,null,null,null,null,null,null,null,null,null,null,null,null,638.54,null,null,638.54,null,null,638.54,null,null,null,638.54,"London"]
[null,null,null,null,null,null,null,null,null,null,null,null,null,null,null,null,null,null,null,null,null,null,null,null,null,null,null,null,null,null,null,587.09,null,null,587.09,null,null,587.09,null,null,null,587.09,"London"]
[null,null,null,null,null,null,null,null,null,null,null,null,null,null,null,null,null,null,null,null,null,null,null,null,null,null,null,null,null,null,null,438.64,null,null,438.64,null,null,438.64,null,null,null,438.64,"London"]
[null,null,null,null,null,null,null,null,null,null,null,null,null,null,null,null,null,null,null,null,null,null,null,null,null,null,null,null,null,null,null,478.22,null,null,478.22,null,null,478.22,null,null,null,478.22,"London"]
[null,null,null,null,null,null,null,null,null,null,null,null,null,null,null,null,null,null,null,null,null,null,null,null,null,null,null,null,null,null,null,517.14,null,null,517.14,null,null,517.14,null,null,null,517.14,"London"]
[null,null,null,null,null,null,null,null,null,null,null,null,null,null,null,null,null,null,null,null,null,null,null,null,null,null,null,null,null,null,null,575.45000000000005,null,null,{"$f":"AF716","v":575.45000000000005},null,null,{"$f":"AF716","v":575.45000000000005},null,null,null,575.45000000000005,"London"]
[null,null,null,null,null,null,null,null,null,null,null,null,null,null,null,null,null,null,null,null,null,null,null,null,null,null,null,null,null,null,null,466.38,null,null,466.38,null,null,466.38,null,null,null,466.38,"London"]
[null,null,null,null,null,null,null,null,null,null,null,null,null,null,null,null,null,null,null,null,null,null,null,null,null,null,null,null,null,null,null,569.84,null,null,569.84,null,null,569.84,null,null,null,569.84,"London"]
[null,null,null,null,null,null,null,null,null,null,null,null,null,null,null,null,null,null,null,null,null,null,null,null,null,null,null,null,null,null,null,493.48,null,null,493.48,null,null,493.48,null,null,null,493.48,"London"]
[null,null,null,null,null,null,null,null,null,null,null,null,null,null,null,null,null,null,null,null,null,null,null,null,null,null,null,null,null,null,null,561.22,null,null,561.22,null,null,561.22,null,null,null,561.22,"London"]
[null,null,null,null,null,null,null,null,null,null,null,null,null,null,null,null,null,null,null,null,null,null,null,null,null,null,null,null,null,null,null,666.36,null,null,666.36,null,null,666.36,null,null,null,666.36,"London"]
[null,null,null,null,null,null,null,null,null,null,null,null,null,null,null,null,null,null,null,null,null,null,null,null,null,null,null,null,null,null,null,599.16,null,null,599.16,null,null,599.16,null,null,null,599.16,"London"]
[null,null,null,null,null,null,null,null,null,null,null,null,null,null,null,null,null,null,null,null,null,null,null,null,null,null,null,null,null,null,null,627.41,null,null,627.41,null,null,627.41,null,null,null,627.41,"London"]
[null,null,null,null,null,null,null,null,null,null,null,null,null,null,null,null,null,null,null,null,null,null,null,null,null,null,null,null,null,null,null,601.17999999999995,null,null,601.17999999999995,null,null,601.17999999999995,null,null,null,601.17999999999995,"London"]
[null,null,null,null,null,null,null,null,null,null,null,null,null,null,null,null,null,null,null,null,null,null,null,null,null,null,null,null,null,null,null,551.52,null,null,551.52,null,null,551.52,null,null,null,551.52,"London"]
[null,null,null,null,null,null,null,null,null,null,null,null,null,null,null,null,null,null,null,null,null,null,null,null,null,null,null,null,null,null,null,729.21,null,null,729.21,null,null,729.21,null,null,null,729.21,"London"]
[null,null,null,null,null,null,null,null,null,null,null,null,null,null,null,null,null,null,null,null,null,null,null,null,null,null,null,null,null,null,null,531.34,null,null,531.34,null,null,531.34,null,null,null,531.34,"London"]
[null,null,null,null,null,null,null,null,null,null,null,null,null,null,null,null,null,null,null,null,null,null,null,null,null,null,null,null,null,null,null,546.53,null,null,546.53,null,null,546.53,null,null,null,546.53,"London"]
[null,null,null,null,null,null,null,null,null,null,null,null,null,null,null,null,null,null,null,null,null,null,null,null,null,null,null,null,null,null,null,458.7,null,null,458.7,null,null,458.7,null,null,null,458.7,"London"]
[null,null,null,null,null,null,null,null,null,null,null,null,null,null,null,null,null,null,null,null,null,null,null,null,null,null,null,null,null,null,null,602.4,null,null,602.4,null,null,602.4,null,null,null,602.4,"London"]
[null,null,null,null,null,null,null,null,null,null,null,null,null,null,null,null,null,null,null,null,null,null,null,null,null,null,null,null,null,null,null,602.01,null,null,602.01,null,null,602.01,null,null,null,602.01,"London"]
[null,null,null,null,null,null,null,null,null,null,null,null,null,null,null,null,null,null,null,null,null,null,null,null,null,null,null,null,null,null,null,453.48,null,null,453.48,null,null,453.48,null,null,null,453.48,"London"]
[null,null,null,null,null,null,null,null,null,null,null,null,null,null,null,null,null,null,null,null,null,null,null,null,null,null,null,null,null,null,null,429.72,null,null,429.72,null,null,429.72,null,null,null,429.72,"London"]
[null,null,null,null,null,null,null,null,null,null,null,null,null,null,null,null,null,null,null,null,null,null,null,null,null,null,null,null,null,null,null,502.6,null,null,502.6,null,null,502.6,null,null,null,502.6,"London"]
[null,null,null,null,null,null,null,null,null,null,null,null,null,null,null,null,null,null,null,null,null,null,null,null,null,null,null,null,null,null,null,447.32,null,null,447.32,null,null,447.32,null,null,null,447.32,"London"]
[null,null,null,null,null,null,null,null,null,null,null,null,null,null,null,null,null,null,null,null,null,null,null,null,null,null,null,null,null,null,null,607.79999999999995,null,null,607.79999999999995,null,null,607.79999999999995,null,null,null,607.79999999999995,"London"]
[null,null,null,null,null,null,null,null,null,null,null,null,null,null,null,null,null,null,null,null,null,null,null,null,null,null,null,null,null,null,null,745.32,null,null,745.32,null,null,745.32,null,null,null,745.32,"London"]
[null,null,null,null,null,null,null,null,null,null,null,null,null,null,null,null,null,null,null,null,null,null,null,null,null,null,null,null,null,null,null,425.35,null,null,425.35,null,null,425.35,null,null,null,425.35,"London"]
[null,null,null,null,null,null,null,null,null,null,null,null,null,null,null,null,null,null,null,null,null,null,null,null,null,null,null,null,null,null,null,702.86,null,null,702.86,null,null,702.86,null,null,null,702.86,"London"]
[null,null,null,null,null,null,null,null,null,null,null,null,null,null,null,null,null,null,null,null,null,null,null,null,null,null,null,null,null,null,null,523.30999999999995,null,null,523.30999999999995,null,null,523.30999999999995,null,null,null,523.30999999999995,"London"]
[null,null,null,null,null,null,null,null,null,null,null,null,null,null,null,null,null,null,null,null,null,null,null,null,null,null,null,null,null,null,null,585.02,null,null,585.02,null,null,585.02,null,null,null,585.02,"London"]
[null,null,null,null,null,null,null,null,null,null,null,null,null,null,null,null,null,null,null,null,null,null,null,null,null,null,null,null,null,null,null,733.54,null,null,733.54,null,null,733.54,null,null,null,733.54,"London"]
[null,null,null,null,null,null,null,null,null,null,null,null,null,null,null,null,null,null,null,null,null,null,null,null,null,null,null,null,null,null,null,582.25,null,null,582.25,null,null,582.25,null,null,null,582.25,"London"]
[null,null,null,null,null,null,null,null,null,null,null,null,null,null,null,null,null,null,null,null,null,null,null,null,null,null,null,null,null,null,null,578.54999999999995,null,null,578.54999999999995,null,null,578.54999999999995,null,null,null,578.54999999999995,"London"]
[null,null,null,null,null,null,null,null,null,null,null,null,null,null,null,null,null,null,null,null,null,null,null,null,null,null,null,null,null,null,null,618.92999999999995,null,null,618.92999999999995,null,null,618.92999999999995,null,null,null,618.92999999999995,"London"]
[null,null,null,null,null,null,null,null,null,null,null,null,null,null,null,null,null,null,null,null,null,null,null,null,null,null,null,null,null,null,null,441.23,null,null,441.23,null,null,441.23,null,null,null,441.23,"London"]
[null,null,null,null,null,null,null,null,null,null,null,null,null,null,null,null,null,null,null,null,null,null,null,null,null,null,null,null,null,null,null,441.95,null,null,441.95,null,null,441.95,null,null,null,441.95,"London"]
[null,null,null,null,null,null,null,null,null,null,null,null,null,null,null,null,null,null,null,null,null,null,null,null,null,null,null,null,null,null,null,663.89,null,null,663.89,null,null,663.89,null,null,null,663.89,"London"]
[null,null,null,null,null,null,null,null,null,null,null,null,null,null,null,null,null,null,null,null,null,null,null,null,null,null,null,null,null,null,null,483.16,null,null,483.16,null,null,483.16,null,null,null,483.16,"London"]
[null,null,null,null,null,null,null,null,null,null,null,null,null,null,null,null,null,null,null,null,null,null,null,null,null,null,null,null,null,null,null,448.78,null,null,448.78,null,null,448.78,null,null,null,448.78,"London"]
[null,null,null,null,null,null,null,null,null,null,null,null,null,null,null,null,null,null,null,null,null,null,null,null,null,null,null,null,null,null,null,553.19000000000005,null,null,553.19000000000005,null,null,553.19000000000005,null,null,null,553.19000000000005,"London"]
[null,null,null,null,null,null,null,null,null,null,null,null,null,null,null,null,null,null,null,null,null,null,null,null,null,null,null,null,null,null,null,529.66999999999996,null,null,529.66999999999996,null,null,529.66999999999996,null,null,null,529.66999999999996,"London"]
[null,null,null,null,null,null,null,null,null,null,null,null,null,null,null,null,null,null,null,null,null,null,null,null,null,null,null,null,null,null,null,429.03,null,null,429.03,null,null,429.03,null,null,null,429.03,"London"]
[null,null,null,null,null,null,null,null,null,null,null,null,null,null,null,null,null,null,null,null,null,null,null,null,null,null,null,null,null,null,null,422.57,null,null,422.57,null,null,422.57,null,null,null,422.57,"London"]
[null,null,null,null,null,null,null,null,null,null,null,null,null,null,null,null,null,null,null,null,null,null,null,null,null,null,null,null,null,null,null,481.77,null,null,481.77,null,null,481.77,null,null,null,481.77,"London"]
[null,null,null,null,null,null,null,null,null,null,null,null,null,null,null,null,null,null,null,null,null,null,null,null,null,null,null,null,null,null,null,387.32,null,null,387.32,null,null,387.32,null,null,null,387.32,"London"]
[null,null,null,null,null,null,null,null,null,null,null,null,null,null,null,null,null,null,null,null,null,null,null,null,null,null,null,null,null,null,null,491.82,null,null,491.82,null,null,491.82,null,null,null,491.82,"London"]
[null,null,null,null,null,null,null,null,null,null,null,null,null,null,null,null,null,null,null,null,null,null,null,null,null,null,null,null,null,null,null,442.91,null,null,442.91,null,null,442.91,null,null,null,442.91,"London"]
[null,null,null,null,null,null,null,null,null,null,null,null,null,null,null,null,null,null,null,null,null,null,null,null,null,null,null,null,null,null,null,570.11,null,null,570.11,null,null,570.11,null,null,null,570.11,"London"]
[null,null,null,null,null,null,null,null,null,null,null,null,null,null,null,null,null,null,null,null,null,null,null,null,null,null,null,null,null,null,null,581.48,null,null,581.48,null,null,581.48,null,null,null,581.48,"London"]
[null,null,null,null,null,null,null,null,null,null,null,null,null,null,null,null,null,null,null,null,null,null,null,null,null,null,null,null,null,null,null,527.65,null,null,527.65,null,null,527.65,null,null,null,527.65,"London"]
[null,null,null,null,null,null,null,null,null,null,null,null,null,null,null,null,null,null,null,null,null,null,null,null,null,null,null,null,null,null,null,573.79999999999995,null,null,573.79999999999995,null,null,573.79999999999995,null,null,null,573.79999999999995,"London"]
[null,null,null,null,null,null,null,null,null,null,null,null,null,null,null,null,null,null,null,null,null,null,null,null,null,null,null,null,null,null,null,499.95,null,null,499.95,null,null,499.95,null,null,null,499.95,"London"]
[null,null,null,null,null,null,null,null,null,null,null,null,null,null,null,null,null,null,null,null,null,null,null,null,null,null,null,null,null,null,null,627.02,null,null,627.02,null,null,627.02,null,null,null,627.02,"London"]
[null,null,null,null,null,null,null,null,null,null,null,null,null,null,null,null,null,null,null,null,null,null,null,null,null,null,null,null,null,null,null,478.6,null,null,478.6,null,null,478.6,null,null,null,478.6,"London"]
[null,null,null,null,null,null,null,null,null,null,null,null,null,null,null,null,null,null,null,null,null,null,null,null,null,null,null,null,null,null,null,604.77,null,null,604.77,null,null,604.77,null,null,null,604.77,"London"]
[null,null,null,null,null,null,null,null,null,null,null,null,null,null,null,null,null,null,null,null,null,null,null,null,null,null,null,null,null,null,null,651.66999999999996,null,null,651.66999999999996,null,null,651.66999999999996,null,null,null,651.66999999999996,"London"]
[null,null,null,null,null,null,null,null,null,null,null,null,null,null,null,null,null,null,null,null,null,null,null,null,null,null,null,null,null,null,null,529.34,null,null,529.34,null,null,529.34,null,null,null,529.34,"London"]
[null,null,null,null,null,null,null,null,null,null,null,null,null,null,null,null,null,null,null,null,null,null,null,null,null,null,null,null,null,null,null,514.69000000000005,null,null,514.69000000000005,null,null,514.69000000000005,null,null,null,514.69000000000005,"London"]
[null,null,null,null,null,null,null,null,null,null,null,null,null,null,null,null,null,null,null,null,null,null,null,null,null,null,null,null,null,null,null,573.79999999999995,null,null,573.79999999999995,null,null,573.79999999999995,null,null,null,573.79999999999995,"London"]
[null,null,null,null,null,null,null,null,null,null,null,null,null,null,null,null,null,null,null,null,null,null,null,null,null,null,null,null,null,null,null,688.11,null,null,688.11,null,null,688.11,null,null,null,688.11,"London"]
[null,null,null,null,null,null,null,null,null,null,null,null,null,null,null,null,null,null,null,null,null,null,null,null,null,null,null,null,null,null,null,533.38,null,null,533.38,null,null,533.38,null,null,null,533.38,"London"]
[null,null,null,null,null,null,null,null,null,null,null,null,null,null,null,null,null,null,null,null,null,null,null,null,null,null,null,null,null,null,null,568.45000000000005,null,null,568.45000000000005,null,null,568.45000000000005,null,null,null,568.45000000000005,"London"]
[null,null,null,null,null,null,null,null,null,null,null,null,null,null,null,null,null,null,null,null,null,null,null,null,null,null,null,null,null,null,null,593.66999999999996,null,null,593.66999999999996,null,null,593.66999999999996,null,null,null,593.66999999999996,"London"]
[null,null,null,null,null,null,null,null,null,null,null,null,null,null,null,null,null,null,null,null,null,null,null,null,null,null,null,null,null,null,null,563.85,null,null,563.85,null,null,563.85,null,null,null,563.85,"London"]
[null,null,null,null,null,null,null,null,null,null,null,null,null,null,null,null,null,null,null,null,null,null,null,null,null,null,null,null,null,null,null,685.93,null,null,685.93,null,null,685.93,null,null,null,685.93,"London"]
[null,null,null,null,null,null,null,null,null,null,null,null,null,null,null,null,null,null,null,null,null,null,null,null,null,null,null,null,null,null,null,572.79999999999995,null,null,572.79999999999995,null,null,572.79999999999995,null,null,null,572.79999999999995,"London"]
[null,null,null,null,null,null,null,null,null,null,null,null,null,null,null,null,null,null,null,null,null,null,null,null,null,null,null,null,null,null,null,508.4,null,null,508.4,null,null,508.4,null,null,null,508.4,"London"]
[null,null,null,null,null,null,null,null,null,null,null,null,null,null,null,null,null,null,null,null,null,null,null,null,null,null,null,null,null,null,null,482.41,null,null,482.41,null,null,482.41,null,null,null,482.41,"London"]
[null,null,null,null,null,null,null,null,null,null,null,null,null,null,null,null,null,null,null,null,null,null,null,null,null,null,null,null,null,null,null,452.16,null,null,{"$f":"AF780","v":452.16},null,null,{"$f":"AF780","v":452.16},null,null,null,452.16,"London"]
[null,null,null,null,null,null,null,null,null,null,null,null,null,null,null,null,null,null,null,null,null,null,null,null,null,null,null,null,null,null,null,521.77,null,null,521.77,null,null,521.77,null,null,null,521.77,"London"]
[null,null,null,null,null,null,null,null,null,null,null,null,null,null,null,null,null,null,null,null,null,null,null,null,null,null,null,null,null,null,null,467.96,null,null,467.96,null,null,467.96,null,null,null,467.96,"London"]
[null,null,null,null,null,null,null,null,null,null,null,null,null,null,null,null,null,null,null,null,null,null,null,null,null,null,null,null,null,null,null,707.58,null,null,707.58,null,null,707.58,null,null,null,707.58,"London"]
[null,null,null,null,null,null,null,null,null,null,null,null,null,null,null,null,null,null,null,null,null,null,null,null,null,null,null,null,null,null,null,608.61,null,null,608.61,null,null,608.61,null,null,null,608.61,"London"]
[null,null,null,null,null,null,null,null,null,null,null,null,null,null,null,null,null,null,null,null,null,null,null,null,null,null,null,null,null,null,null,545.35,null,null,545.35,null,null,545.35,null,null,null,545.35,"London"]
[null,null,null,null,null,null,null,null,null,null,null,null,null,null,null,null,null,null,null,null,null,null,null,null,null,null,null,null,null,null,null,608.96,null,null,608.96,null,null,608.96,null,null,null,608.96,"London"]
[null,null,null,null,null,null,null,null,null,null,null,null,null,null,null,null,null,null,null,null,null,null,null,null,null,null,null,null,null,null,null,599.85,null,null,599.85,null,null,599.85,null,null,null,599.85,"London"]
[null,null,null,null,null,null,null,null,null,null,null,null,null,null,null,null,null,null,null,null,null,null,null,null,null,null,null,null,null,null,null,679.17,null,null,679.17,null,null,679.17,null,null,null,679.17,"London"]
[null,null,null,null,null,null,null,null,null,null,null,null,null,null,null,null,null,null,null,null,null,null,null,null,null,null,null,null,null,null,null,682.68,null,null,682.68,null,null,682.68,null,null,null,682.68,"London"]
[null,null,null,null,null,null,null,null,null,null,null,null,null,null,null,null,null,null,null,null,null,null,null,null,null,null,null,null,null,null,null,633.95000000000005,null,null,633.95000000000005,null,null,633.95000000000005,null,null,null,633.95000000000005,"London"]
[null,null,null,null,null,null,null,null,null,null,null,null,null,null,null,null,null,null,null,null,null,null,null,null,null,null,null,null,null,null,null,624.55999999999995,null,null,624.55999999999995,null,null,624.55999999999995,null,null,null,624.55999999999995,"London"]
[null,null,null,null,null,null,null,null,null,null,null,null,null,null,null,null,null,null,null,null,null,null,null,null,null,null,null,null,null,null,null,647.67999999999995,null,null,647.67999999999995,null,null,647.67999999999995,null,null,null,647.67999999999995,"London"]
[null,null,null,null,null,null,null,null,null,null,null,null,null,null,null,null,null,null,null,null,null,null,null,null,null,null,null,null,null,null,null,698.76,null,null,698.76,null,null,698.76,null,null,null,698.76,"London"]
[null,null,null,null,null,null,null,null,null,null,null,null,null,null,null,null,null,null,null,null,null,null,null,null,null,null,null,null,null,null,null,680.42,null,null,680.42,null,null,680.42,null,null,null,680.42,"London"]
[null,null,null,null,null,null,null,null,null,null,null,null,null,null,null,null,null,null,null,null,null,null,null,null,null,null,null,null,null,null,null,540.72,null,null,540.72,null,null,540.72,null,null,null,540.72,"London"]
[null,null,null,null,null,null,null,null,null,null,null,null,null,null,null,null,null,null,null,null,null,null,null,null,null,null,null,null,null,null,null,502.31,null,null,502.31,null,null,502.31,null,null,null,502.31,"London"]
[null,null,null,null,null,null,null,null,null,null,null,null,null,null,null,null,null,null,null,null,null,null,null,null,null,null,null,null,null,null,null,450.48,null,null,450.48,null,null,450.48,null,null,null,450.48,"London"]
[null,null,null,null,null,null,null,null,null,null,null,null,null,null,null,null,null,null,null,null,null,null,null,null,null,null,null,null,null,null,null,547.95000000000005,null,null,547.95000000000005,null,null,547.95000000000005,null,null,null,547.95000000000005,"London"]
[null,null,null,null,null,null,null,null,null,null,null,null,null,null,null,null,null,null,null,null,null,null,null,null,null,null,null,null,null,null,null,488.97,null,null,488.97,null,null,488.97,null,null,null,488.97,"London"]
[null,null,null,null,null,null,null,null,null,null,null,null,null,null,null,null,null,null,null,null,null,null,null,null,null,null,null,null,null,null,null,439.74,null,null,439.74,null,null,439.74,null,null,null,439.74,"London"]
[null,null,null,null,null,null,null,null,null,null,null,null,null,null,null,null,null,null,null,null,null,null,null,null,null,null,null,null,null,null,null,397.47,null,null,397.47,null,null,397.47,null,null,null,397.47,"London"]
[null,null,null,null,null,null,null,null,null,null,null,null,null,null,null,null,null,null,null,null,null,null,null,null,null,null,null,null,null,null,null,442.58,null,null,442.58,null,null,442.58,null,null,null,442.58,"London"]
[null,null,null,null,null,null,null,null,null,null,null,null,null,null,null,null,null,null,null,null,null,null,null,null,null,null,null,null,null,null,null,453.06,null,null,453.06,null,null,453.06,null,null,null,453.06,"London"]
[null,null,null,null,null,null,null,null,null,null,null,null,null,null,null,null,null,null,null,null,null,null,null,null,null,null,null,null,null,null,null,460.57,null,null,460.57,null,null,460.57,null,null,null,460.57,"London"]
[null,null,null,null,null,null,null,null,null,null,null,null,null,null,null,null,null,null,null,null,null,null,null,null,null,null,null,null,null,null,null,402.65,null,null,402.65,null,null,402.65,null,null,null,402.65,"London"]
[null,null,null,null,null,null,null,null,null,null,null,null,null,null,null,null,null,null,null,null,null,null,null,null,null,null,null,null,null,null,null,444.97,null,null,444.97,null,null,444.97,null,null,null,444.97,"London"]
[null,null,null,null,null,null,null,null,null,null,null,null,null,null,null,null,null,null,null,null,null,null,null,null,null,null,null,null,null,null,null,398.33,null,null,398.33,null,null,398.33,null,null,null,398.33,"London"]
[null,null,null,null,null,null,null,null,null,null,null,null,null,null,null,null,null,null,null,null,null,null,null,null,null,null,null,null,null,null,null,399.07,null,null,399.07,null,null,399.07,null,null,null,399.07,"London"]
[null,null,null,null,null,null,null,null,null,null,null,null,null,null,null,null,null,null,null,null,null,null,null,null,null,null,null,null,null,null,null,412.71,null,null,412.71,null,null,412.71,null,null,null,412.71,"London"]
[null,null,null,null,null,null,null,null,null,null,null,null,null,null,null,null,null,null,null,null,null,null,null,null,null,null,null,null,null,null,null,464.2,null,null,464.2,null,null,464.2,null,null,null,464.2,"London"]
[null,null,null,null,null,null,null,null,null,null,null,null,null,null,null,null,null,null,null,null,null,null,null,null,null,null,null,null,null,null,null,422.76,null,null,422.76,null,null,422.76,null,null,null,422.76,"London"]
[null,null,null,null,null,null,null,null,null,null,null,null,null,null,null,null,null,null,null,null,null,null,null,null,null,null,null,null,null,null,null,479.39,null,null,479.39,null,null,479.39,null,null,null,479.39,"London"]
[null,null,null,null,null,null,null,null,null,null,null,null,null,null,null,null,null,null,null,null,null,null,null,null,null,null,null,null,null,null,null,420.53,null,null,420.53,null,null,420.53,null,null,null,420.53,"London"]
[null,null,null,null,null,null,null,null,null,null,null,null,null,null,null,null,null,null,null,null,null,null,null,null,null,null,null,null,null,null,null,544.92999999999995,null,null,544.92999999999995,null,null,544.92999999999995,null,null,null,544.92999999999995,"London"]
[null,null,null,null,null,null,null,null,null,null,null,null,null,null,null,null,null,null,null,null,null,null,null,null,null,null,null,null,null,null,null,798.69,null,null,798.69,null,null,798.69,null,null,null,798.69,"London"]
[null,null,null,null,null,null,null,null,null,null,null,null,null,null,null,null,null,null,null,null,null,null,null,null,null,null,null,null,null,null,null,478.23,null,null,478.23,null,null,478.23,null,null,null,478.23,"London"]
[null,null,null,null,null,null,null,null,null,null,null,null,null,null,null,null,null,null,null,null,null,null,null,null,null,null,null,null,null,null,null,437.39,null,null,437.39,null,null,437.39,null,null,null,437.39,"London"]
[null,null,null,null,null,null,null,null,null,null,null,null,null,null,null,null,null,null,null,null,null,null,null,null,null,null,null,null,null,null,null,356.87,null,null,356.87,null,null,356.87,null,null,null,356.87,"London"]
[null,null,null,null,null,null,null,null,null,null,null,null,null,null,null,null,null,null,null,null,null,null,null,null,null,null,null,null,null,null,null,533.16999999999996,null,null,533.16999999999996,null,null,533.16999999999996,null,null,null,533.16999999999996,"London"]
[null,null,null,null,null,null,null,null,null,null,null,null,null,null,null,null,null,null,null,null,null,null,null,null,null,null,null,null,null,null,null,706.75,null,null,706.75,null,null,706.75,null,null,null,706.75,"London"]
[null,null,null,null,null,null,null,null,null,null,null,null,null,null,null,null,null,null,null,null,null,null,null,null,null,null,null,null,null,null,null,727.01,null,null,727.01,null,null,727.01,null,null,null,727.01,"London"]
[null,null,null,null,null,null,null,null,null,null,null,null,null,null,null,null,null,null,null,null,null,null,null,null,null,null,null,null,null,null,null,625.9,null,null,625.9,null,null,625.9,null,null,null,625.9,"London"]
[null,null,null,null,null,null,null,null,null,null,null,null,null,null,null,null,null,null,null,null,null,null,null,null,null,null,null,null,null,null,null,473.77,null,null,473.77,null,null,473.77,null,null,null,473.77,"London"]
[null,null,null,null,null,null,null,null,null,null,null,null,null,null,null,null,null,null,null,null,null,null,null,null,null,null,null,null,null,null,null,478.12,null,null,478.12,null,null,478.12,null,null,null,478.12,"London"]
[null,null,null,null,null,null,null,null,null,null,null,null,null,null,null,null,null,null,null,null,null,null,null,null,null,null,null,null,null,null,null,576.27,null,null,576.27,null,null,576.27,null,null,null,576.27,"London"]
[null,null,null,null,null,null,null,null,null,null,null,null,null,null,null,null,null,null,null,null,null,null,null,null,null,null,null,null,null,null,null,426.38,null,null,426.38,null,null,426.38,null,null,null,426.38,"London"]
[null,null,null,null,null,null,null,null,null,null,null,null,null,null,null,null,null,null,null,null,null,null,null,null,null,null,null,null,null,null,null,557.54,null,null,557.54,null,null,557.54,null,null,null,557.54,"London"]
[null,null,null,null,null,null,null,null,null,null,null,null,null,null,null,null,null,null,null,null,null,null,null,null,null,null,null,null,null,null,null,492.57,null,null,492.57,null,null,492.57,null,null,null,492.57,"London"]
[null,null,null,null,null,null,null,null,null,null,null,null,null,null,null,null,null,null,null,null,null,null,null,null,null,null,null,null,null,null,null,415.97,null,null,415.97,null,null,415.97,null,null,null,415.97,"London"]
[null,null,null,null,null,null,null,null,null,null,null,null,null,null,null,null,null,null,null,null,null,null,null,null,null,null,null,null,null,null,null,419.69,null,null,419.69,null,null,419.69,null,null,null,419.69,"London"]
[null,null,null,null,null,null,null,null,null,null,null,null,null,null,null,null,null,null,null,null,null,null,null,null,null,null,null,null,null,null,null,477.27,null,null,477.27,null,null,477.27,null,null,null,477.27,"London"]
[null,null,null,null,null,null,null,null,null,null,null,null,null,null,null,null,null,null,null,null,null,null,null,null,null,null,null,null,null,null,null,545.01,null,null,545.01,null,null,545.01,null,null,null,545.01,"London"]
[null,null,null,null,null,null,null,null,null,null,null,null,null,null,null,null,null,null,null,null,null,null,null,null,null,null,null,null,null,null,null,502.79,null,null,502.79,null,null,502.79,null,null,null,502.79,"London"]
[null,null,null,null,null,null,null,null,null,null,null,null,null,null,null,null,null,null,null,null,null,null,null,null,null,null,null,null,null,null,null,445.13,null,null,445.13,null,null,445.13,null,null,null,445.13,"London"]
[null,null,null,null,null,null,null,null,null,null,null,null,null,null,null,null,null,null,null,null,null,null,null,null,null,null,null,null,null,null,null,464.64,null,null,464.64,null,null,464.64,null,null,null,464.64,"London"]
[null,null,null,null,null,null,null,null,null,null,null,null,null,null,null,null,null,null,null,null,null,null,null,null,null,null,null,null,null,null,null,434.65,null,null,434.65,null,null,434.65,null,null,null,434.65,"London"]
[null,null,null,null,null,null,null,null,null,null,null,null,null,null,null,null,null,null,null,null,null,null,null,null,null,null,null,null,null,null,null,465.56,null,null,465.56,null,null,465.56,null,null,null,465.56,"London"]
[null,null,null,null,null,null,null,null,null,null,null,null,null,null,null,null,null,null,null,null,null,null,null,null,null,null,null,null,null,null,null,450.63,null,null,450.63,null,null,450.63,null,null,null,450.63,"London"]
[null,null,null,null,null,null,null,null,null,null,null,null,null,null,null,null,null,null,null,null,null,null,null,null,null,null,null,null,null,null,null,393.18,null,null,393.18,null,null,393.18,null,null,null,393.18,"London"]
[null,null,null,null,null,null,null,null,null,null,null,null,null,null,null,null,null,null,null,null,null,null,null,null,null,null,null,null,null,null,null,514.07000000000005,null,null,514.07000000000005,null,null,514.07000000000005,null,null,null,514.07000000000005,"London"]
[null,null,null,null,null,null,null,null,null,null,null,null,null,null,null,null,null,null,null,null,null,null,null,null,null,null,null,null,null,null,null,496.33,null,null,496.33,null,null,496.33,null,null,null,496.33,"London"]
[null,null,null,null,null,null,null,null,null,null,null,null,null,null,null,null,null,null,null,null,null,null,null,null,null,null,null,null,null,null,null,739.71,null,null,739.71,null,null,739.71,null,null,null,739.71,"London"]
[null,null,null,null,null,null,null,null,null,null,null,null,null,null,null,null,null,null,null,null,null,null,null,null,null,null,null,null,null,null,null,753.98,null,null,753.98,null,null,753.98,null,null,null,753.98,"London"]
[null,null,null,null,null,null,null,null,null,null,null,null,null,null,null,null,null,null,null,null,null,null,null,null,null,null,null,null,null,null,null,683.55,null,null,{"$f":"AF844","v":683.55},null,null,{"$f":"AF844","v":683.55},null,null,null,683.55,"London"]
[null,null,null,null,null,null,null,null,null,null,null,null,null,null,null,null,null,null,null,null,null,null,null,null,null,null,null,null,null,null,null,657.99,null,null,657.99,null,null,657.99,null,null,null,657.99,"London"]
[null,null,null,null,null,null,null,null,null,null,null,null,null,null,null,null,null,null,null,null,null,null,null,null,null,null,null,null,null,null,null,689.39,null,null,689.39,null,null,689.39,null,null,null,689.39,"London"]
[null,null,null,null,null,null,null,null,null,null,null,null,null,null,null,null,null,null,null,null,null,null,null,null,null,null,null,null,null,null,null,497.7,null,null,497.7,null,null,497.7,null,null,null,497.7,"London"]
[null,null,null,null,null,null,null,null,null,null,null,null,null,null,null,null,null,null,null,null,null,null,null,null,null,null,null,null,null,null,null,494.82,null,null,494.82,null,null,494.82,null,null,null,494.82,"London"]
[null,null,null,null,null,null,null,null,null,null,null,null,null,null,null,null,null,null,null,null,null,null,null,null,null,null,null,null,null,null,null,642.42999999999995,null,null,642.42999999999995,null,null,642.42999999999995,null,null,null,642.42999999999995,"London"]
[null,null,null,null,null,null,null,null,null,null,null,null,null,null,null,null,null,null,null,null,null,null,null,null,null,null,null,null,null,null,null,637.37,null,null,637.37,null,null,637.37,null,null,null,637.37,"London"]
[null,null,null,null,null,null,null,null,null,null,null,null,null,null,null,null,null,null,null,null,null,null,null,null,null,null,null,null,null,null,null,687,null,null,687,null,null,687,null,null,null,687,"London"]
[null,null,null,null,null,null,null,null,null,null,null,null,null,null,null,null,null,null,null,null,null,null,null,null,null,null,null,null,null,null,null,667.96,null,null,667.96,null,null,667.96,null,null,null,667.96,"London"]
[null,null,null,null,null,null,null,null,null,null,null,null,null,null,null,null,null,null,null,null,null,null,null,null,null,null,null,null,null,null,null,666.78,null,null,666.78,null,null,666.78,null,null,null,666.78,"London"]
[null,null,null,null,null,null,null,null,null,null,null,null,null,null,null,null,null,null,null,null,null,null,null,null,null,null,null,null,null,null,null,578.95000000000005,null,null,578.95000000000005,null,null,578.95000000000005,null,null,null,578.95000000000005,"London"]
[null,null,null,null,null,null,null,null,null,null,null,null,null,null,null,null,null,null,null,null,null,null,null,null,null,null,null,null,null,null,null,643.39,null,null,643.39,null,null,643.39,null,null,null,643.39,"London"]
[null,null,null,null,null,null,null,null,null,null,null,null,null,null,null,null,null,null,null,null,null,null,null,null,null,null,null,null,null,null,null,685.73,null,null,685.73,null,null,685.73,null,null,null,685.73,"London"]
[null,null,null,null,null,null,null,null,null,null,null,null,null,null,null,null,null,null,null,null,null,null,null,null,null,null,null,null,null,null,null,670.55,null,null,670.55,null,null,670.55,null,null,null,670.55,"London"]
[null,null,null,null,null,null,null,null,null,null,null,null,null,null,null,null,null,null,null,null,null,null,null,null,null,null,null,null,null,null,null,652.66,null,null,652.66,null,null,652.66,null,null,null,652.66,"London"]
[null,null,null,null,null,null,null,null,null,null,null,null,null,null,null,null,null,null,null,null,null,null,null,null,null,null,null,null,null,null,null,531.65,null,null,531.65,null,null,531.65,null,null,null,531.65,"London"]
[null,null,null,null,null,null,null,null,null,null,null,null,null,null,null,null,null,null,null,null,null,null,null,null,null,null,null,null,null,null,null,576.35,null,null,576.35,null,null,576.35,null,null,null,576.35,"London"]
[null,null,null,null,null,null,null,null,null,null,null,null,null,null,null,null,null,null,null,null,null,null,null,null,null,null,null,null,null,null,null,598.97,null,null,598.97,null,null,598.97,null,null,null,598.97,"London"]
[null,null,null,null,null,null,null,null,null,null,null,null,null,null,null,null,null,null,null,null,null,null,null,null,null,null,null,null,null,null,null,545.29999999999995,null,null,545.29999999999995,null,null,545.29999999999995,null,null,null,545.29999999999995,"London"]
[null,null,null,null,null,null,null,null,null,null,null,null,null,null,null,null,null,null,null,null,null,null,null,null,null,null,null,null,null,null,null,768.8,null,null,768.8,null,null,768.8,null,null,null,768.8,"London"]
[null,null,null,null,null,null,null,null,null,null,null,null,null,null,null,null,null,null,null,null,null,null,null,null,null,null,null,null,null,null,null,884.67,null,null,884.67,null,null,884.67,null,null,null,884.67,"London"]
[null,null,null,null,null,null,null,null,null,null,null,null,null,null,null,null,null,null,null,null,null,null,null,null,null,null,null,null,null,null,null,798.94,null,null,798.94,null,null,798.94,null,null,null,798.94,"London"]
[null,null,null,null,null,null,null,null,null,null,null,null,null,null,null,null,null,null,null,null,null,null,null,null,null,null,null,null,null,null,null,901.37,null,null,901.37,null,null,901.37,null,null,null,901.37,"London"]
[null,null,null,null,null,null,null,null,null,null,null,null,null,null,null,null,null,null,null,null,null,null,null,null,null,null,null,null,null,null,null,641.04999999999995,null,null,641.04999999999995,null,null,641.04999999999995,null,null,null,641.04999999999995,"London"]
[null,null,null,null,null,null,null,null,null,null,null,null,null,null,null,null,null,null,null,null,null,null,null,null,null,null,null,null,null,null,null,747.26,null,null,747.26,null,null,747.26,null,null,null,747.26,"London"]
[null,null,null,null,null,null,null,null,null,null,null,null,null,null,null,null,null,null,null,null,null,null,null,null,null,null,null,null,null,null,null,507.6,null,null,507.6,null,null,507.6,null,null,null,507.6,"London"]
[null,null,null,null,null,null,null,null,null,null,null,null,null,null,null,null,null,null,null,null,null,null,null,null,null,null,null,null,null,null,null,487.45,null,null,487.45,null,null,487.45,null,null,null,487.45,"London"]
[null,null,null,null,null,null,null,null,null,null,null,null,null,null,null,null,null,null,null,null,null,null,null,null,null,null,null,null,null,null,null,876.53,null,null,876.53,null,null,876.53,null,null,null,876.53,"London"]
[null,null,null,null,null,null,null,null,null,null,null,null,null,null,null,null,null,null,null,null,null,null,null,null,null,null,null,null,null,null,null,846.7,null,null,846.7,null,null,846.7,null,null,null,846.7,"London"]
[null,null,null,null,null,null,null,null,null,null,null,null,null,null,null,null,null,null,null,null,null,null,null,null,null,null,null,null,null,null,null,825.61,null,null,825.61,null,null,825.61,null,null,null,825.61,"London"]
[null,null,null,null,null,null,null,null,null,null,null,null,null,null,null,null,null,null,null,null,null,null,null,null,null,null,null,null,null,null,null,448.23,null,null,448.23,null,null,448.23,null,null,null,448.23,"London"]
[null,null,null,null,null,null,null,null,null,null,null,null,null,null,null,null,null,null,null,null,null,null,null,null,null,null,null,null,null,null,null,442.08,null,null,442.08,null,null,442.08,null,null,null,442.08,"London"]
[null,null,null,null,null,null,null,null,null,null,null,null,null,null,null,null,null,null,null,null,null,null,null,null,null,null,null,null,null,null,null,456.32,null,null,456.32,null,null,456.32,null,null,null,456.32,"London"]
[null,null,null,null,null,null,null,null,null,null,null,null,null,null,null,null,null,null,null,null,null,null,null,null,null,null,null,null,null,null,null,749.64,null,null,749.64,null,null,749.64,null,null,null,749.64,"London"]
[null,null,null,null,null,null,null,null,null,null,null,null,null,null,null,null,null,null,null,null,null,null,null,null,null,null,null,null,null,null,null,645.4,null,null,645.4,null,null,645.4,null,null,null,645.4,"London"]
[null,null,null,null,null,null,null,null,null,null,null,null,null,null,null,null,null,null,null,null,null,null,null,null,null,null,null,null,null,null,null,506.41,null,null,506.41,null,null,506.41,null,null,null,506.41,"London"]
[null,null,null,null,null,null,null,null,null,null,null,null,null,null,null,null,null,null,null,null,null,null,null,null,null,null,null,null,null,null,null,379.29,null,null,379.29,null,null,379.29,null,null,null,379.29,"London"]
[null,null,null,null,null,null,null,null,null,null,null,null,null,null,null,null,null,null,null,null,null,null,null,null,null,null,null,null,null,null,null,423.15,null,null,423.15,null,null,423.15,null,null,null,423.15,"London"]
[null,null,null,null,null,null,null,null,null,null,null,null,null,null,null,null,null,null,null,null,null,null,null,null,null,null,null,null,null,null,null,662.21,null,null,662.21,null,null,662.21,null,null,null,662.21,"London"]
[null,null,null,null,null,null,null,null,null,null,null,null,null,null,null,null,null,null,null,null,null,null,null,null,null,null,null,null,null,null,null,621.21,null,null,621.21,null,null,621.21,null,null,null,621.21,"London"]
[null,null,null,null,null,null,null,null,null,null,null,null,null,null,null,null,null,null,null,null,null,null,null,null,null,null,null,null,null,null,null,473.51,null,null,473.51,null,null,473.51,null,null,null,473.51,"London"]
[null,null,null,null,null,null,null,null,null,null,null,null,null,null,null,null,null,null,null,null,null,null,null,null,null,null,null,null,null,null,null,462.82,null,null,462.82,null,null,462.82,null,null,null,462.82,"London"]
[null,null,null,null,null,null,null,null,null,null,null,null,null,null,null,null,null,null,null,null,null,null,null,null,null,null,null,null,null,null,null,468.63,null,null,468.63,null,null,468.63,null,null,null,468.63,"London"]
[null,null,null,null,null,null,null,null,null,null,null,null,null,null,null,null,null,null,null,null,null,null,null,null,null,null,null,null,null,null,null,577.24,null,null,577.24,null,null,577.24,null,null,null,577.24,"London"]
[null,null,null,null,null,null,null,null,null,null,null,null,null,null,null,null,null,null,null,null,null,null,null,null,null,null,null,null,null,null,null,714.81,null,null,714.81,null,null,714.81,null,null,null,714.81,"London"]
[null,null,null,null,null,null,null,null,null,null,null,null,null,null,null,null,null,null,null,null,null,null,null,null,null,null,null,null,null,null,null,446.69,null,null,446.69,null,null,446.69,null,null,null,446.69,"London"]
[null,null,null,null,null,null,null,null,null,null,null,null,null,null,null,null,null,null,null,null,null,null,null,null,null,null,null,null,null,null,null,482.81,null,null,482.81,null,null,482.81,null,null,null,482.81,"London"]
[null,null,null,null,null,null,null,null,null,null,null,null,null,null,null,null,null,null,null,null,null,null,null,null,null,null,null,null,null,null,null,573.03,null,null,573.03,null,null,573.03,null,null,null,573.03,"London"]
[null,null,null,null,null,null,null,null,null,null,null,null,null,null,null,null,null,null,null,null,null,null,null,null,null,null,null,null,null,null,null,552.37,null,null,552.37,null,null,552.37,null,null,null,552.37,"London"]
[null,null,null,null,null,null,null,null,null,null,null,null,null,null,null,null,null,null,null,null,null,null,null,null,null,null,null,null,null,null,null,526.44000000000005,null,null,526.44000000000005,null,null,526.44000000000005,null,null,null,526.44000000000005,"London"]
[null,null,null,null,null,null,null,null,null,null,null,null,null,null,null,null,null,null,null,null,null,null,null,null,null,null,null,null,null,null,null,697.64,null,null,697.64,null,null,697.64,null,null,null,697.64,"London"]
[null,null,null,null,null,null,null,null,null,null,null,null,null,null,null,null,null,null,null,null,null,null,null,null,null,null,null,null,null,null,null,505.47,null,null,505.47,null,null,505.47,null,null,null,505.47,"London"]
[null,null,null,null,null,null,null,null,null,null,null,null,null,null,null,null,null,null,null,null,null,null,null,null,null,null,null,null,null,null,null,585.95000000000005,null,null,585.95000000000005,null,null,585.95000000000005,null,null,null,585.95000000000005,"London"]
[null,null,null,null,null,null,null,null,null,null,null,null,null,null,null,null,null,null,null,null,null,null,null,null,null,null,null,null,null,null,null,489.56,null,null,489.56,null,null,489.56,null,null,null,489.56,"London"]
[null,null,null,null,null,null,null,null,null,null,null,null,null,null,null,null,null,null,null,null,null,null,null,null,null,null,null,null,null,null,null,576.69000000000005,null,null,576.69000000000005,null,null,576.69000000000005,null,null,null,576.69000000000005,"London"]
[null,null,null,null,null,null,null,null,null,null,null,null,null,null,null,null,null,null,null,null,null,null,null,null,null,null,null,null,null,null,null,524.73,null,null,524.73,null,null,524.73,null,null,null,524.73,"London"]
[null,null,null,null,null,null,null,null,null,null,null,null,null,null,null,null,null,null,null,null,null,null,null,null,null,null,null,null,null,null,null,707.67,null,null,707.67,null,null,707.67,null,null,null,707.67,"London"]
[null,null,null,null,null,null,null,null,null,null,null,null,null,null,null,null,null,null,null,null,null,null,null,null,null,null,null,null,null,null,null,554.57000000000005,null,null,554.57000000000005,null,null,554.57000000000005,null,null,null,554.57000000000005,"London"]
[null,null,null,null,null,null,null,null,null,null,null,null,null,null,null,null,null,null,null,null,null,null,null,null,null,null,null,null,null,null,null,516.49,null,null,516.49,null,null,516.49,null,null,null,516.49,"London"]
[null,null,null,null,null,null,null,null,null,null,null,null,null,null,null,null,null,null,null,null,null,null,null,null,null,null,null,null,null,null,null,738.25,null,null,738.25,null,null,738.25,null,null,null,738.25,"London"]
[null,null,null,null,null,null,null,null,null,null,null,null,null,null,null,null,null,null,null,null,null,null,null,null,null,null,null,null,null,null,null,509.63,null,null,509.63,null,null,509.63,null,null,null,509.63,"London"]
[null,null,null,null,null,null,null,null,null,null,null,null,null,null,null,null,null,null,null,null,null,null,null,null,null,null,null,null,null,null,null,470.38,null,null,470.38,null,null,470.38,null,null,null,470.38,"London"]
[null,null,null,null,null,null,null,null,null,null,null,null,null,null,null,null,null,null,null,null,null,null,null,null,null,null,null,null,null,null,null,462.61,null,null,462.61,null,null,462.61,null,null,null,462.61,"London"]
[null,null,null,null,null,null,null,null,null,null,null,null,null,null,null,null,null,null,null,null,null,null,null,null,null,null,null,null,null,null,null,460.21,null,null,460.21,null,null,460.21,null,null,null,460.21,"London"]
[null,null,null,null,null,null,null,null,null,null,null,null,null,null,null,null,null,null,null,null,null,null,null,null,null,null,null,null,null,null,null,443.21,null,null,{"$f":"AF908","v":443.21},null,null,{"$f":"AF908","v":443.21},null,null,null,443.21,"London"]
[null,null,null,null,null,null,null,null,null,null,null,null,null,null,null,null,null,null,null,null,null,null,null,null,null,null,null,null,null,null,null,483.39,null,null,483.39,null,null,483.39,null,null,null,483.39,"London"]
[null,null,null,null,null,null,null,null,null,null,null,null,null,null,null,null,null,null,null,null,null,null,null,null,null,null,null,null,null,null,null,649.62,null,null,649.62,null,null,649.62,null,null,null,649.62,"London"]
[null,null,null,null,null,null,null,null,null,null,null,null,null,null,null,null,null,null,null,null,null,null,null,null,null,null,null,null,null,null,null,417.99,null,null,417.99,null,null,417.99,null,null,null,417.99,"London"]
[null,null,null,null,null,null,null,null,null,null,null,null,null,null,null,null,null,null,null,null,null,null,null,null,null,null,null,null,null,null,null,398.45,null,null,398.45,null,null,398.45,null,null,null,398.45,"London"]
[null,null,null,null,null,null,null,null,null,null,null,null,null,null,null,null,null,null,null,null,null,null,null,null,null,null,null,null,null,null,null,471.08,null,null,471.08,null,null,471.08,null,null,null,471.08,"London"]
[null,null,null,null,null,null,null,null,null,null,null,null,null,null,null,null,null,null,null,null,null,null,null,null,null,null,null,null,null,null,null,352.45,null,null,352.45,null,null,352.45,null,null,null,352.45,"London"]
[null,null,null,null,null,null,null,null,null,null,null,null,null,null,null,null,null,null,null,null,null,null,null,null,null,null,null,null,null,null,null,371.49,null,null,371.49,null,null,371.49,null,null,null,371.49,"London"]
[null,null,null,null,null,null,null,null,null,null,null,null,null,null,null,null,null,null,null,null,null,null,null,null,null,null,null,null,null,null,null,447.6,null,null,447.6,null,null,447.6,null,null,null,447.6,"London"]
[null,null,null,null,null,null,null,null,null,null,null,null,null,null,null,null,null,null,null,null,null,null,null,null,null,null,null,null,null,null,null,499.91,null,null,499.91,null,null,499.91,null,null,null,499.91,"London"]
[null,null,null,null,null,null,null,null,null,null,null,null,null,null,null,null,null,null,null,null,null,null,null,null,null,null,null,null,null,null,null,578.19000000000005,null,null,578.19000000000005,null,null,578.19000000000005,null,null,null,578.19000000000005,"London"]
[null,null,null,null,null,null,null,null,null,null,null,null,null,null,null,null,null,null,null,null,null,null,null,null,null,null,null,null,null,null,null,759.99,null,null,759.99,null,null,759.99,null,null,null,759.99,"London"]
[null,null,null,null,null,null,null,null,null,null,null,null,null,null,null,null,null,null,null,null,null,null,null,null,null,null,null,null,null,null,null,902.8,null,null,902.8,null,null,902.8,null,null,null,902.8,"London"]
[null,null,null,null,null,null,null,null,null,null,null,null,null,null,null,null,null,null,null,null,null,null,null,null,null,null,null,null,null,null,null,761.61,null,null,761.61,null,null,761.61,null,null,null,761.61,"London"]
[null,null,null,null,null,null,null,null,null,null,null,null,null,null,null,null,null,null,null,null,null,null,null,null,null,null,null,null,null,null,null,725.11,null,null,725.11,null,null,725.11,null,null,null,725.11,"London"]
[null,null,null,null,null,null,null,null,null,null,null,null,null,null,null,null,null,null,null,null,null,null,null,null,null,null,null,null,null,null,null,821.11,null,null,821.11,null,null,821.11,null,null,null,821.11,"London"]
[null,null,null,null,null,null,null,null,null,null,null,null,null,null,null,null,null,null,null,null,null,null,null,null,null,null,null,null,null,null,null,816.76,null,null,816.76,null,null,816.76,null,null,null,816.76,"London"]
[null,null,null,null,null,null,null,null,null,null,null,null,null,null,null,null,null,null,null,null,null,null,null,null,null,null,null,null,null,null,null,984.24,null,null,984.24,null,null,984.24,null,null,null,984.24,"London"]
[null,null,null,null,null,null,null,null,null,null,null,null,null,null,null,null,null,null,null,null,null,null,null,null,null,null,null,null,null,null,null,939.16,null,null,939.16,null,null,939.16,null,null,null,939.16,"London"]
[null,null,null,null,null,null,null,null,null,null,null,null,null,null,null,null,null,null,null,null,null,null,null,null,null,null,null,null,null,null,null,890.4,null,null,890.4,null,null,890.4,null,null,null,890.4,"London"]
[null,null,null,null,null,null,null,null,null,null,null,null,null,null,null,null,null,null,null,null,null,null,null,null,null,null,null,null,null,null,null,632.09,null,null,632.09,null,null,632.09,null,null,null,632.09,"London"]
[null,null,null,null,null,null,null,null,null,null,null,null,null,null,null,null,null,null,null,null,null,null,null,null,null,null,null,null,null,null,null,808.91,null,null,808.91,null,null,808.91,null,null,null,808.91,"London"]
[null,null,null,null,null,null,null,null,null,null,null,null,null,null,null,null,null,null,null,null,null,null,null,null,null,null,null,null,null,null,null,798.29,null,null,798.29,null,null,798.29,null,null,null,798.29,"London"]
[null,null,null,null,null,null,null,null,null,null,null,null,null,null,null,null,null,null,null,null,null,null,null,null,null,null,null,null,null,null,null,552.07000000000005,null,null,552.07000000000005,null,null,552.07000000000005,null,null,null,552.07000000000005,"London"]
[null,null,null,null,null,null,null,null,null,null,null,null,null,null,null,null,null,null,null,null,null,null,null,null,null,null,null,null,null,null,null,830.32,null,null,830.32,null,null,830.32,null,null,null,830.32,"London"]
[null,null,null,null,null,null,null,null,null,null,null,null,null,null,null,null,null,null,null,null,null,null,null,null,null,null,null,null,null,null,null,695.63,null,null,695.63,null,null,695.63,null,null,null,695.63,"London"]
[null,null,null,null,null,null,null,null,null,null,null,null,null,null,null,null,null,null,null,null,null,null,null,null,null,null,null,null,null,null,null,773.44,null,null,773.44,null,null,773.44,null,null,null,773.44,"London"]
[null,null,null,null,null,null,null,null,null,null,null,null,null,null,null,null,null,null,null,null,null,null,null,null,null,null,null,null,null,null,null,593.98,null,null,593.98,null,null,593.98,null,null,null,593.98,"London"]
[null,null,null,null,null,null,null,null,null,null,null,null,null,null,null,null,null,null,null,null,null,null,null,null,null,null,null,null,null,null,null,826.63,null,null,826.63,null,null,826.63,null,null,null,826.63,"London"]
[null,null,null,null,null,null,null,null,null,null,null,null,null,null,null,null,null,null,null,null,null,null,null,null,null,null,null,null,null,null,null,739.47,null,null,739.47,null,null,739.47,null,null,null,739.47,"London"]
[null,null,null,null,null,null,null,null,null,null,null,null,null,null,null,null,null,null,null,null,null,null,null,null,null,null,null,null,null,null,null,593.41,null,null,593.41,null,null,593.41,null,null,null,593.41,"London"]
[null,null,null,null,null,null,null,null,null,null,null,null,null,null,null,null,null,null,null,null,null,null,null,null,null,null,null,null,null,null,null,792.97,null,null,792.97,null,null,792.97,null,null,null,792.97,"London"]
[null,null,null,null,null,null,null,null,null,null,null,null,null,null,null,null,null,null,null,null,null,null,null,null,null,null,null,null,null,null,null,706.57,null,null,706.57,null,null,706.57,null,null,null,706.57,"London"]
[null,null,null,null,null,null,null,null,null,null,null,null,null,null,null,null,null,null,null,null,null,null,null,null,null,null,null,null,null,null,null,704.44,null,null,704.44,null,null,704.44,null,null,null,704.44,"London"]
[null,null,null,null,null,null,null,null,null,null,null,null,null,null,null,null,null,null,null,null,null,null,null,null,null,null,null,null,null,null,null,417.47,null,null,417.47,null,null,417.47,null,null,null,417.47,"London"]
[null,null,null,null,null,null,null,null,null,null,null,null,null,null,null,null,null,null,null,null,null,null,null,null,null,null,null,null,null,null,null,423.95,null,null,423.95,null,null,423.95,null,null,null,423.95,"London"]
[null,null,null,null,null,null,null,null,null,null,null,null,null,null,null,null,null,null,null,null,null,null,null,null,null,null,null,null,null,null,null,565.96,null,null,565.96,null,null,565.96,null,null,null,565.96,"London"]
[null,null,null,null,null,null,null,null,null,null,null,null,null,null,null,null,null,null,null,null,null,null,null,null,null,null,null,null,null,null,null,555.29999999999995,null,null,555.29999999999995,null,null,555.29999999999995,null,null,null,555.29999999999995,"London"]
[null,null,null,null,null,null,null,null,null,null,null,null,null,null,null,null,null,null,null,null,null,null,null,null,null,null,null,null,null,null,null,495.54,null,null,495.54,null,null,495.54,null,null,null,495.54,"London"]
[null,null,null,null,null,null,null,null,null,null,null,null,null,null,null,null,null,null,null,null,null,null,null,null,null,null,null,null,null,null,null,625.24,null,null,625.24,null,null,625.24,null,null,null,625.24,"London"]
[null,null,null,null,null,null,null,null,null,null,null,null,null,null,null,null,null,null,null,null,null,null,null,null,null,null,null,null,null,null,null,588.41999999999996,null,null,588.41999999999996,null,null,588.41999999999996,null,null,null,588.41999999999996,"London"]
[null,null,null,null,null,null,null,null,null,null,null,null,null,null,null,null,null,null,null,null,null,null,null,null,null,null,null,null,null,null,null,610.82000000000005,null,null,610.82000000000005,null,null,610.82000000000005,null,null,null,610.82000000000005,"London"]
[null,null,null,null,null,null,null,null,null,null,null,null,null,null,null,null,null,null,null,null,null,null,null,null,null,null,null,null,null,null,null,575.12,null,null,575.12,null,null,575.12,null,null,null,575.12,"London"]
[null,null,null,null,null,null,null,null,null,null,null,null,null,null,null,null,null,null,null,null,null,null,null,null,null,null,null,null,null,null,null,569.33000000000004,null,null,569.33000000000004,null,null,569.33000000000004,null,null,null,569.33000000000004,"London"]
[null,null,null,null,null,null,null,null,null,null,null,null,null,null,null,null,null,null,null,null,null,null,null,null,null,null,null,null,null,null,null,572.46,null,null,572.46,null,null,572.46,null,null,null,572.46,"London"]
[null,null,null,null,null,null,null,null,null,null,null,null,null,null,null,null,null,null,null,null,null,null,null,null,null,null,null,null,null,null,null,492.83,null,null,492.83,null,null,492.83,null,null,null,492.83,"London"]
[null,null,null,null,null,null,null,null,null,null,null,null,null,null,null,null,null,null,null,null,null,null,null,null,null,null,null,null,null,null,null,611.86,null,null,611.86,null,null,611.86,null,null,null,611.86,"London"]
[null,null,null,null,null,null,null,null,null,null,null,null,null,null,null,null,null,null,null,null,null,null,null,null,null,null,null,null,null,null,null,570.91999999999996,null,null,570.91999999999996,null,null,570.91999999999996,null,null,null,570.91999999999996,"London"]
[null,null,null,null,null,null,null,null,null,null,null,null,null,null,null,null,null,null,null,null,null,null,null,null,null,null,null,null,null,null,null,650.33000000000004,null,null,650.33000000000004,null,null,650.33000000000004,null,null,null,650.33000000000004,"London"]
[null,null,null,null,null,null,null,null,null,null,null,null,null,null,null,null,null,null,null,null,null,null,null,null,null,null,null,null,null,null,null,672.69,null,null,672.69,null,null,672.69,null,null,null,672.69,"London"]
[null,null,null,null,null,null,null,null,null,null,null,null,null,null,null,null,null,null,null,null,null,null,null,null,null,null,null,null,null,null,null,584.97,null,null,584.97,null,null,584.97,null,null,null,584.97,"London"]
[null,null,null,null,null,null,null,null,null,null,null,null,null,null,null,null,null,null,null,null,null,null,null,null,null,null,null,null,null,null,null,618.23,null,null,618.23,null,null,618.23,null,null,null,618.23,"London"]
[null,null,null,null,null,null,null,null,null,null,null,null,null,null,null,null,null,null,null,null,null,null,null,null,null,null,null,null,null,null,null,424.16,null,null,424.16,null,null,424.16,null,null,null,424.16,"London"]
[null,null,null,null,null,null,null,null,null,null,null,null,null,null,null,null,null,null,null,null,null,null,null,null,null,null,null,null,null,null,null,586.83000000000004,null,null,586.83000000000004,null,null,586.83000000000004,null,null,null,586.83000000000004,"London"]
[null,null,null,null,null,null,null,null,null,null,null,null,null,null,null,null,null,null,null,null,null,null,null,null,null,null,null,null,null,null,null,557.83000000000004,null,null,557.83000000000004,null,null,557.83000000000004,null,null,null,557.83000000000004,"London"]
[null,null,null,null,null,null,null,null,null,null,null,null,null,null,null,null,null,null,null,null,null,null,null,null,null,null,null,null,null,null,null,758.25,null,null,758.25,null,null,758.25,null,null,null,758.25,"London"]
[null,null,null,null,null,null,null,null,null,null,null,null,null,null,null,null,null,null,null,null,null,null,null,null,null,null,null,null,null,null,null,648.4,null,null,648.4,null,null,648.4,null,null,null,648.4,"London"]
[null,null,null,null,null,null,null,null,null,null,null,null,null,null,null,null,null,null,null,null,null,null,null,null,null,null,null,null,null,null,null,729.01,null,null,729.01,null,null,729.01,null,null,null,729.01,"London"]
[null,null,null,null,null,null,null,null,null,null,null,null,null,null,null,null,null,null,null,null,null,null,null,null,null,null,null,null,null,null,null,486.3,null,null,486.3,null,null,486.3,null,null,null,486.3,"London"]
[null,null,null,null,null,null,null,null,null,null,null,null,null,null,null,null,null,null,null,null,null,null,null,null,null,null,null,null,null,null,null,618.13,null,null,618.13,null,null,618.13,null,null,null,618.13,"London"]
[null,null,null,null,null,null,null,null,null,null,null,null,null,null,null,null,null,null,null,null,null,null,null,null,null,null,null,null,null,null,null,481.2,null,null,481.2,null,null,481.2,null,null,null,481.2,"London"]
[null,null,null,null,null,null,null,null,null,null,null,null,null,null,null,null,null,null,null,null,null,null,null,null,null,null,null,null,null,null,null,511.92,null,null,511.92,null,null,511.92,null,null,null,511.92,"London"]
[null,null,null,null,null,null,null,null,null,null,null,null,null,null,null,null,null,null,null,null,null,null,null,null,null,null,null,null,null,null,null,501.86,null,null,501.86,null,null,501.86,null,null,null,501.86,"London"]
[null,null,null,null,null,null,null,null,null,null,null,null,null,null,null,null,null,null,null,null,null,null,null,null,null,null,null,null,null,null,null,453.43,null,null,453.43,null,null,453.43,null,null,null,453.43,"London"]
[null,null,null,null,null,null,null,null,null,null,null,null,null,null,null,null,null,null,null,null,null,null,null,null,null,null,null,null,null,null,null,595.74,null,null,{"$f":"AF972","v":595.74},null,null,{"$f":"AF972","v":595.74},null,null,null,595.74,"London"]
[null,null,null,null,null,null,null,null,null,null,null,null,null,null,null,null,null,null,null,null,null,null,null,null,null,null,null,null,null,null,null,484.57,null,null,484.57,null,null,484.57,null,null,null,484.57,"London"]
[null,null,null,null,null,null,null,null,null,null,null,null,null,null,null,null,null,null,null,null,null,null,null,null,null,null,null,null,null,null,null,405.07,null,null,405.07,null,null,405.07,null,null,null,405.07,"London"]
[null,null,null,null,null,null,null,null,null,null,null,null,null,null,null,null,null,null,null,null,null,null,null,null,null,null,null,null,null,null,null,510.9,null,null,510.9,null,null,510.9,null,null,null,510.9,"London"]
[null,null,null,null,null,null,null,null,null,null,null,null,null,null,null,null,null,null,null,null,null,null,null,null,null,null,null,null,null,null,null,481.73,null,null,481.73,null,null,481.73,null,null,null,481.73,"London"]
[null,null,null,null,null,null,null,null,null,null,null,null,null,null,null,null,null,null,null,null,null,null,null,null,null,null,null,null,null,null,null,463.33,null,null,463.33,null,null,463.33,null,null,null,463.33,"London"]
[null,null,null,null,null,null,null,null,null,null,null,null,null,null,null,null,null,null,null,null,null,null,null,null,null,null,null,null,null,null,null,375.36,null,null,375.36,null,null,375.36,null,null,null,375.36,"London"]
[null,null,null,null,null,null,null,null,null,null,null,null,null,null,null,null,null,null,null,null,null,null,null,null,null,null,null,null,null,null,null,457.4,null,null,457.4,null,null,457.4,null,null,null,457.4,"London"]
[null,null,null,null,null,null,null,null,null,null,null,null,null,null,null,null,null,null,null,null,null,null,null,null,null,null,null,null,null,null,null,524,null,null,524,null,null,524,null,null,null,524,"London"]
[null,null,null,null,null,null,null,null,null,null,null,null,null,null,null,null,null,null,null,null,null,null,null,null,null,null,null,null,null,null,null,466.16,null,null,466.16,null,null,466.16,null,null,null,466.16,"London"]
[null,null,null,null,null,null,null,null,null,null,null,null,null,null,null,null,null,null,null,null,null,null,null,null,null,null,null,null,null,null,null,413.31,null,null,413.31,null,null,413.31,null,null,null,413.31,"London"]
[null,null,null,null,null,null,null,null,null,null,null,null,null,null,null,null,null,null,null,null,null,null,null,null,null,null,null,null,null,null,null,431.6,null,null,431.6,null,null,431.6,null,null,null,431.6,"London"]
[null,null,null,null,null,null,null,null,null,null,null,null,null,null,null,null,null,null,null,null,null,null,null,null,null,null,null,null,null,null,null,475.45,null,null,475.45,null,null,475.45,null,null,null,475.45,"London"]
[null,null,null,null,null,null,null,null,null,null,null,null,null,null,null,null,null,null,null,null,null,null,null,null,null,null,null,null,null,null,null,349.45,null,null,349.45,null,null,349.45,null,null,null,349.45,"London"]
[null,null,null,null,null,null,null,null,null,null,null,null,null,null,null,null,null,null,null,null,null,null,null,null,null,null,null,null,null,null,null,523.13,null,null,523.13,null,null,523.13,null,null,null,523.13,"London"]
[null,null,null,null,null,null,null,null,null,null,null,null,null,null,null,null,null,null,null,null,null,null,null,null,null,null,null,null,null,null,null,409.27,null,null,409.27,null,null,409.27,null,null,null,409.27,"London"]
[null,null,null,null,null,null,null,null,null,null,null,null,null,null,null,null,null,null,null,null,null,null,null,null,null,null,null,null,null,null,null,448.07,null,null,448.07,null,null,448.07,null,null,null,448.07,"London"]
[null,null,null,null,null,null,null,null,null,null,null,null,null,null,null,null,null,null,null,null,null,null,null,null,null,null,null,null,null,null,null,456.32,null,null,456.32,null,null,456.32,null,null,null,456.32,"London"]
[null,null,null,null,null,null,null,null,null,null,null,null,null,null,null,null,null,null,null,null,null,null,null,null,null,null,null,null,null,null,null,472.74,null,null,472.74,null,null,472.74,null,null,null,472.74,"London"]
[null,null,null,null,null,null,null,null,null,null,null,null,null,null,null,null,null,null,null,null,null,null,null,null,null,null,null,null,null,null,null,397.92,null,null,397.92,null,null,397.92,null,null,null,397.92,"London"]
[null,null,null,null,null,null,null,null,null,null,null,null,null,null,null,null,null,null,null,null,null,null,null,null,null,null,null,null,null,null,null,379.62,null,null,379.62,null,null,379.62,null,null,null,379.62,"London"]
[null,null,null,null,null,null,null,null,null,null,null,null,null,null,null,null,null,null,null,null,null,null,null,null,null,null,null,null,null,null,null,425.64,null,null,425.64,null,null,425.64,null,null,null,425.64,"London"]
[null,null,null,null,null,null,null,null,null,null,null,null,null,null,null,null,null,null,null,null,null,null,null,null,null,null,null,null,null,null,null,559.39,null,null,228.43,null,null,{"$f":"AF994*AL$5","v":755.17650000000003}]
[null,null,null,null,null,null,null,null,null,null,null,null,null,null,null,null,null,null,null,null,null,null,null,null,null,null,null,null,null,null,null,527.96,null,null,233.99002000000002,null,null,{"$f":"AF995*AL$5","v":712.74600000000009}]
[null,null,null,null,null,null,null,null,null,null,null,null,null,null,null,null,null,null,null,null,null,null,null,null,null,null,null,null,null,null,null,452.93,null,null,253.05034999999998,null,null,{"$f":"AF996*AL$5","v":611.45550000000003}]
[null,null,null,null,null,null,null,null,null,null,null,null,null,null,null,null,null,null,null,null,null,null,null,null,null,null,null,null,null,null,null,386.69,null,null,263.44358999999997,null,null,{"$f":"AF997*AL$5","v":522.03150000000005}]
[null,null,null,null,null,null,null,null,null,null,null,null,null,null,null,null,null,null,null,null,null,null,null,null,null,null,null,null,null,null,null,350.01,null,null,279.0334499999999,null,null,{"$f":"AF998*AL$5","v":472.51350000000002}]
[null,null,null,null,null,null,null,null,null,null,null,null,null,null,null,null,null,null,null,null,null,null,null,null,null,null,null,null,null,null,null,491.91,null,null,279.37868000000003,null,null,{"$f":"AF999*AL$5","v":664.07850000000008}]
[null,null,null,null,null,null,null,null,null,null,null,null,null,null,null,null,null,null,null,null,null,null,null,null,null,null,null,null,null,null,null,474.68,null,null,280.19633000000005,null,null,{"$f":"AF1000*AL$5","v":640.8180000000001}]
[null,null,null,null,null,null,null,null,null,null,null,null,null,null,null,null,null,null,null,null,null,null,null,null,null,null,null,null,null,null,null,417.09,null,null,282.23137000000003,null,null,{"$f":"AF1001*AL$5","v":563.07150000000001}]
[null,null,null,null,null,null,null,null,null,null,null,null,null,null,null,null,null,null,null,null,null,null,null,null,null,null,null,null,null,null,null,469.01,null,null,282.35856000000007,null,null,{"$f":"AF1002*AL$5","v":633.1635}]
[null,null,null,null,null,null,null,null,null,null,null,null,null,null,null,null,null,null,null,null,null,null,null,null,null,null,null,null,null,null,null,305.74,null,null,286.57400000000001,null,null,{"$f":"AF1003*AL$5","v":412.74900000000002}]
[null,null,null,null,null,null,null,null,null,null,null,null,null,null,null,null,null,null,null,null,null,null,null,null,null,null,null,null,null,null,null,286.22000000000003,null,null,288.97244000000001,null,null,{"$f":"AF1004*AL$5","v":386.39700000000005}]
[null,null,null,null,null,null,null,null,null,null,null,null,null,null,null,null,null,null,null,null,null,null,null,null,null,null,null,null,null,null,null,427.78,null,null,290.9348,null,null,{"$f":"AF1005*AL$5","v":577.50300000000004}]
[null,null,null,null,null,null,null,null,null,null,null,null,null,null,null,null,null,null,null,null,null,null,null,null,null,null,null,null,null,null,null,309.56,null,null,291.26185999999996,null,null,{"$f":"AF1006*AL$5","v":417.90600000000001}]
[null,null,null,null,null,null,null,null,null,null,null,null,null,null,null,null,null,null,null,null,null,null,null,null,null,null,null,null,null,null,null,449.51,null,null,293.07885999999996,null,null,{"$f":"AF1007*AL$5","v":606.83850000000007}]
[null,null,null,null,null,null,null,null,null,null,null,null,null,null,null,null,null,null,null,null,null,null,null,null,null,null,null,null,null,null,null,295.39999999999998,null,null,293.64212999999995,null,null,{"$f":"AF1008*AL$5","v":398.79}]
[null,null,null,null,null,null,null,null,null,null,null,null,null,null,null,null,null,null,null,null,null,null,null,null,null,null,null,null,null,null,null,276.44,null,null,294.29624999999999,null,null,{"$f":"AF1009*AL$5","v":373.19400000000002}]
[null,null,null,null,null,null,null,null,null,null,null,null,null,null,null,null,null,null,null,null,null,null,null,null,null,null,null,null,null,null,null,339.07,null,null,299.58371999999997,null,null,{"$f":"AF1010*AL$5","v":457.74450000000002}]
[null,null,null,null,null,null,null,null,null,null,null,null,null,null,null,null,null,null,null,null,null,null,null,null,null,null,null,null,null,null,null,421.9,null,null,300.78294,null,null,{"$f":"AF1011*AL$5","v":569.56500000000005}]
[null,null,null,null,null,null,null,null,null,null,null,null,null,null,null,null,null,null,null,null,null,null,null,null,null,null,null,null,null,null,null,392,null,null,306.34296000000001,null,null,{"$f":"AF1012*AL$5","v":529.20000000000005}]
[null,null,null,null,null,null,null,null,null,null,null,null,null,null,null,null,null,null,null,null,null,null,null,null,null,null,null,null,null,null,null,541.20000000000005,null,null,308.55969999999991,null,null,{"$f":"AF1013*AL$5","v":730.62000000000012}]
[null,null,null,null,null,null,null,null,null,null,null,null,null,null,null,null,null,null,null,null,null,null,null,null,null,null,null,null,null,null,null,258.04000000000002,null,null,309.06846000000002,null,null,{"$f":"AF1014*AL$5","v":348.35400000000004}]
[null,null,null,null,null,null,null,null,null,null,null,null,null,null,null,null,null,null,null,null,null,null,null,null,null,null,null,null,null,null,null,309.05,null,null,309.63173,null,null,{"$f":"AF1015*AL$5","v":417.21750000000003}]
[null,null,null,null,null,null,null,null,null,null,null,null,null,null,null,null,null,null,null,null,null,null,null,null,null,null,null,null,null,null,null,291.89,null,null,313.91985000000005,null,null,{"$f":"AF1016*AL$5","v":394.05150000000003}]
[null,null,null,null,null,null,null,null,null,null,null,null,null,null,null,null,null,null,null,null,null,null,null,null,null,null,null,null,null,null,null,401.45,null,null,315.66416999999996,null,null,{"$f":"AF1017*AL$5","v":541.95749999999998}]
[null,null,null,null,null,null,null,null,null,null,null,null,null,null,null,null,null,null,null,null,null,null,null,null,null,null,null,null,null,null,null,264.01,null,null,319.22548999999998,null,null,{"$f":"AF1018*AL$5","v":356.4135}]
[null,null,null,null,null,null,null,null,null,null,null,null,null,null,null,null,null,null,null,null,null,null,null,null,null,null,null,null,null,null,null,354.23,null,null,322.75046999999995,null,null,{"$f":"AF1019*AL$5","v":478.21050000000008}]
[null,null,null,null,null,null,null,null,null,null,null,null,null,null,null,null,null,null,null,null,null,null,null,null,null,null,null,null,null,null,null,314.57,null,null,323.16837999999996,null,null,{"$f":"AF1020*AL$5","v":424.66950000000003}]
[null,null,null,null,null,null,null,null,null,null,null,null,null,null,null,null,null,null,null,null,null,null,null,null,null,null,null,null,null,null,null,496.77,null,null,323.47726999999998,null,null,{"$f":"AF1021*AL$5","v":670.6395}]
[null,null,null,null,null,null,null,null,null,null,null,null,null,null,null,null,null,null,null,null,null,null,null,null,null,null,null,null,null,null,null,366.62,null,null,330.20016999999996,null,null,{"$f":"AF1022*AL$5","v":494.93700000000001}]
[null,null,null,null,null,null,null,null,null,null,null,null,null,null,null,null,null,null,null,null,null,null,null,null,null,null,null,null,null,null,null,492.13,null,null,333.43443000000002,null,null,{"$f":"AF1023*AL$5","v":664.37549999999999}]
[null,null,null,null,null,null,null,null,null,null,null,null,null,null,null,null,null,null,null,null,null,null,null,null,null,null,null,null,null,null,null,385.94,null,null,335.12423999999993,null,null,{"$f":"AF1024*AL$5","v":521.01900000000001}]
[null,null,null,null,null,null,null,null,null,null,null,null,null,null,null,null,null,null,null,null,null,null,null,null,null,null,null,null,null,null,null,352.58,null,null,336.99575000000004,null,null,{"$f":"AF1025*AL$5","v":475.983}]
[null,null,null,null,null,null,null,null,null,null,null,null,null,null,null,null,null,null,null,null,null,null,null,null,null,null,null,null,null,null,null,331.46,null,null,343.73681999999997,null,null,{"$f":"AF1026*AL$5","v":447.471}]
[null,null,null,null,null,null,null,null,null,null,null,null,null,null,null,null,null,null,null,null,null,null,null,null,null,null,null,null,null,null,null,399.24,null,null,343.86400999999995,null,null,{"$f":"AF1027*AL$5","v":538.97400000000005}]
[null,null,null,null,null,null,null,null,null,null,null,null,null,null,null,null,null,null,null,null,null,null,null,null,null,null,null,null,null,null,null,476.49,null,null,344.62714999999997,null,null,{"$f":"AF1028*AL$5","v":643.26150000000007}]
[null,null,null,null,null,null,null,null,null,null,null,null,null,null,null,null,null,null,null,null,null,null,null,null,null,null,null,null,null,null,null,468.09,null,null,347.02558999999997,null,null,{"$f":"AF1029*AL$5","v":631.92150000000004}]
[null,null,null,null,null,null,null,null,null,null,null,null,null,null,null,null,null,null,null,null,null,null,null,null,null,null,null,null,null,null,null,535.1,null,null,350.11448999999993,null,null,{"$f":"AF1030*AL$5","v":722.3850000000001}]
[null,null,null,null,null,null,null,null,null,null,null,null,null,null,null,null,null,null,null,null,null,null,null,null,null,null,null,null,null,null,null,539.30999999999995,null,null,352.65829000000002,null,null,{"$f":"AF1031*AL$5","v":728.06849999999997}]
[null,null,null,null,null,null,null,null,null,null,null,null,null,null,null,null,null,null,null,null,null,null,null,null,null,null,null,null,null,null,null,412.07,null,null,354.13006000000001,null,null,{"$f":"AF1032*AL$5","v":556.29449999999997}]
[null,null,null,null,null,null,null,null,null,null,null,null,null,null,null,null,null,null,null,null,null,null,null,null,null,null,null,null,null,null,null,465.58,null,null,355.96523000000002,null,null,{"$f":"AF1033*AL$5","v":628.53300000000002}]
[null,null,null,null,null,null,null,null,null,null,null,null,null,null,null,null,null,null,null,null,null,null,null,null,null,null,null,null,null,null,null,467.2,null,null,361.03466000000003,null,null,{"$f":"AF1034*AL$5","v":630.72}]
[null,null,null,null,null,null,null,null,null,null,null,null,null,null,null,null,null,null,null,null,null,null,null,null,null,null,null,null,null,null,null,344.92,null,null,362.85166000000004,null,null,{"$f":"AF1035*AL$5","v":465.64200000000005}]
[null,null,null,null,null,null,null,null,null,null,null,null,null,null,null,null,null,null,null,null,null,null,null,null,null,null,null,null,null,null,null,296.8,null,null,363.14238,null,null,{"$f":"AF1036*AL$5","v":400.68000000000006}]
[null,null,null,null,null,null,null,null,null,null,null,null,null,null,null,null,null,null,null,null,null,null,null,null,null,null,null,null,null,null,null,378.66,null,null,368.42984999999999,null,null,{"$f":"AF1037*AL$5","v":511.19100000000009}]
[null,null,null,null,null,null,null,null,null,null,null,null,null,null,null,null,null,null,null,null,null,null,null,null,null,null,null,null,null,null,null,514.41,null,null,368.90226999999999,null,null,{"$f":"AF1038*AL$5","v":694.45349999999996}]
[null,null,null,null,null,null,null,null,null,null,null,null,null,null,null,null,null,null,null,null,null,null,null,null,null,null,null,null,null,null,null,344.29,null,null,369.86527999999998,null,null,{"$f":"AF1039*AL$5","v":464.79150000000004}]
[null,null,null,null,null,null,null,null,null,null,null,null,null,null,null,null,null,null,null,null,null,null,null,null,null,null,null,null,null,null,null,496.96,null,null,371.28253999999998,null,null,{"$f":"AF1040*AL$5","v":670.89600000000007}]
[null,null,null,null,null,null,null,null,null,null,null,null,null,null,null,null,null,null,null,null,null,null,null,null,null,null,null,null,null,null,null,400.01,null,null,372.71796999999992,null,null,{"$f":"AF1041*AL$5","v":540.01350000000002}]
[null,null,null,null,null,null,null,null,null,null,null,null,null,null,null,null,null,null,null,null,null,null,null,null,null,null,null,null,null,null,null,405.56,null,null,374.04437999999993,null,null,{"$f":"AF1042*AL$5","v":547.50600000000009}]
[null,null,null,null,null,null,null,null,null,null,null,null,null,null,null,null,null,null,null,null,null,null,null,null,null,null,null,null,null,null,null,367.44,null,null,374.91654000000005,null,null,{"$f":"AF1043*AL$5","v":496.04400000000004}]
[null,null,null,null,null,null,null,null,null,null,null,null,null,null,null,null,null,null,null,null,null,null,null,null,null,null,null,null,null,null,null,328.78,null,null,375.44346999999999,null,null,{"$f":"AF1044*AL$5","v":443.85300000000001}]
[null,null,null,null,null,null,null,null,null,null,null,null,null,null,null,null,null,null,null,null,null,null,null,null,null,null,null,null,null,null,null,484.96,null,null,375.78869999999989,null,null,{"$f":"AF1045*AL$5","v":654.69600000000003}]
[null,null,null,null,null,null,null,null,null,null,null,null,null,null,null,null,null,null,null,null,null,null,null,null,null,null,null,null,null,null,null,403.39,null,null,375.84321,null,null,{"$f":"AF1046*AL$5","v":544.57650000000001}]
[null,null,null,null,null,null,null,null,null,null,null,null,null,null,null,null,null,null,null,null,null,null,null,null,null,null,null,null,null,null,null,522.80999999999995,null,null,377.26046999999994,null,null,{"$f":"AF1047*AL$5","v":705.79349999999999}]
[null,null,null,null,null,null,null,null,null,null,null,null,null,null,null,null,null,null,null,null,null,null,null,null,null,null,null,null,null,null,null,409.74,null,null,381.31237999999996,null,null,{"$f":"AF1048*AL$5","v":553.149}]
[null,null,null,null,null,null,null,null,null,null,null,null,null,null,null,null,null,null,null,null,null,null,null,null,null,null,null,null,null,null,null,366.35,null,null,384.94637999999998,null,null,{"$f":"AF1049*AL$5","v":494.57250000000005}]
[null,null,null,null,null,null,null,null,null,null,null,null,null,null,null,null,null,null,null,null,null,null,null,null,null,null,null,null,null,null,null,450.79,null,null,386.70887000000005,null,null,{"$f":"AF1050*AL$5","v":608.56650000000002}]
[null,null,null,null,null,null,null,null,null,null,null,null,null,null,null,null,null,null,null,null,null,null,null,null,null,null,null,null,null,null,null,412.27,null,null,392.23254999999995,null,null,{"$f":"AF1051*AL$5","v":556.56450000000007}]
[null,null,null,null,null,null,null,null,null,null,null,null,null,null,null,null,null,null,null,null,null,null,null,null,null,null,null,null,null,null,null,466.51,null,null,393.95869999999991,null,null,{"$f":"AF1052*AL$5","v":629.7885}]
[null,null,null,null,null,null,null,null,null,null,null,null,null,null,null,null,null,null,null,null,null,null,null,null,null,null,null,null,null,null,null,436.57,null,null,394.95805000000001,null,null,{"$f":"AF1053*AL$5","v":589.36950000000002}]
[null,null,null,null,null,null,null,null,null,null,null,null,null,null,null,null,null,null,null,null,null,null,null,null,null,null,null,null,null,null,null,424.02,null,null,397.33831999999995,null,null,{"$f":"AF1054*AL$5","v":572.42700000000002}]
[null,null,null,null,null,null,null,null,null,null,null,null,null,null,null,null,null,null,null,null,null,null,null,null,null,null,null,null,null,null,null,331.51,null,null,397.53818999999999,null,null,{"$f":"AF1055*AL$5","v":447.5385}]
[null,null,null,null,null,null,null,null,null,null,null,null,null,null,null,null,null,null,null,null,null,null,null,null,null,null,null,null,null,null,null,331.47,null,null,398.02877999999998,null,null,{"$f":"AF1056*AL$5","v":447.48450000000008}]
[null,null,null,null,null,null,null,null,null,null,null,null,null,null,null,null,null,null,null,null,null,null,null,null,null,null,null,null,null,null,null,334.58,null,null,400.97231999999997,null,null,{"$f":"AF1057*AL$5","v":451.68299999999999}]
[null,null,null,null,null,null,null,null,null,null,null,null,null,null,null,null,null,null,null,null,null,null,null,null,null,null,null,null,null,null,null,343.05,null,null,401.13585,null,null,{"$f":"AF1058*AL$5","v":463.11750000000006}]
[null,null,null,null,null,null,null,null,null,null,null,null,null,null,null,null,null,null,null,null,null,null,null,null,null,null,null,null,null,null,null,370.7,null,null,401.86264999999997,null,null,{"$f":"AF1059*AL$5","v":500.44499999999999}]
[null,null,null,null,null,null,null,null,null,null,null,null,null,null,null,null,null,null,null,null,null,null,null,null,null,null,null,null,null,null,null,302.57,null,null,404.04304999999994,null,null,{"$f":"AF1060*AL$5","v":408.46950000000004}]
[null,null,null,null,null,null,null,null,null,null,null,null,null,null,null,null,null,null,null,null,null,null,null,null,null,null,null,null,null,null,null,328.26,null,null,405.29677999999996,null,null,{"$f":"AF1061*AL$5","v":443.15100000000001}]
[null,null,null,null,null,null,null,null,null,null,null,null,null,null,null,null,null,null,null,null,null,null,null,null,null,null,null,null,null,null,null,263.01,null,null,405.93272999999999,null,null,{"$f":"AF1062*AL$5","v":355.06350000000003}]
[null,null,null,null,null,null,null,null,null,null,null,null,null,null,null,null,null,null,null,null,null,null,null,null,null,null,null,null,null,null,null,264.32,null,null,407.31364999999994,null,null,{"$f":"AF1063*AL$5","v":356.83199999999999}]
[null,null,null,null,null,null,null,null,null,null,null,null,null,null,null,null,null,null,null,null,null,null,null,null,null,null,null,null,null,null,null,298.62,null,null,409.82110999999998,null,null,{"$f":"AF1064*AL$5","v":403.13700000000006}]
[null,null,null,null,null,null,null,null,null,null,null,null,null,null,null,null,null,null,null,null,null,null,null,null,null,null,null,null,null,null,null,275.48,null,null,410.76594999999998,null,null,{"$f":"AF1065*AL$5","v":371.89800000000002}]
[null,null,null,null,null,null,null,null,null,null,null,null,null,null,null,null,null,null,null,null,null,null,null,null,null,null,null,null,null,null,null,301.41000000000003,null,null,410.76594999999998,null,null,{"$f":"AF1066*AL$5","v":406.90350000000007}]
[null,null,null,null,null,null,null,null,null,null,null,null,null,null,null,null,null,null,null,null,null,null,null,null,null,null,null,null,null,null,null,278.39999999999998,null,null,412.05601999999999,null,null,{"$f":"AF1067*AL$5","v":375.84}]
[null,null,null,null,null,null,null,null,null,null,null,null,null,null,null,null,null,null,null,null,null,null,null,null,null,null,null,null,null,null,null,284.44,null,null,413.90935999999999,null,null,{"$f":"AF1068*AL$5","v":383.99400000000003}]
[null,null,null,null,null,null,null,null,null,null,null,null,null,null,null,null,null,null,null,null,null,null,null,null,null,null,null,null,null,null,null,247.7,null,null,415.63550999999995,null,null,{"$f":"AF1069*AL$5","v":334.39499999999998}]
[null,null,null,null,null,null,null,null,null,null,null,null,null,null,null,null,null,null,null,null,null,null,null,null,null,null,null,null,null,null,null,297.61,null,null,415.65368000000007,null,null,{"$f":"AF1070*AL$5","v":401.77350000000007}]
[null,null,null,null,null,null,null,null,null,null,null,null,null,null,null,null,null,null,null,null,null,null,null,null,null,null,null,null,null,null,null,256.47000000000003,null,null,415.72635999999994,null,null,{"$f":"AF1071*AL$5","v":346.23450000000008}]
[null,null,null,null,null,null,null,null,null,null,null,null,null,null,null,null,null,null,null,null,null,null,null,null,null,null,null,null,null,null,null,319.52999999999997,null,null,416.63486,null,null,{"$f":"AF1072*AL$5","v":431.3655}]
[null,null,null,null,null,null,null,null,null,null,null,null,null,null,null,null,null,null,null,null,null,null,null,null,null,null,null,null,null,null,null,258.11,null,null,416.85289999999998,null,null,{"$f":"AF1073*AL$5","v":348.44850000000002}]
[null,null,null,null,null,null,null,null,null,null,null,null,null,null,null,null,null,null,null,null,null,null,null,null,null,null,null,null,null,null,null,268.25,null,null,417.61604000000005,null,null,{"$f":"AF1074*AL$5","v":362.13750000000005}]
[null,null,null,null,null,null,null,null,null,null,null,null,null,null,null,null,null,null,null,null,null,null,null,null,null,null,null,null,null,null,null,231.49,null,null,420.45056,null,null,{"$f":"AF1075*AL$5","v":312.51150000000001}]
[null,null,null,null,null,null,null,null,null,null,null,null,null,null,null,null,null,null,null,null,null,null,null,null,null,null,null,null,null,null,null,267.58999999999997,null,null,421.30454999999995,null,null,{"$f":"AF1076*AL$5","v":361.24649999999997}]
[null,null,null,null,null,null,null,null,null,null,null,null,null,null,null,null,null,null,null,null,null,null,null,null,null,null,null,null,null,null,null,288.18,null,null,422.23121999999995,null,null,{"$f":"AF1077*AL$5","v":389.04300000000006}]
[null,null,null,null,null,null,null,null,null,null,null,null,null,null,null,null,null,null,null,null,null,null,null,null,null,null,null,null,null,null,null,261.75,null,null,423.26691,null,null,{"$f":"AF1078*AL$5","v":353.36250000000001}]
[null,null,null,null,null,null,null,null,null,null,null,null,null,null,null,null,null,null,null,null,null,null,null,null,null,null,null,null,null,null,null,370.74,null,null,426.04691999999994,null,null,{"$f":"AF1079*AL$5","v":500.49900000000002}]
[null,null,null,null,null,null,null,null,null,null,null,null,null,null,null,null,null,null,null,null,null,null,null,null,null,null,null,null,null,null,null,516.01,null,null,428.00927999999993,null,null,{"$f":"AF1080*AL$5","v":696.61350000000004}]
[null,null,null,null,null,null,null,null,null,null,null,null,null,null,null,null,null,null,null,null,null,null,null,null,null,null,null,null,null,null,null,332.13,null,null,428.02744999999993,null,null,{"$f":"AF1081*AL$5","v":448.37550000000005}]
[null,null,null,null,null,null,null,null,null,null,null,null,null,null,null,null,null,null,null,null,null,null,null,null,null,null,null,null,null,null,null,321.77,null,null,429.46288000000004,null,null,{"$f":"AF1082*AL$5","v":434.3895}]
[null,null,null,null,null,null,null,null,null,null,null,null,null,null,null,null,null,null,null,null,null,null,null,null,null,null,null,null,null,null,null,321.39,null,null,429.68091999999996,null,null,{"$f":"AF1083*AL$5","v":433.87650000000002}]
[null,null,null,null,null,null,null,null,null,null,null,null,null,null,null,null,null,null,null,null,null,null,null,null,null,null,null,null,null,null,null,512.54999999999995,null,null,432.40641999999997,null,null,{"$f":"AF1084*AL$5","v":691.9425}]
[null,null,null,null,null,null,null,null,null,null,null,null,null,null,null,null,null,null,null,null,null,null,null,null,null,null,null,null,null,null,null,366.53,null,null,435.56800000000004,null,null,{"$f":"AF1085*AL$5","v":494.81549999999999}]
[null,null,null,null,null,null,null,null,null,null,null,null,null,null,null,null,null,null,null,null,null,null,null,null,null,null,null,null,null,null,null,323.48,null,null,436.69454000000002,null,null,{"$f":"AF1086*AL$5","v":436.69800000000004}]
[null,null,null,null,null,null,null,null,null,null,null,null,null,null,null,null,null,null,null,null,null,null,null,null,null,null,null,null,null,null,null,337.19,null,null,438.94762000000003,null,null,{"$f":"AF1087*AL$5","v":455.20650000000001}]
[null,null,null,null,null,null,null,null,null,null,null,null,null,null,null,null,null,null,null,null,null,null,null,null,null,null,null,null,null,null,null,541.52,null,null,440.09233,null,null,{"$f":"AF1088*AL$5","v":731.05200000000002}]
[null,null,null,null,null,null,null,null,null,null,null,null,null,null,null,null,null,null,null,null,null,null,null,null,null,null,null,null,null,null,null,491.48,null,null,440.43756000000002,null,null,{"$f":"AF1089*AL$5","v":663.49800000000005}]
[null,null,null,null,null,null,null,null,null,null,null,null,null,null,null,null,null,null,null,null,null,null,null,null,null,null,null,null,null,null,null,521.14,null,null,441.72762999999998,null,null,{"$f":"AF1090*AL$5","v":703.53899999999999}]
[null,null,null,null,null,null,null,null,null,null,null,null,null,null,null,null,null,null,null,null,null,null,null,null,null,null,null,null,null,null,null,421.59,null,null,442.29089999999997,null,null,{"$f":"AF1091*AL$5","v":569.14650000000006}]
[null,null,null,null,null,null,null,null,null,null,null,null,null,null,null,null,null,null,null,null,null,null,null,null,null,null,null,null,null,null,null,307.83999999999997,null,null,443.23573999999991,null,null,{"$f":"AF1092*AL$5","v":415.584}]
[null,null,null,null,null,null,null,null,null,null,null,null,null,null,null,null,null,null,null,null,null,null,null,null,null,null,null,null,null,null,null,464.26,null,null,444.68933999999996,null,null,{"$f":"AF1093*AL$5","v":626.75099999999998}]
[null,null,null,null,null,null,null,null,null,null,null,null,null,null,null,null,null,null,null,null,null,null,null,null,null,null,null,null,null,null,null,616.14,null,null,445.19810000000001,null,null,{"$f":"AF1094*AL$5","v":831.78899999999999}]
[null,null,null,null,null,null,null,null,null,null,null,null,null,null,null,null,null,null,null,null,null,null,null,null,null,null,null,null,null,null,null,353.14,null,null,449.34085999999996,null,null,{"$f":"AF1095*AL$5","v":476.73900000000003}]
[null,null,null,null,null,null,null,null,null,null,null,null,null,null,null,null,null,null,null,null,null,null,null,null,null,null,null,null,null,null,null,510.44,null,null,450.61275999999998,null,null,{"$f":"AF1096*AL$5","v":689.09400000000005}]
[null,null,null,null,null,null,null,null,null,null,null,null,null,null,null,null,null,null,null,null,null,null,null,null,null,null,null,null,null,null,null,456.22,null,null,450.64909999999998,null,null,{"$f":"AF1097*AL$5","v":615.89700000000005}]
[null,null,null,null,null,null,null,null,null,null,null,null,null,null,null,null,null,null,null,null,null,null,null,null,null,null,null,null,null,null,null,404.7,null,null,453.64715000000001,null,null,{"$f":"AF1098*AL$5","v":546.34500000000003}]
[null,null,null,null,null,null,null,null,null,null,null,null,null,null,null,null,null,null,null,null,null,null,null,null,null,null,null,null,null,null,null,347.73,null,null,454.01054999999991,null,null,{"$f":"AF1099*AL$5","v":469.43550000000005}]
[null,null,null,null,null,null,null,null,null,null,null,null,null,null,null,null,null,null,null,null,null,null,null,null,null,null,null,null,null,null,null,330.51,null,null,454.35577999999992,null,null,{"$f":"AF1100*AL$5","v":446.18850000000003}]
[null,null,null,null,null,null,null,null,null,null,null,null,null,null,null,null,null,null,null,null,null,null,null,null,null,null,null,null,null,null,null,293.7,null,null,455.02807000000001,null,null,{"$f":"AF1101*AL$5","v":396.495}]
[null,null,null,null,null,null,null,null,null,null,null,null,null,null,null,null,null,null,null,null,null,null,null,null,null,null,null,null,null,null,null,338.28,null,null,455.51866000000001,null,null,{"$f":"AF1102*AL$5","v":456.678}]
[null,null,null,null,null,null,null,null,null,null,null,null,null,null,null,null,null,null,null,null,null,null,null,null,null,null,null,null,null,null,null,365.76,null,null,457.00859999999994,null,null,{"$f":"AF1103*AL$5","v":493.77600000000001}]
[null,null,null,null,null,null,null,null,null,null,null,null,null,null,null,null,null,null,null,null,null,null,null,null,null,null,null,null,null,null,null,326.12,null,null,459.22533999999996,null,null,{"$f":"AF1104*AL$5","v":440.26200000000006}]
[null,null,null,null,null,null,null,null,null,null,null,null,null,null,null,null,null,null,null,null,null,null,null,null,null,null,null,null,null,null,null,433.4,null,null,459.26168000000001,null,null,{"$f":"AF1105*AL$5","v":585.09}]
[null,null,null,null,null,null,null,null,null,null,null,null,null,null,null,null,null,null,null,null,null,null,null,null,null,null,null,null,null,null,null,434.1,null,null,460.35187999999999,null,null,{"$f":"AF1106*AL$5","v":586.03500000000008}]
[null,null,null,null,null,null,null,null,null,null,null,null,null,null,null,null,null,null,null,null,null,null,null,null,null,null,null,null,null,null,null,291.95999999999998,null,null,460.55175000000003,null,null,{"$f":"AF1107*AL$5","v":394.14600000000002}]
[null,null,null,null,null,null,null,null,null,null,null,null,null,null,null,null,null,null,null,null,null,null,null,null,null,null,null,null,null,null,null,347.45,null,null,460.66077000000001,null,null,{"$f":"AF1108*AL$5","v":469.0575}]
[null,null,null,null,null,null,null,null,null,null,null,null,null,null,null,null,null,null,null,null,null,null,null,null,null,null,null,null,null,null,null,272.52999999999997,null,null,461.56927000000002,null,null,{"$f":"AF1109*AL$5","v":367.91550000000001}]
[null,null,null,null,null,null,null,null,null,null,null,null,null,null,null,null,null,null,null,null,null,null,null,null,null,null,null,null,null,null,null,415.51,null,null,461.73279999999994,null,null,{"$f":"AF1110*AL$5","v":560.93849999999998}]
[null,null,null,null,null,null,null,null,null,null,null,null,null,null,null,null,null,null,null,null,null,null,null,null,null,null,null,null,null,null,null,581.92999999999995,null,null,462.93201999999997,null,null,{"$f":"AF1111*AL$5","v":785.60550000000001}]
[null,null,null,null,null,null,null,null,null,null,null,null,null,null,null,null,null,null,null,null,null,null,null,null,null,null,null,null,null,null,null,438.36,null,null,463.60431000000005,null,null,{"$f":"AF1112*AL$5","v":591.78600000000006}]
[null,null,null,null,null,null,null,null,null,null,null,null,null,null,null,null,null,null,null,null,null,null,null,null,null,null,null,null,null,null,null,397.38,null,null,467.11112000000003,null,null,{"$f":"AF1113*AL$5","v":536.46300000000008}]
[null,null,null,null,null,null,null,null,null,null,null,null,null,null,null,null,null,null,null,null,null,null,null,null,null,null,null,null,null,null,null,430.83,null,null,467.60170999999997,null,null,{"$f":"AF1114*AL$5","v":581.62049999999999}]
[null,null,null,null,null,null,null,null,null,null,null,null,null,null,null,null,null,null,null,null,null,null,null,null,null,null,null,null,null,null,null,459.1,null,null,467.71073000000001,null,null,{"$f":"AF1115*AL$5","v":619.78500000000008}]
[null,null,null,null,null,null,null,null,null,null,null,null,null,null,null,null,null,null,null,null,null,null,null,null,null,null,null,null,null,null,null,430.58,null,null,468.36485000000005,null,null,{"$f":"AF1116*AL$5","v":581.28300000000002}]
[null,null,null,null,null,null,null,null,null,null,null,null,null,null,null,null,null,null,null,null,null,null,null,null,null,null,null,null,null,null,null,534.51,null,null,468.43752999999992,null,null,{"$f":"AF1117*AL$5","v":721.58850000000007}]
[null,null,null,null,null,null,null,null,null,null,null,null,null,null,null,null,null,null,null,null,null,null,null,null,null,null,null,null,null,null,null,412.92,null,null,474.65166999999997,null,null,{"$f":"AF1118*AL$5","v":557.44200000000001}]
[null,null,null,null,null,null,null,null,null,null,null,null,null,null,null,null,null,null,null,null,null,null,null,null,null,null,null,null,null,null,null,415.75,null,null,476.14160999999996,null,null,{"$f":"AF1119*AL$5","v":561.26250000000005}]
[null,null,null,null,null,null,null,null,null,null,null,null,null,null,null,null,null,null,null,null,null,null,null,null,null,null,null,null,null,null,null,392.21,null,null,476.75939,null,null,{"$f":"AF1120*AL$5","v":529.48350000000005}]
[null,null,null,null,null,null,null,null,null,null,null,null,null,null,null,null,null,null,null,null,null,null,null,null,null,null,null,null,null,null,null,383.71,null,null,477.19546999999994,null,null,{"$f":"AF1121*AL$5","v":518.00850000000003}]
[null,null,null,null,null,null,null,null,null,null,null,null,null,null,null,null,null,null,null,null,null,null,null,null,null,null,null,null,null,null,null,305.48,null,null,477.68606000000005,null,null,{"$f":"AF1122*AL$5","v":412.39800000000002}]
[null,null,null,null,null,null,null,null,null,null,null,null,null,null,null,null,null,null,null,null,null,null,null,null,null,null,null,null,null,null,null,339.19,null,null,477.95860999999996,null,null,{"$f":"AF1123*AL$5","v":457.90650000000005}]
[null,null,null,null,null,null,null,null,null,null,null,null,null,null,null,null,null,null,null,null,null,null,null,null,null,null,null,null,null,null,null,549.72,null,null,478.26750000000004,null,null,{"$f":"AF1124*AL$5","v":742.12200000000007}]
[null,null,null,null,null,null,null,null,null,null,null,null,null,null,null,null,null,null,null,null,null,null,null,null,null,null,null,null,null,null,null,260.43,null,null,479.03064000000006,null,null,{"$f":"AF1125*AL$5","v":351.58050000000003}]
[null,null,null,null,null,null,null,null,null,null,null,null,null,null,null,null,null,null,null,null,null,null,null,null,null,null,null,null,null,null,null,483.18,null,null,479.35769999999997,null,null,{"$f":"AF1126*AL$5","v":652.29300000000001}]
[null,null,null,null,null,null,null,null,null,null,null,null,null,null,null,null,null,null,null,null,null,null,null,null,null,null,null,null,null,null,null,228.43,null,null,479.52123,null,null,{"$f":"AF1127*AL$5","v":308.38050000000004}]
[null,null,null,null,null,null,null,null,null,null,null,null,null,null,null,null,null,null,null,null,null,null,null,null,null,null,null,null,null,null,null,357.49,null,null,480.42972999999995,null,null,{"$f":"AF1128*AL$5","v":482.61150000000004}]
[null,null,null,null,null,null,null,null,null,null,null,null,null,null,null,null,null,null,null,null,null,null,null,null,null,null,null,null,null,null,null,402.88,null,null,480.55691999999999,null,null,{"$f":"AF1129*AL$5","v":543.88800000000003}]
[null,null,null,null,null,null,null,null,null,null,null,null,null,null,null,null,null,null,null,null,null,null,null,null,null,null,null,null,null,null,null,310.33999999999997,null,null,481.01117000000005,null,null,{"$f":"AF1130*AL$5","v":418.959}]
[null,null,null,null,null,null,null,null,null,null,null,null,null,null,null,null,null,null,null,null,null,null,null,null,null,null,null,null,null,null,null,507.56,null,null,481.50175999999999,null,null,{"$f":"AF1131*AL$5","v":685.20600000000002}]
[null,null,null,null,null,null,null,null,null,null,null,null,null,null,null,null,null,null,null,null,null,null,null,null,null,null,null,null,null,null,null,493,null,null,482.44659999999999,null,null,{"$f":"AF1132*AL$5","v":665.55000000000007}]
[null,null,null,null,null,null,null,null,null,null,null,null,null,null,null,null,null,null,null,null,null,null,null,null,null,null,null,null,null,null,null,241.98,null,null,482.71914999999996,null,null,{"$f":"AF1133*AL$5","v":326.673}]
[null,null,null,null,null,null,null,null,null,null,null,null,null,null,null,null,null,null,null,null,null,null,null,null,null,null,null,null,null,null,null,256.92,null,null,484.08190000000002,null,null,{"$f":"AF1134*AL$5","v":346.84200000000004}]
[null,null,null,null,null,null,null,null,null,null,null,null,null,null,null,null,null,null,null,null,null,null,null,null,null,null,null,null,null,null,null,335.66,null,null,485.62635,null,null,{"$f":"AF1135*AL$5","v":453.14100000000008}]
[null,null,null,null,null,null,null,null,null,null,null,null,null,null,null,null,null,null,null,null,null,null,null,null,null,null,null,null,null,null,null,302.41000000000003,null,null,486.9345899999999,null,null,{"$f":"AF1136*AL$5","v":408.25350000000009}]
[null,null,null,null,null,null,null,null,null,null,null,null,null,null,null,null,null,null,null,null,null,null,null,null,null,null,null,null,null,null,null,387.2,null,null,487.00726999999995,null,null,{"$f":"AF1137*AL$5","v":522.72}]
[null,null,null,null,null,null,null,null,null,null,null,null,null,null,null,null,null,null,null,null,null,null,null,null,null,null,null,null,null,null,null,307.05,null,null,491.24087999999995,null,null,{"$f":"AF1138*AL$5","v":414.51750000000004}]
[null,null,null,null,null,null,null,null,null,null,null,null,null,null,null,null,null,null,null,null,null,null,null,null,null,null,null,null,null,null,null,325.08,null,null,492.56729000000001,null,null,{"$f":"AF1139*AL$5","v":438.858}]
[null,null,null,null,null,null,null,null,null,null,null,null,null,null,null,null,null,null,null,null,null,null,null,null,null,null,null,null,null,null,null,365.61,null,null,494.42062999999996,null,null,{"$f":"AF1140*AL$5","v":493.57350000000002}]
[null,null,null,null,null,null,null,null,null,null,null,null,null,null,null,null,null,null,null,null,null,null,null,null,null,null,null,null,null,null,null,335.09,null,null,496.25579999999997,null,null,{"$f":"AF1141*AL$5","v":452.37149999999997}]
[null,null,null,null,null,null,null,null,null,null,null,null,null,null,null,null,null,null,null,null,null,null,null,null,null,null,null,null,null,null,null,409.36,null,null,496.63737000000003,null,null,{"$f":"AF1142*AL$5","v":552.63600000000008}]
[null,null,null,null,null,null,null,null,null,null,null,null,null,null,null,null,null,null,null,null,null,null,null,null,null,null,null,null,null,null,null,396.48,null,null,500.74378999999999,null,null,{"$f":"AF1143*AL$5","v":535.24800000000005}]
[null,null,null,null,null,null,null,null,null,null,null,null,null,null,null,null,null,null,null,null,null,null,null,null,null,null,null,null,null,null,null,272.81,null,null,501.25254999999999,null,null,{"$f":"AF1144*AL$5","v":368.29350000000005}]
[null,null,null,null,null,null,null,null,null,null,null,null,null,null,null,null,null,null,null,null,null,null,null,null,null,null,null,null,null,null,null,411.18,null,null,501.39791000000002,null,null,{"$f":"AF1145*AL$5","v":555.09300000000007}]
[null,null,null,null,null,null,null,null,null,null,null,null,null,null,null,null,null,null,null,null,null,null,null,null,null,null,null,null,null,null,null,455.59,null,null,501.59778,null,null,{"$f":"AF1146*AL$5","v":615.04650000000004}]
[null,null,null,null,null,null,null,null,null,null,null,null,null,null,null,null,null,null,null,null,null,null,null,null,null,null,null,null,null,null,null,477.29,null,null,502.85150999999996,null,null,{"$f":"AF1147*AL$5","v":644.34150000000011}]
[null,null,null,null,null,null,null,null,null,null,null,null,null,null,null,null,null,null,null,null,null,null,null,null,null,null,null,null,null,null,null,292.38,null,null,505.2317799999999,null,null,{"$f":"AF1148*AL$5","v":394.71300000000002}]
[null,null,null,null,null,null,null,null,null,null,null,null,null,null,null,null,null,null,null,null,null,null,null,null,null,null,null,null,null,null,null,416.49,null,null,506.32198,null,null,{"$f":"AF1149*AL$5","v":562.26150000000007}]
[null,null,null,null,null,null,null,null,null,null,null,null,null,null,null,null,null,null,null,null,null,null,null,null,null,null,null,null,null,null,null,495.86,null,null,507.81191999999999,null,null,{"$f":"AF1150*AL$5","v":669.41100000000006}]
[null,null,null,null,null,null,null,null,null,null,null,null,null,null,null,null,null,null,null,null,null,null,null,null,null,null,null,null,null,null,null,499.9,null,null,508.92028999999997,null,null,{"$f":"AF1151*AL$5","v":674.86500000000001}]
[null,null,null,null,null,null,null,null,null,null,null,null,null,null,null,null,null,null,null,null,null,null,null,null,null,null,null,null,null,null,null,256.27999999999997,null,null,509.12016000000006,null,null,{"$f":"AF1152*AL$5","v":345.97800000000001}]
[null,null,null,null,null,null,null,null,null,null,null,null,null,null,null,null,null,null,null,null,null,null,null,null,null,null,null,null,null,null,null,345.82,null,null,510.57375999999999,null,null,{"$f":"AF1153*AL$5","v":466.85700000000003}]
[null,null,null,null,null,null,null,null,null,null,null,null,null,null,null,null,null,null,null,null,null,null,null,null,null,null,null,null,null,null,null,264.68,null,null,511.22787999999991,null,null,{"$f":"AF1154*AL$5","v":357.31800000000004}]
[null,null,null,null,null,null,null,null,null,null,null,null,null,null,null,null,null,null,null,null,null,null,null,null,null,null,null,null,null,null,null,522.74,null,null,512.79049999999995,null,null,{"$f":"AF1155*AL$5","v":705.69900000000007}]
[null,null,null,null,null,null,null,null,null,null,null,null,null,null,null,null,null,null,null,null,null,null,null,null,null,null,null,null,null,null,null,309.52999999999997,null,null,514.62567000000001,null,null,{"$f":"AF1156*AL$5","v":417.8655}]
[null,null,null,null,null,null,null,null,null,null,null,null,null,null,null,null,null,null,null,null,null,null,null,null,null,null,null,null,null,null,null,413.89,null,null,515.38881000000003,null,null,{"$f":"AF1157*AL$5","v":558.75149999999996}]
[null,null,null,null,null,null,null,null,null,null,null,null,null,null,null,null,null,null,null,null,null,null,null,null,null,null,null,null,null,null,null,434.83,null,null,515.98842000000002,null,null,{"$f":"AF1158*AL$5","v":587.02049999999997}]
[null,null,null,null,null,null,null,null,null,null,null,null,null,null,null,null,null,null,null,null,null,null,null,null,null,null,null,null,null,null,null,262.83,null,null,516.62437,null,null,{"$f":"AF1159*AL$5","v":354.82049999999998}]
[null,null,null,null,null,null,null,null,null,null,null,null,null,null,null,null,null,null,null,null,null,null,null,null,null,null,null,null,null,null,null,332.55,null,null,516.91508999999996,null,null,{"$f":"AF1160*AL$5","v":448.94250000000005}]
[null,null,null,null,null,null,null,null,null,null,null,null,null,null,null,null,null,null,null,null,null,null,null,null,null,null,null,null,null,null,null,367.19,null,null,516.98777000000007,null,null,{"$f":"AF1161*AL$5","v":495.70650000000001}]
[null,null,null,null,null,null,null,null,null,null,null,null,null,null,null,null,null,null,null,null,null,null,null,null,null,null,null,null,null,null,null,318.58,null,null,518.60490000000004,null,null,{"$f":"AF1162*AL$5","v":430.08300000000003}]
[null,null,null,null,null,null,null,null,null,null,null,null,null,null,null,null,null,null,null,null,null,null,null,null,null,null,null,null,null,null,null,346.13,null,null,519.13183000000004,null,null,{"$f":"AF1163*AL$5","v":467.27550000000002}]
[null,null,null,null,null,null,null,null,null,null,null,null,null,null,null,null,null,null,null,null,null,null,null,null,null,null,null,null,null,null,null,402.56,null,null,522.62046999999995,null,null,{"$f":"AF1164*AL$5","v":543.45600000000002}]
[null,null,null,null,null,null,null,null,null,null,null,null,null,null,null,null,null,null,null,null,null,null,null,null,null,null,null,null,null,null,null,360.12,null,null,525.03708000000006,null,null,{"$f":"AF1165*AL$5","v":486.16200000000003}]
[null,null,null,null,null,null,null,null,null,null,null,null,null,null,null,null,null,null,null,null,null,null,null,null,null,null,null,null,null,null,null,321.5,null,null,525.63669000000004,null,null,{"$f":"AF1166*AL$5","v":434.02500000000003}]
[null,null,null,null,null,null,null,null,null,null,null,null,null,null,null,null,null,null,null,null,null,null,null,null,null,null,null,null,null,null,null,360.06,null,null,526.01825999999994,null,null,{"$f":"AF1167*AL$5","v":486.08100000000002}]
[null,null,null,null,null,null,null,null,null,null,null,null,null,null,null,null,null,null,null,null,null,null,null,null,null,null,null,null,null,null,null,356.18,null,null,526.19996000000003,null,null,{"$f":"AF1168*AL$5","v":480.84300000000002}]
[null,null,null,null,null,null,null,null,null,null,null,null,null,null,null,null,null,null,null,null,null,null,null,null,null,null,null,null,null,null,null,447.5,null,null,526.47250999999994,null,null,{"$f":"AF1169*AL$5","v":604.125}]
[null,null,null,null,null,null,null,null,null,null,null,null,null,null,null,null,null,null,null,null,null,null,null,null,null,null,null,null,null,null,null,323.39,null,null,529.72494000000006,null,null,{"$f":"AF1170*AL$5","v":436.57650000000001}]
[null,null,null,null,null,null,null,null,null,null,null,null,null,null,null,null,null,null,null,null,null,null,null,null,null,null,null,null,null,null,null,338.27,null,null,532.39593000000002,null,null,{"$f":"AF1171*AL$5","v":456.66450000000003}]
[null,null,null,null,null,null,null,null,null,null,null,null,null,null,null,null,null,null,null,null,null,null,null,null,null,null,null,null,null,null,null,373.07,null,null,533.77685000000008,null,null,{"$f":"AF1172*AL$5","v":503.64450000000005}]
[null,null,null,null,null,null,null,null,null,null,null,null,null,null,null,null,null,null,null,null,null,null,null,null,null,null,null,null,null,null,null,382.8,null,null,535.41215,null,null,{"$f":"AF1173*AL$5","v":516.78000000000009}]
[null,null,null,null,null,null,null,null,null,null,null,null,null,null,null,null,null,null,null,null,null,null,null,null,null,null,null,null,null,null,null,399.3,null,null,538.79176999999993,null,null,{"$f":"AF1174*AL$5","v":539.05500000000006}]
[null,null,null,null,null,null,null,null,null,null,null,null,null,null,null,null,null,null,null,null,null,null,null,null,null,null,null,null,null,null,null,380.77,null,null,538.90078999999992,null,null,{"$f":"AF1175*AL$5","v":514.03949999999998}]
[null,null,null,null,null,null,null,null,null,null,null,null,null,null,null,null,null,null,null,null,null,null,null,null,null,null,null,null,null,null,null,446.56,null,null,540.17268999999999,null,null,{"$f":"AF1176*AL$5","v":602.85599999999999}]
[null,null,null,null,null,null,null,null,null,null,null,null,null,null,null,null,null,null,null,null,null,null,null,null,null,null,null,null,null,null,null,356.83,null,null,540.19086000000004,null,null,{"$f":"AF1177*AL$5","v":481.72050000000002}]
[null,null,null,null,null,null,null,null,null,null,null,null,null,null,null,null,null,null,null,null,null,null,null,null,null,null,null,null,null,null,null,392.31,null,null,542.80733999999995,null,null,{"$f":"AF1178*AL$5","v":529.61850000000004}]
[null,null,null,null,null,null,null,null,null,null,null,null,null,null,null,null,null,null,null,null,null,null,null,null,null,null,null,null,null,null,null,360.52,null,null,544.73335999999995,null,null,{"$f":"AF1179*AL$5","v":486.702}]
[null,null,null,null,null,null,null,null,null,null,null,null,null,null,null,null,null,null,null,null,null,null,null,null,null,null,null,null,null,null,null,369.98,null,null,544.82420999999999,null,null,{"$f":"AF1180*AL$5","v":499.47300000000007}]
[null,null,null,null,null,null,null,null,null,null,null,null,null,null,null,null,null,null,null,null,null,null,null,null,null,null,null,null,null,null,null,392.46,null,null,545.40564999999992,null,null,{"$f":"AF1181*AL$5","v":529.82100000000003}]
[null,null,null,null,null,null,null,null,null,null,null,null,null,null,null,null,null,null,null,null,null,null,null,null,null,null,null,null,null,null,null,545.95000000000005,null,null,546.33231999999998,null,null,{"$f":"AF1182*AL$5","v":737.03250000000014}]
[null,null,null,null,null,null,null,null,null,null,null,null,null,null,null,null,null,null,null,null,null,null,null,null,null,null,null,null,null,null,null,548.39,null,null,548.71258999999998,null,null,{"$f":"AF1183*AL$5","v":740.32650000000001}]
[null,null,null,null,null,null,null,null,null,null,null,null,null,null,null,null,null,null,null,null,null,null,null,null,null,null,null,null,null,null,null,441.79,null,null,548.80343999999991,null,null,{"$f":"AF1184*AL$5","v":596.41650000000004}]
[null,null,null,null,null,null,null,null,null,null,null,null,null,null,null,null,null,null,null,null,null,null,null,null,null,null,null,null,null,null,null,271.31,null,null,549.38487999999995,null,null,{"$f":"AF1185*AL$5","v":366.26850000000002}]
[null,null,null,null,null,null,null,null,null,null,null,null,null,null,null,null,null,null,null,null,null,null,null,null,null,null,null,null,null,null,null,287.14999999999998,null,null,550.27521000000002,null,null,{"$f":"AF1186*AL$5","v":387.65249999999997}]
[null,null,null,null,null,null,null,null,null,null,null,null,null,null,null,null,null,null,null,null,null,null,null,null,null,null,null,null,null,null,null,432.31,null,null,552.32841999999994,null,null,{"$f":"AF1187*AL$5","v":583.61850000000004}]
[null,null,null,null,null,null,null,null,null,null,null,null,null,null,null,null,null,null,null,null,null,null,null,null,null,null,null,null,null,null,null,375.83,null,null,556.43483999999989,null,null,{"$f":"AF1188*AL$5","v":507.37049999999999}]
[null,null,null,null,null,null,null,null,null,null,null,null,null,null,null,null,null,null,null,null,null,null,null,null,null,null,null,null,null,null,null,406.69,null,null,557.17980999999997,null,null,{"$f":"AF1189*AL$5","v":549.03150000000005}]
[null,null,null,null,null,null,null,null,null,null,null,null,null,null,null,null,null,null,null,null,null,null,null,null,null,null,null,null,null,null,null,365.1,null,null,557.87027,null,null,{"$f":"AF1190*AL$5","v":492.88500000000005}]
[null,null,null,null,null,null,null,null,null,null,null,null,null,null,null,null,null,null,null,null,null,null,null,null,null,null,null,null,null,null,null,328.78,null,null,560.48674999999992,null,null,{"$f":"AF1191*AL$5","v":443.85300000000001}]
[null,null,null,null,null,null,null,null,null,null,null,null,null,null,null,null,null,null,null,null,null,null,null,null,null,null,null,null,null,null,null,353.41,null,null,562.10388,null,null,{"$f":"AF1192*AL$5","v":477.10350000000005}]
[null,null,null,null,null,null,null,null,null,null,null,null,null,null,null,null,null,null,null,null,null,null,null,null,null,null,null,null,null,null,null,280.57,null,null,562.14021999999989,null,null,{"$f":"AF1193*AL$5","v":378.76949999999999}]
[null,null,null,null,null,null,null,null,null,null,null,null,null,null,null,null,null,null,null,null,null,null,null,null,null,null,null,null,null,null,null,329.49,null,null,562.46727999999996,null,null,{"$f":"AF1194*AL$5","v":444.81150000000002}]
[null,null,null,null,null,null,null,null,null,null,null,null,null,null,null,null,null,null,null,null,null,null,null,null,null,null,null,null,null,null,null,325.77,null,null,563.13957000000005,null,null,{"$f":"AF1195*AL$5","v":439.78950000000003}]
[null,null,null,null,null,null,null,null,null,null,null,null,null,null,null,null,null,null,null,null,null,null,null,null,null,null,null,null,null,null,null,367.71,null,null,563.64832999999999,null,null,{"$f":"AF1196*AL$5","v":496.4085}]
[null,null,null,null,null,null,null,null,null,null,null,null,null,null,null,null,null,null,null,null,null,null,null,null,null,null,null,null,null,null,null,368.23,null,null,564.12075000000004,null,null,{"$f":"AF1197*AL$5","v":497.11050000000006}]
[null,null,null,null,null,null,null,null,null,null,null,null,null,null,null,null,null,null,null,null,null,null,null,null,null,null,null,null,null,null,null,379.46,null,null,564.90206000000001,null,null,{"$f":"AF1198*AL$5","v":512.27099999999996}]
[null,null,null,null,null,null,null,null,null,null,null,null,null,null,null,null,null,null,null,null,null,null,null,null,null,null,null,null,null,null,null,374.82,null,null,565.41081999999994,null,null,{"$f":"AF1199*AL$5","v":506.00700000000001}]
[null,null,null,null,null,null,null,null,null,null,null,null,null,null,null,null,null,null,null,null,null,null,null,null,null,null,null,null,null,null,null,390.34,null,null,565.48350000000005,null,null,{"$f":"AF1200*AL$5","v":526.95899999999995}]
[null,null,null,null,null,null,null,null,null,null,null,null,null,null,null,null,null,null,null,null,null,null,null,null,null,null,null,null,null,null,null,356.24,null,null,566.33749,null,null,{"$f":"AF1201*AL$5","v":480.92400000000004}]
[null,null,null,null,null,null,null,null,null,null,null,null,null,null,null,null,null,null,null,null,null,null,null,null,null,null,null,null,null,null,null,413.93,null,null,568.35435999999993,null,null,{"$f":"AF1202*AL$5","v":558.80550000000005}]
[null,null,null,null,null,null,null,null,null,null,null,null,null,null,null,null,null,null,null,null,null,null,null,null,null,null,null,null,null,null,null,273.12,null,null,568.79043999999999,null,null,{"$f":"AF1203*AL$5","v":368.71200000000005}]
[null,null,null,null,null,null,null,null,null,null,null,null,null,null,null,null,null,null,null,null,null,null,null,null,null,null,null,null,null,null,null,436.57,null,null,569.86247000000003,null,null,{"$f":"AF1204*AL$5","v":589.36950000000002}]
[null,null,null,null,null,null,null,null,null,null,null,null,null,null,null,null,null,null,null,null,null,null,null,null,null,null,null,null,null,null,null,514.51,null,null,570.13502000000005,null,null,{"$f":"AF1205*AL$5","v":694.58850000000007}]
[null,null,null,null,null,null,null,null,null,null,null,null,null,null,null,null,null,null,null,null,null,null,null,null,null,null,null,null,null,null,null,367.12,null,null,571.22521999999992,null,null,{"$f":"AF1206*AL$5","v":495.61200000000002}]
[null,null,null,null,null,null,null,null,null,null,null,null,null,null,null,null,null,null,null,null,null,null,null,null,null,null,null,null,null,null,null,551.07000000000005,null,null,571.73397999999997,null,null,{"$f":"AF1207*AL$5","v":743.94450000000006}]
[null,null,null,null,null,null,null,null,null,null,null,null,null,null,null,null,null,null,null,null,null,null,null,null,null,null,null,null,null,null,null,420.79,null,null,577.94812000000002,null,null,{"$f":"AF1208*AL$5","v":568.06650000000002}]
[null,null,null,null,null,null,null,null,null,null,null,null,null,null,null,null,null,null,null,null,null,null,null,null,null,null,null,null,null,null,null,465.26,null,null,578.72942999999998,null,null,{"$f":"AF1209*AL$5","v":628.101}]
[null,null,null,null,null,null,null,null,null,null,null,null,null,null,null,null,null,null,null,null,null,null,null,null,null,null,null,null,null,null,null,467.62,null,null,579.40171999999995,null,null,{"$f":"AF1210*AL$5","v":631.28700000000003}]
[null,null,null,null,null,null,null,null,null,null,null,null,null,null,null,null,null,null,null,null,null,null,null,null,null,null,null,null,null,null,null,381.37,null,null,579.96498999999994,null,null,{"$f":"AF1211*AL$5","v":514.84950000000003}]
[null,null,null,null,null,null,null,null,null,null,null,null,null,null,null,null,null,null,null,null,null,null,null,null,null,null,null,null,null,null,null,550.39,null,null,581.21871999999996,null,null,{"$f":"AF1212*AL$5","v":743.02650000000006}]
[null,null,null,null,null,null,null,null,null,null,null,null,null,null,null,null,null,null,null,null,null,null,null,null,null,null,null,null,null,null,null,320.08,null,null,583.81702999999993,null,null,{"$f":"AF1213*AL$5","v":432.108}]
[null,null,null,null,null,null,null,null,null,null,null,null,null,null,null,null,null,null,null,null,null,null,null,null,null,null,null,null,null,null,null,413.61,null,null,584.87089000000003,null,null,{"$f":"AF1214*AL$5","v":558.37350000000004}]
[null,null,null,null,null,null,null,null,null,null,null,null,null,null,null,null,null,null,null,null,null,null,null,null,null,null,null,null,null,null,null,376.04,null,null,587.85077000000001,null,null,{"$f":"AF1215*AL$5","v":507.65400000000005}]
[null,null,null,null,null,null,null,null,null,null,null,null,null,null,null,null,null,null,null,null,null,null,null,null,null,null,null,null,null,null,null,610.85,null,null,590.64895000000001,null,null,{"$f":"AF1216*AL$5","v":824.64750000000004}]
[null,null,null,null,null,null,null,null,null,null,null,null,null,null,null,null,null,null,null,null,null,null,null,null,null,null,null,null,null,null,null,416.34,null,null,591.79365999999993,null,null,{"$f":"AF1217*AL$5","v":562.05899999999997}]
[null,null,null,null,null,null,null,null,null,null,null,null,null,null,null,null,null,null,null,null,null,null,null,null,null,null,null,null,null,null,null,378.3,null,null,593.79236000000003,null,null,{"$f":"AF1218*AL$5","v":510.70500000000004}]
[null,null,null,null,null,null,null,null,null,null,null,null,null,null,null,null,null,null,null,null,null,null,null,null,null,null,null,null,null,null,null,460.69,null,null,595.73654999999997,null,null,{"$f":"AF1219*AL$5","v":621.93150000000003}]
[null,null,null,null,null,null,null,null,null,null,null,null,null,null,null,null,null,null,null,null,null,null,null,null,null,null,null,null,null,null,null,464.52,null,null,596.19079999999997,null,null,{"$f":"AF1220*AL$5","v":627.10199999999998}]
[null,null,null,null,null,null,null,null,null,null,null,null,null,null,null,null,null,null,null,null,null,null,null,null,null,null,null,null,null,null,null,437.73,null,null,597.26282999999989,null,null,{"$f":"AF1221*AL$5","v":590.93550000000005}]
[null,null,null,null,null,null,null,null,null,null,null,null,null,null,null,null,null,null,null,null,null,null,null,null,null,null,null,null,null,null,null,432.97,null,null,598.87995999999998,null,null,{"$f":"AF1222*AL$5","v":584.50950000000012}]
[null,null,null,null,null,null,null,null,null,null,null,null,null,null,null,null,null,null,null,null,null,null,null,null,null,null,null,null,null,null,null,369.13,null,null,599.77029000000005,null,null,{"$f":"AF1223*AL$5","v":498.32550000000003}]
[null,null,null,null,null,null,null,null,null,null,null,null,null,null,null,null,null,null,null,null,null,null,null,null,null,null,null,null,null,null,null,524.91999999999996,null,null,600.07918000000006,null,null,{"$f":"AF1224*AL$5","v":708.64199999999994}]
[null,null,null,null,null,null,null,null,null,null,null,null,null,null,null,null,null,null,null,null,null,null,null,null,null,null,null,null,null,null,null,323.88,null,null,600.18819999999994,null,null,{"$f":"AF1225*AL$5","v":437.238}]
[null,null,null,null,null,null,null,null,null,null,null,null,null,null,null,null,null,null,null,null,null,null,null,null,null,null,null,null,null,null,null,456.88,null,null,600.86048999999991,null,null,{"$f":"AF1226*AL$5","v":616.78800000000001}]
[null,null,null,null,null,null,null,null,null,null,null,null,null,null,null,null,null,null,null,null,null,null,null,null,null,null,null,null,null,null,null,471.97,null,null,602.13238999999999,null,null,{"$f":"AF1227*AL$5","v":637.15950000000009}]
[null,null,null,null,null,null,null,null,null,null,null,null,null,null,null,null,null,null,null,null,null,null,null,null,null,null,null,null,null,null,null,483.9,null,null,603.40428999999995,null,null,{"$f":"AF1228*AL$5","v":653.26499999999999}]
[null,null,null,null,null,null,null,null,null,null,null,null,null,null,null,null,null,null,null,null,null,null,null,null,null,null,null,null,null,null,null,530.76,null,null,603.4588,null,null,{"$f":"AF1229*AL$5","v":716.52600000000007}]
[null,null,null,null,null,null,null,null,null,null,null,null,null,null,null,null,null,null,null,null,null,null,null,null,null,null,null,null,null,null,null,402.51,null,null,604.29462000000001,null,null,{"$f":"AF1230*AL$5","v":543.38850000000002}]
[null,null,null,null,null,null,null,null,null,null,null,null,null,null,null,null,null,null,null,null,null,null,null,null,null,null,null,null,null,null,null,554.4,null,null,604.45814999999993,null,null,{"$f":"AF1231*AL$5","v":748.44}]
[null,null,null,null,null,null,null,null,null,null,null,null,null,null,null,null,null,null,null,null,null,null,null,null,null,null,null,null,null,null,null,511.31,null,null,604.58533999999997,null,null,{"$f":"AF1232*AL$5","v":690.26850000000002}]
[null,null,null,null,null,null,null,null,null,null,null,null,null,null,null,null,null,null,null,null,null,null,null,null,null,null,null,null,null,null,null,492.94,null,null,606.62037999999995,null,null,{"$f":"AF1233*AL$5","v":665.46900000000005}]
[null,null,null,null,null,null,null,null,null,null,null,null,null,null,null,null,null,null,null,null,null,null,null,null,null,null,null,null,null,null,null,518.41,null,null,606.62037999999995,null,null,{"$f":"AF1234*AL$5","v":699.85350000000005}]
[null,null,null,null,null,null,null,null,null,null,null,null,null,null,null,null,null,null,null,null,null,null,null,null,null,null,null,null,null,null,null,452.64,null,null,608.72810000000004,null,null,{"$f":"AF1235*AL$5","v":611.06400000000008}]
[null,null,null,null,null,null,null,null,null,null,null,null,null,null,null,null,null,null,null,null,null,null,null,null,null,null,null,null,null,null,null,578.66,null,null,608.85528999999997,null,null,{"$f":"AF1236*AL$5","v":781.19100000000003}]
[null,null,null,null,null,null,null,null,null,null,null,null,null,null,null,null,null,null,null,null,null,null,null,null,null,null,null,null,null,null,null,488.48,null,null,609.87280999999996,null,null,{"$f":"AF1237*AL$5","v":659.44800000000009}]
[null,null,null,null,null,null,null,null,null,null,null,null,null,null,null,null,null,null,null,null,null,null,null,null,null,null,null,null,null,null,null,542.37,null,null,610.16353000000004,null,null,{"$f":"AF1238*AL$5","v":732.19950000000006}]
[null,null,null,null,null,null,null,null,null,null,null,null,null,null,null,null,null,null,null,null,null,null,null,null,null,null,null,null,null,null,null,451.03,null,null,613.10706999999991,null,null,{"$f":"AF1239*AL$5","v":608.89049999999997}]
[null,null,null,null,null,null,null,null,null,null,null,null,null,null,null,null,null,null,null,null,null,null,null,null,null,null,null,null,null,null,null,599.67999999999995,null,null,616.10512000000006,null,null,{"$f":"AF1240*AL$5","v":809.56799999999998}]
[null,null,null,null,null,null,null,null,null,null,null,null,null,null,null,null,null,null,null,null,null,null,null,null,null,null,null,null,null,null,null,609.45000000000005,null,null,617.92212000000006,null,null,{"$f":"AF1241*AL$5","v":822.75750000000016}]
[null,null,null,null,null,null,null,null,null,null,null,null,null,null,null,null,null,null,null,null,null,null,null,null,null,null,null,null,null,null,null,434.8,null,null,623.93638999999996,null,null,{"$f":"AF1242*AL$5","v":586.98}]
[null,null,null,null,null,null,null,null,null,null,null,null,null,null,null,null,null,null,null,null,null,null,null,null,null,null,null,null,null,null,null,438.52,null,null,624.77220999999997,null,null,{"$f":"AF1243*AL$5","v":592.00200000000007}]
[null,null,null,null,null,null,null,null,null,null,null,null,null,null,null,null,null,null,null,null,null,null,null,null,null,null,null,null,null,null,null,417.37,null,null,626.48018999999999,null,null,{"$f":"AF1244*AL$5","v":563.44950000000006}]
[null,null,null,null,null,null,null,null,null,null,null,null,null,null,null,null,null,null,null,null,null,null,null,null,null,null,null,null,null,null,null,356.07,null,null,630.13235999999995,null,null,{"$f":"AF1245*AL$5","v":480.69450000000001}]
[null,null,null,null,null,null,null,null,null,null,null,null,null,null,null,null,null,null,null,null,null,null,null,null,null,null,null,null,null,null,null,360.48,null,null,632.45812000000001,null,null,{"$f":"AF1246*AL$5","v":486.64800000000008}]
[null,null,null,null,null,null,null,null,null,null,null,null,null,null,null,null,null,null,null,null,null,null,null,null,null,null,null,null,null,null,null,326.88,null,null,632.89419999999996,null,null,{"$f":"AF1247*AL$5","v":441.28800000000001}]
[null,null,null,null,null,null,null,null,null,null,null,null,null,null,null,null,null,null,null,null,null,null,null,null,null,null,null,null,null,null,null,387.24,null,null,635.81957,null,null,{"$f":"AF1248*AL$5","v":522.774}]
[null,null,null,null,null,null,null,null,null,null,null,null,null,null,null,null,null,null,null,null,null,null,null,null,null,null,null,null,null,null,null,340.69,null,null,636.34649999999999,null,null,{"$f":"AF1249*AL$5","v":459.93150000000003}]
[null,null,null,null,null,null,null,null,null,null,null,null,null,null,null,null,null,null,null,null,null,null,null,null,null,null,null,null,null,null,null,378.58,null,null,641.17971999999986,null,null,{"$f":"AF1250*AL$5","v":511.08300000000003}]
[null,null,null,null,null,null,null,null,null,null,null,null,null,null,null,null,null,null,null,null,null,null,null,null,null,null,null,null,null,null,null,378.77,null,null,642.32443000000012,null,null,{"$f":"AF1251*AL$5","v":511.33949999999999}]
[null,null,null,null,null,null,null,null,null,null,null,null,null,null,null,null,null,null,null,null,null,null,null,null,null,null,null,null,null,null,null,352.77,null,null,642.46978999999999,null,null,{"$f":"AF1252*AL$5","v":476.23950000000002}]
[null,null,null,null,null,null,null,null,null,null,null,null,null,null,null,null,null,null,null,null,null,null,null,null,null,null,null,null,null,null,null,388.13,null,null,643.52364999999998,null,null,{"$f":"AF1253*AL$5","v":523.97550000000001}]
[null,null,null,null,null,null,null,null,null,null,null,null,null,null,null,null,null,null,null,null,null,null,null,null,null,null,null,null,null,null,null,280.33999999999997,null,null,647.55739000000005,null,null,{"$f":"AF1254*AL$5","v":378.459}]
[null,null,null,null,null,null,null,null,null,null,null,null,null,null,null,null,null,null,null,null,null,null,null,null,null,null,null,null,null,null,null,429.51,null,null,649.44706999999994,null,null,{"$f":"AF1255*AL$5","v":579.83850000000007}]
[null,null,null,null,null,null,null,null,null,null,null,null,null,null,null,null,null,null,null,null,null,null,null,null,null,null,null,null,null,null,null,456.3,null,null,650.44641999999999,null,null,{"$f":"AF1256*AL$5","v":616.00500000000011}]
[null,null,null,null,null,null,null,null,null,null,null,null,null,null,null,null,null,null,null,null,null,null,null,null,null,null,null,null,null,null,null,432.8,null,null,656.93310999999994,null,null,{"$f":"AF1257*AL$5","v":584.28000000000009}]
[null,null,null,null,null,null,null,null,null,null,null,null,null,null,null,null,null,null,null,null,null,null,null,null,null,null,null,null,null,null,null,373.8,null,null,657.40553,null,null,{"$f":"AF1258*AL$5","v":504.63000000000005}]
[null,null,null,null,null,null,null,null,null,null,null,null,null,null,null,null,null,null,null,null,null,null,null,null,null,null,null,null,null,null,null,342.43,null,null,658.75010999999995,null,null,{"$f":"AF1259*AL$5","v":462.28050000000002}]
[null,null,null,null,null,null,null,null,null,null,null,null,null,null,null,null,null,null,null,null,null,null,null,null,null,null,null,null,null,null,null,368.38,null,null,659.33154999999999,null,null,{"$f":"AF1260*AL$5","v":497.31300000000005}]
[null,null,null,null,null,null,null,null,null,null,null,null,null,null,null,null,null,null,null,null,null,null,null,null,null,null,null,null,null,null,null,334.11,null,null,660.14919999999995,null,null,{"$f":"AF1261*AL$5","v":451.04850000000005}]
[null,null,null,null,null,null,null,null,null,null,null,null,null,null,null,null,null,null,null,null,null,null,null,null,null,null,null,null,null,null,null,382.91,null,null,661.02135999999996,null,null,{"$f":"AF1262*AL$5","v":516.9285000000001}]
[null,null,null,null,null,null,null,null,null,null,null,null,null,null,null,null,null,null,null,null,null,null,null,null,null,null,null,null,null,null,null,442.79,null,null,662.27508999999986,null,null,{"$f":"AF1263*AL$5","v":597.76650000000006}]
[null,null,null,null,null,null,null,null,null,null,null,null,null,null,null,null,null,null,null,null,null,null,null,null,null,null,null,null,null,null,null,468.36,null,null,662.43862000000013,null,null,{"$f":"AF1264*AL$5","v":632.28600000000006}]
[null,null,null,null,null,null,null,null,null,null,null,null,null,null,null,null,null,null,null,null,null,null,null,null,null,null,null,null,null,null,null,424.6,null,null,663.03823,null,null,{"$f":"AF1265*AL$5","v":573.21}]
[null,null,null,null,null,null,null,null,null,null,null,null,null,null,null,null,null,null,null,null,null,null,null,null,null,null,null,null,null,null,null,391.67,null,null,663.89221999999995,null,null,{"$f":"AF1266*AL$5","v":528.75450000000001}]
[null,null,null,null,null,null,null,null,null,null,null,null,null,null,null,null,null,null,null,null,null,null,null,null,null,null,null,null,null,null,null,363.94,null,null,664.01940999999999,null,null,{"$f":"AF1267*AL$5","v":491.31900000000002}]
[null,null,null,null,null,null,null,null,null,null,null,null,null,null,null,null,null,null,null,null,null,null,null,null,null,null,null,null,null,null,null,315.54000000000002,null,null,664.03758000000005,null,null,{"$f":"AF1268*AL$5","v":425.97900000000004}]
[null,null,null,null,null,null,null,null,null,null,null,null,null,null,null,null,null,null,null,null,null,null,null,null,null,null,null,null,null,null,null,312.57,null,null,664.38280999999995,null,null,{"$f":"AF1269*AL$5","v":421.96950000000004}]
[null,null,null,null,null,null,null,null,null,null,null,null,null,null,null,null,null,null,null,null,null,null,null,null,null,null,null,null,null,null,null,357.86,null,null,665.05510000000004,null,null,{"$f":"AF1270*AL$5","v":483.11100000000005}]
[null,null,null,null,null,null,null,null,null,null,null,null,null,null,null,null,null,null,null,null,null,null,null,null,null,null,null,null,null,null,null,431.42,null,null,665.56385999999998,null,null,{"$f":"AF1271*AL$5","v":582.41700000000003}]
[null,null,null,null,null,null,null,null,null,null,null,null,null,null,null,null,null,null,null,null,null,null,null,null,null,null,null,null,null,null,null,306.27,null,null,670.94218000000001,null,null,{"$f":"AF1272*AL$5","v":413.46449999999999}]
[null,null,null,null,null,null,null,null,null,null,null,null,null,null,null,null,null,null,null,null,null,null,null,null,null,null,null,null,null,null,null,446.1,null,null,674.17643999999996,null,null,{"$f":"AF1273*AL$5","v":602.23500000000001}]
[null,null,null,null,null,null,null,null,null,null,null,null,null,null,null,null,null,null,null,null,null,null,null,null,null,null,null,null,null,null,null,382.19,null,null,675.86625000000004,null,null,{"$f":"AF1274*AL$5","v":515.95650000000001}]
[null,null,null,null,null,null,null,null,null,null,null,null,null,null,null,null,null,null,null,null,null,null,null,null,null,null,null,null,null,null,null,365.93,null,null,679.15501999999992,null,null,{"$f":"AF1275*AL$5","v":494.00550000000004}]
[null,null,null,null,null,null,null,null,null,null,null,null,null,null,null,null,null,null,null,null,null,null,null,null,null,null,null,null,null,null,null,493.58,null,null,680.60862000000009,null,null,{"$f":"AF1276*AL$5","v":666.33299999999997}]
[null,null,null,null,null,null,null,null,null,null,null,null,null,null,null,null,null,null,null,null,null,null,null,null,null,null,null,null,null,null,null,412.64,null,null,682.42561999999998,null,null,{"$f":"AF1277*AL$5","v":557.06399999999996}]
[null,null,null,null,null,null,null,null,null,null,null,null,null,null,null,null,null,null,null,null,null,null,null,null,null,null,null,null,null,null,null,435.38,null,null,684.04275000000007,null,null,{"$f":"AF1278*AL$5","v":587.76300000000003}]
[null,null,null,null,null,null,null,null,null,null,null,null,null,null,null,null,null,null,null,null,null,null,null,null,null,null,null,null,null,null,null,388.42,null,null,684.69686999999999,null,null,{"$f":"AF1279*AL$5","v":524.36700000000008}]
[null,null,null,null,null,null,null,null,null,null,null,null,null,null,null,null,null,null,null,null,null,null,null,null,null,null,null,null,null,null,null,435.45,null,null,691.31074999999987,null,null,{"$f":"AF1280*AL$5","v":587.85750000000007}]
[null,null,null,null,null,null,null,null,null,null,null,null,null,null,null,null,null,null,null,null,null,null,null,null,null,null,null,null,null,null,null,479.54,null,null,691.87401999999997,null,null,{"$f":"AF1281*AL$5","v":647.37900000000002}]
[null,null,null,null,null,null,null,null,null,null,null,null,null,null,null,null,null,null,null,null,null,null,null,null,null,null,null,null,null,null,null,412.09,null,null,692.61898999999994,null,null,{"$f":"AF1282*AL$5","v":556.32150000000001}]
[null,null,null,null,null,null,null,null,null,null,null,null,null,null,null,null,null,null,null,null,null,null,null,null,null,null,null,null,null,null,null,532.08000000000004,null,null,694.54500999999993,null,null,{"$f":"AF1283*AL$5","v":718.30800000000011}]
[null,null,null,null,null,null,null,null,null,null,null,null,null,null,null,null,null,null,null,null,null,null,null,null,null,null,null,null,null,null,null,433.03,null,null,700.94084999999995,null,null,{"$f":"AF1284*AL$5","v":584.59050000000002}]
[null,null,null,null,null,null,null,null,null,null,null,null,null,null,null,null,null,null,null,null,null,null,null,null,null,null,null,null,null,null,null,539.34,null,null,706.39185000000009,null,null,{"$f":"AF1285*AL$5","v":728.10900000000004}]
[null,null,null,null,null,null,null,null,null,null,null,null,null,null,null,null,null,null,null,null,null,null,null,null,null,null,null,null,null,null,null,540.63,null,null,707.17315999999994,null,null,{"$f":"AF1286*AL$5","v":729.85050000000001}]
[null,null,null,null,null,null,null,null,null,null,null,null,null,null,null,null,null,null,null,null,null,null,null,null,null,null,null,null,null,null,null,537.84,null,null,707.5729,null,null,{"$f":"AF1287*AL$5","v":726.08400000000006}]
[null,null,null,null,null,null,null,null,null,null,null,null,null,null,null,null,null,null,null,null,null,null,null,null,null,null,null,null,null,null,null,356.74,null,null,709.04467,null,null,{"$f":"AF1288*AL$5","v":481.59900000000005}]
[null,null,null,null,null,null,null,null,null,null,null,null,null,null,null,null,null,null,null,null,null,null,null,null,null,null,null,null,null,null,null,422.59,null,null,709.15368999999998,null,null,{"$f":"AF1289*AL$5","v":570.49649999999997}]
[null,null,null,null,null,null,null,null,null,null,null,null,null,null,null,null,null,null,null,null,null,null,null,null,null,null,null,null,null,null,null,395.72,null,null,710.20754999999997,null,null,{"$f":"AF1290*AL$5","v":534.22200000000009}]
[null,null,null,null,null,null,null,null,null,null,null,null,null,null,null,null,null,null,null,null,null,null,null,null,null,null,null,null,null,null,null,519.17999999999995,null,null,714.35031000000004,null,null,{"$f":"AF1291*AL$5","v":700.89300000000003}]
[null,null,null,null,null,null,null,null,null,null,null,null,null,null,null,null,null,null,null,null,null,null,null,null,null,null,null,null,null,null,null,540.20000000000005,null,null,716.00378000000001,null,null,{"$f":"AF1292*AL$5","v":729.2700000000001}]
[null,null,null,null,null,null,null,null,null,null,null,null,null,null,null,null,null,null,null,null,null,null,null,null,null,null,null,null,null,null,null,404.75,null,null,716.34900999999991,null,null,{"$f":"AF1293*AL$5","v":546.41250000000002}]
[null,null,null,null,null,null,null,null,null,null,null,null,null,null,null,null,null,null,null,null,null,null,null,null,null,null,null,null,null,null,null,542.22,null,null,721.69098999999994,null,null,{"$f":"AF1294*AL$5","v":731.99700000000007}]
[null,null,null,null,null,null,null,null,null,null,null,null,null,null,null,null,null,null,null,null,null,null,null,null,null,null,null,null,null,null,null,531.92999999999995,null,null,735.60921000000008,null,null,{"$f":"AF1295*AL$5","v":718.10550000000001}]
[null,null,null,null,null,null,null,null,null,null,null,null,null,null,null,null,null,null,null,null,null,null,null,null,null,null,null,null,null,null,null,537.89,null,null,740.84217000000001,null,null,{"$f":"AF1296*AL$5","v":726.15150000000006}]
[null,null,null,null,null,null,null,null,null,null,null,null,null,null,null,null,null,null,null,null,null,null,null,null,null,null,null,null,null,null,null,642.84,null,null,742.42295999999999,null,null,{"$f":"AF1297*AL$5","v":867.83400000000006}]
[null,null,null,null,null,null,null,null,null,null,null,null,null,null,null,null,null,null,null,null,null,null,null,null,null,null,null,null,null,null,null,606.04,null,null,744.67603999999994,null,null,{"$f":"AF1298*AL$5","v":818.154}]
[null,null,null,null,null,null,null,null,null,null,null,null,null,null,null,null,null,null,null,null,null,null,null,null,null,null,null,null,null,null,null,567.39,null,null,748.05565999999999,null,null,{"$f":"AF1299*AL$5","v":765.97649999999999}]
[null,null,null,null,null,null,null,null,null,null,null,null,null,null,null,null,null,null,null,null,null,null,null,null,null,null,null,null,null,null,null,468.17,null,null,748.23735999999997,null,null,{"$f":"AF1300*AL$5","v":632.0295000000001}]
[null,null,null,null,null,null,null,null,null,null,null,null,null,null,null,null,null,null,null,null,null,null,null,null,null,null,null,null,null,null,null,478.29,null,null,750.96285999999998,null,null,{"$f":"AF1301*AL$5","v":645.69150000000002}]
[null,null,null,null,null,null,null,null,null,null,null,null,null,null,null,null,null,null,null,null,null,null,null,null,null,null,null,null,null,null,null,468.16,null,null,755.3236599999999,null,null,{"$f":"AF1302*AL$5","v":632.01600000000008}]
[null,null,null,null,null,null,null,null,null,null,null,null,null,null,null,null,null,null,null,null,null,null,null,null,null,null,null,null,null,null,null,440.14,null,null,756.72274999999991,null,null,{"$f":"AF1303*AL$5","v":594.18899999999996}]
[null,null,null,null,null,null,null,null,null,null,null,null,null,null,null,null,null,null,null,null,null,null,null,null,null,null,null,null,null,null,null,359.79,null,null,760.28407000000004,null,null,{"$f":"AF1304*AL$5","v":485.71650000000005}]
[null,null,null,null,null,null,null,null,null,null,null,null,null,null,null,null,null,null,null,null,null,null,null,null,null,null,null,null,null,null,null,473.75,null,null,763.19127000000003,null,null,{"$f":"AF1305*AL$5","v":639.5625}]
[null,null,null,null,null,null,null,null,null,null,null,null,null,null,null,null,null,null,null,null,null,null,null,null,null,null,null,null,null,null,null,408.95,null,null,763.31845999999985,null,null,{"$f":"AF1306*AL$5","v":552.08249999999998}]
[null,null,null,null,null,null,null,null,null,null,null,null,null,null,null,null,null,null,null,null,null,null,null,null,null,null,null,null,null,null,null,386.36,null,null,767.15233000000001,null,null,{"$f":"AF1307*AL$5","v":521.58600000000001}]
[null,null,null,null,null,null,null,null,null,null,null,null,null,null,null,null,null,null,null,null,null,null,null,null,null,null,null,null,null,null,null,309.33999999999997,null,null,772.67601000000013,null,null,{"$f":"AF1308*AL$5","v":417.60899999999998}]
[null,null,null,null,null,null,null,null,null,null,null,null,null,null,null,null,null,null,null,null,null,null,null,null,null,null,null,null,null,null,null,280.74,null,null,777.76361000000009,null,null,{"$f":"AF1309*AL$5","v":378.99900000000002}]
[null,null,null,null,null,null,null,null,null,null,null,null,null,null,null,null,null,null,null,null,null,null,null,null,null,null,null,null,null,null,null,355.47,null,null,779.88949999999988,null,null,{"$f":"AF1310*AL$5","v":479.88450000000006}]
[null,null,null,null,null,null,null,null,null,null,null,null,null,null,null,null,null,null,null,null,null,null,null,null,null,null,null,null,null,null,null,308.57,null,null,780.16205000000002,null,null,{"$f":"AF1311*AL$5","v":416.56950000000001}]
[null,null,null,null,null,null,null,null,null,null,null,null,null,null,null,null,null,null,null,null,null,null,null,null,null,null,null,null,null,null,null,387.04,null,null,784.57736,null,null,{"$f":"AF1312*AL$5","v":522.50400000000002}]
[null,null,null,null,null,null,null,null,null,null,null,null,null,null,null,null,null,null,null,null,null,null,null,null,null,null,null,null,null,null,null,352.38,null,null,785.64939000000004,null,null,{"$f":"AF1313*AL$5","v":475.71300000000002}]
[null,null,null,null,null,null,null,null,null,null,null,null,null,null,null,null,null,null,null,null,null,null,null,null,null,null,null,null,null,null,null,332.01,null,null,790.62797,null,null,{"$f":"AF1314*AL$5","v":448.21350000000001}]
[null,null,null,null,null,null,null,null,null,null,null,null,null,null,null,null,null,null,null,null,null,null,null,null,null,null,null,null,null,null,null,365.34,null,null,790.71881999999994,null,null,{"$f":"AF1315*AL$5","v":493.209}]
[null,null,null,null,null,null,null,null,null,null,null,null,null,null,null,null,null,null,null,null,null,null,null,null,null,null,null,null,null,null,null,350.71,null,null,793.29895999999997,null,null,{"$f":"AF1316*AL$5","v":473.45850000000002}]
[null,null,null,null,null,null,null,null,null,null,null,null,null,null,null,null,null,null,null,null,null,null,null,null,null,null,null,null,null,null,null,460.14,null,null,793.35347000000002,null,null,{"$f":"AF1317*AL$5","v":621.18900000000008}]
[null,null,null,null,null,null,null,null,null,null,null,null,null,null,null,null,null,null,null,null,null,null,null,null,null,null,null,null,null,null,null,426.24,null,null,794.91609000000005,null,null,{"$f":"AF1318*AL$5","v":575.42400000000009}]
[null,null,null,null,null,null,null,null,null,null,null,null,null,null,null,null,null,null,null,null,null,null,null,null,null,null,null,null,null,null,null,414.4,null,null,795.6973999999999,null,null,{"$f":"AF1319*AL$5","v":559.44000000000005}]
[null,null,null,null,null,null,null,null,null,null,null,null,null,null,null,null,null,null,null,null,null,null,null,null,null,null,null,null,null,null,null,466.03,null,null,796.73309000000006,null,null,{"$f":"AF1320*AL$5","v":629.14049999999997}]
[null,null,null,null,null,null,null,null,null,null,null,null,null,null,null,null,null,null,null,null,null,null,null,null,null,null,null,null,null,null,null,413.18,null,null,797.31452999999999,null,null,{"$f":"AF1321*AL$5","v":557.79300000000001}]
[null,null,null,null,null,null,null,null,null,null,null,null,null,null,null,null,null,null,null,null,null,null,null,null,null,null,null,null,null,null,null,428.41,null,null,798.58643000000006,null,null,{"$f":"AF1322*AL$5","v":578.35350000000005}]
[null,null,null,null,null,null,null,null,null,null,null,null,null,null,null,null,null,null,null,null,null,null,null,null,null,null,null,null,null,null,null,346.65,null,null,798.85897999999997,null,null,{"$f":"AF1323*AL$5","v":467.97750000000002}]
[null,null,null,null,null,null,null,null,null,null,null,null,null,null,null,null,null,null,null,null,null,null,null,null,null,null,null,null,null,null,null,405.07,null,null,805.3638400000001,null,null,{"$f":"AF1324*AL$5","v":546.84450000000004}]
[null,null,null,null,null,null,null,null,null,null,null,null,null,null,null,null,null,null,null,null,null,null,null,null,null,null,null,null,null,null,null,364.76,null,null,809.7973199999999,null,null,{"$f":"AF1325*AL$5","v":492.42600000000004}]
[null,null,null,null,null,null,null,null,null,null,null,null,null,null,null,null,null,null,null,null,null,null,null,null,null,null,null,null,null,null,null,355.45,null,null,812.21393000000012,null,null,{"$f":"AF1326*AL$5","v":479.85750000000002}]
[null,null,null,null,null,null,null,null,null,null,null,null,null,null,null,null,null,null,null,null,null,null,null,null,null,null,null,null,null,null,null,479.18,null,null,813.43131999999991,null,null,{"$f":"AF1327*AL$5","v":646.89300000000003}]
[null,null,null,null,null,null,null,null,null,null,null,null,null,null,null,null,null,null,null,null,null,null,null,null,null,null,null,null,null,null,null,467.29,null,null,814.66688000000011,null,null,{"$f":"AF1328*AL$5","v":630.84150000000011}]
[null,null,null,null,null,null,null,null,null,null,null,null,null,null,null,null,null,null,null,null,null,null,null,null,null,null,null,null,null,null,null,345.11,null,null,820.71748999999988,null,null,{"$f":"AF1329*AL$5","v":465.89850000000007}]
[null,null,null,null,null,null,null,null,null,null,null,null,null,null,null,null,null,null,null,null,null,null,null,null,null,null,null,null,null,null,null,400,null,null,829.78431999999987,null,null,{"$f":"AF1330*AL$5","v":540}]
[null,null,null,null,null,null,null,null,null,null,null,null,null,null,null,null,null,null,null,null,null,null,null,null,null,null,null,null,null,null,null,394.25,null,null,844.32032000000004,null,null,{"$f":"AF1331*AL$5","v":532.23750000000007}]
[null,null,null,null,null,null,null,null,null,null,null,null,null,null,null,null,null,null,null,null,null,null,null,null,null,null,null,null,null,null,null,350.73,null,null,864.79790999999989,null,null,{"$f":"AF1332*AL$5","v":473.48550000000006}]
[null,null,null,null,null,null,null,null,null,null,null,null,null,null,null,null,null,null,null,null,null,null,null,null,null,null,null,null,null,null,null,384.93,null,null,870.73949999999991,null,null,{"$f":"AF1333*AL$5","v":519.65550000000007}]
[null,null,null,null,null,null,null,null,null,null,null,null,null,null,null,null,null,null,null,null,null,null,null,null,null,null,null,null,null,null,null,421.22,null,null,902.99124999999992,null,null,{"$f":"AF1334*AL$5","v":568.64700000000005}]
[null,null,null,null,null,null,null,null,null,null,null,null,null,null,null,null,null,null,null,null,null,null,null,null,null,null,null,null,null,null,null,435.29,null,null,914.54736999999989,null,null,{"$f":"AF1335*AL$5","v":587.64150000000006}]
[null,null,null,null,null,null,null,null,null,null,null,null,null,null,null,null,null,null,null,null,null,null,null,null,null,null,null,null,null,null,null,437.8,null,null,920.7433400000001,null,null,{"$f":"AF1336*AL$5","v":591.03000000000009}]
[null,null,null,null,null,null,null,null,null,null,null,null,null,null,null,null,null,null,null,null,null,null,null,null,null,null,null,null,null,null,null,384.07,null,null,923.28714000000002,null,null,{"$f":"AF1337*AL$5","v":518.49450000000002}]
[null,null,null,null,null,null,null,null,null,null,null,null,null,null,null,null,null,null,null,null,null,null,null,null,null,null,null,null,null,null,null,483.49,null,null,932.89906999999994,null,null,{"$f":"AF1338*AL$5","v":652.7115}]
[null,null,null,null,null,null,null,null,null,null,null,null,null,null,null,null,null,null,null,null,null,null,null,null,null,null,null,null,null,null,null,468.73,null,null,981.41297000000009,null,null,{"$f":"AF1339*AL$5","v":632.78550000000007}]